Workbook

Sheet Cover
A2: Cap and Floor Financial Model 1 (CFFM1)
B3: Regime design model
C4: =MID(CELL("filename"),SEARCH("[",CELL("filename"))+1,SEARCH("]",CELL("filename"))-SEARCH("[",CELL("filename"))-1) -> Ofgem.gov.uk Publication Schedule.xlsx
C5: DISCLAIMER: In the event of any inconsistency between this model and the licence, licence conditions take precedence.
C6: For guidance on the use of the CFFM1, please refer to the CFFM1 Handbook (CFFM1H)
B8: Model key
E10: Sample | G10: Calculated value
E11: Sample | G11: Formula changes in cells to the right
E12: Sample | G12: Import from other sheet
E13: Sample | G13: Export to other sheet
E14: Sample | G14: Import from & export to other sheet
E15: Sample | G15: Initial input
E16: Sample | G16: Initial input for non-GB indexed portion (to be left empty if GB-indexed only)
E17: Sample | G17: Updated input
E18: Sample | G18: Notes and instructions
E19: Sample | G19: Cell intentionally blank
B21: Contents
E23: Cover | G23: Model key and content directory
E24: Version Control | G24: Version control and log of changes
E25: Inputs | G25: Input data
E26: Data Sources | G26: Sources of input data
E27: Pre Op RAV | G27: Pre-operational RAV balances
E28: Finance | G28: Interest during construction and transaction costs
E29: Op RAV | G29: Operational RAV balances, return on RAV and RAV depreciation
E30: Allowances Cap | G30: Cap allowances (excluding tax) and annuitisation
E31: Allowances Floor | G31: Floor allowances (excluding tax) and annuitisation
E32: Tax Deductions | G32: Tax calculations
E33: Tax Cap | G33: Tax allowances at cap and annuitisation
E34: Tax Floor | G34: Tax allowances at floor and annuitisation
E35: Cap Floor Levels | G35: Cap and Floor values
B37: Checks
E39: Depreciation | G39: ='Op Rav'!I27 -> TRUE
B41: End of sheet

Sheet Version Control
A1: Data Sources
B2: Version number | C2: File pathname | D2: Based on version | E2: Author or editor | F2: Date | G2: Description of changes | H2: Rationale for changes | I2: Location of changes | J2: Impact of changes on outputs | K2: Quality assurance performed? By? | L2: Comments on QA performed
B4: 1.1 | C4: link | D4: N/a | E4: Andrew Stone & Neill Aitken (NGV) | F4: 2017-01-31 | G4: N/a | H4: N/a | I4: N/a | J4: N/a | K4: Internal (ORE) and external (BDO) | L4: Comments reflected in version 1.1
B5: 2.1 | C5: link | D5: 1.1 | E5: Martin Namor | F5: 2019-03-20 | G5: CFFM split into CFFM1 (up to PCR) & CFFM2 (operations) | H5: Simplification and standardisation | I5: Throughout the model | J5: No impact | K5: Internal (ORE - Svitlana Voronkova) | L5: Comments reflected in version 2.2
B6: 2.2 | C6: link | D6: 2.1 | E6: Martin Namor | F6: 2019-09-05 | G6: Minor changes | H6: Reflecting comments from QA and tidying up | I6: Throughout the model | J6: No impact | K6: Internal (ORE - Svitlana Voronkova) | L6: Further comments reflected in version 2.2
B7: 2.3 | D7: 2.2 | E7: Martin Namor | F7: 2020-08-14 | G7: Minor changes to three formulas | H7: Allowing all construction costs to be transferred into the operational RAV; simplifying formulas used to calculate IDC | I7: Inputs sheet and Finance sheet | J7: Potential small impact if construction costs are incurred in the period after the period in which operations start | K7: Internal (ORE - Svitlana Voronkova) | L7: Comments reflected in version 2.3
B8: 2.4 | D8: 2.3 | E8: Vanessa Simpson & Neill Aitken (NGV) | F8: 2022-06-28 | G8: All Nemo input parameters replaced with IFA2 input parameters to generate C + F levels for IFA2 Project. | H8: Implementing the regime for IFA2 | I8: Multiple sheets | J8: Medium | K8: Internal (ORE - Rahmatullah Kawsary) | L8: Comments reflected in version 2.4
B9: 2.5 | D9: 2.4 | E9: Lucy Bond and Ubah Abraham | F9: 2023-05-23 | G9: All IFA2 input parameters replaced with NSL input parameters to generate C + F levels for NSL Project. Changes to Corporation Tax and Capital Allowance Rate to reflect UK gov changes. | H9: Implementing the regime for NSL | I9: Multiple sheets | J9: Medium | K9: Internal (ORE - Rahmatullah Kawsary)

Sheet Inputs
A1: Inputs | H1: Licence
E2: Parameter | G2: Units | H2: Terminology | I2: Constant | K2: Annual values
B4: Indexation, currency and base year price term
E6: GB indexed portion of interconnector | G6: choice % | I6: 1
E7: Non-GB indexed portion of interconnector | G7: % | I7: =100%-I6 -> 0
E9: Currency of cost inputs | G9: choice | I9: £
E11: Base year price term | G11: choice | I11: £m 15/16 prices
B13: Variables set after financial close
C15: Actual values
E17: Year commencing | K17: =$I$84 -> 2009-04-01 | L17: =+K18+1 -> 2010-04-01 | M17: =+L18+1 -> 2011-04-01 | N17: =+M18+1 -> 2012-04-01 | O17: =+N18+1 -> 2013-04-01 | P17: =+O18+1 -> 2014-04-01 | Q17: =+P18+1 -> 2015-04-01 | R17: =+Q18+1 -> 2016-04-01 | S17: =+R18+1 -> 2017-04-01 | T17: =+S18+1 -> 2018-04-01 | U17: =+T18+1 -> 2019-04-01 | V17: =+U18+1 -> 2020-04-01 | W17: =+V18+1 -> 2021-04-01 | X17: =+W18+1 -> 2022-04-01 | Y17: =+X18+1 -> 2023-04-01 | Z17: =+Y18+1 -> 2024-04-01 | AA17: =+Z18+1 -> 2025-04-01 | AB17: =+AA18+1 -> 2026-04-01 | AC17: =+AB18+1 -> 2027-04-01 | AD17: =+AC18+1 -> 2028-04-01 | AE17: =+AD18+1 -> 2029-04-01 | AF17: =+AE18+1 -> 2030-04-01 | AG17: =+AF18+1 -> 2031-04-01 | AH17: =+AG18+1 -> 2032-04-01 | AI17: =+AH18+1 -> 2033-04-01 | AJ17: =+AI18+1 -> 2034-04-01 | AK17: =+AJ18+1 -> 2035-04-01 | AL17: =+AK18+1 -> 2036-04-01 | AM17: =+AL18+1 -> 2037-04-01 | AN17: =+AM18+1 -> 2038-04-01 | AO17: =+AN18+1 -> 2039-04-01 | AP17: =+AO18+1 -> 2040-04-01 | AQ17: =+AP18+1 -> 2041-04-01 | AR17: =+AQ18+1 -> 2042-04-01 | AS17: =+AR18+1 -> 2043-04-01 | AT17: =+AS18+1 -> 2044-04-01 | AU17: =+AT18+1 -> 2045-04-01 | AV17: =+AU18+1 -> 2046-04-01 | AW17: =+AV18+1 -> 2047-04-01 | AX17: =+AW18+1 -> 2048-04-01
E18: Year ending | K18: =EOMONTH(K17,11) -> 2010-03-31 | L18: =DATE(YEAR(K18) + 1, MONTH(K18), DAY(K18)) -> 2011-03-31 | M18: =DATE(YEAR(L18) + 1, MONTH(L18), DAY(L18)) -> 2012-03-31 | N18: =DATE(YEAR(M18) + 1, MONTH(M18), DAY(M18)) -> 2013-03-31 | O18: =DATE(YEAR(N18) + 1, MONTH(N18), DAY(N18)) -> 2014-03-31 | P18: =DATE(YEAR(O18) + 1, MONTH(O18), DAY(O18)) -> 2015-03-31 | Q18: =DATE(YEAR(P18) + 1, MONTH(P18), DAY(P18)) -> 2016-03-31 | R18: =DATE(YEAR(Q18) + 1, MONTH(Q18), DAY(Q18)) -> 2017-03-31 | S18: =DATE(YEAR(R18) + 1, MONTH(R18), DAY(R18)) -> 2018-03-31 | T18: =DATE(YEAR(S18) + 1, MONTH(S18), DAY(S18)) -> 2019-03-31 | U18: =DATE(YEAR(T18) + 1, MONTH(T18), DAY(T18)) -> 2020-03-31 | V18: =DATE(YEAR(U18) + 1, MONTH(U18), DAY(U18)) -> 2021-03-31 | W18: =DATE(YEAR(V18) + 1, MONTH(V18), DAY(V18)) -> 2022-03-31 | X18: =DATE(YEAR(W18) + 1, MONTH(W18), DAY(W18)) -> 2023-03-31 | Y18: =DATE(YEAR(X18) + 1, MONTH(X18), DAY(X18)) -> 2024-03-31 | Z18: =DATE(YEAR(Y18) + 1, MONTH(Y18), DAY(Y18)) -> 2025-03-31 | AA18: =DATE(YEAR(Z18) + 1, MONTH(Z18), DAY(Z18)) -> 2026-03-31 | AB18: =DATE(YEAR(AA18) + 1, MONTH(AA18), DAY(AA18)) -> 2027-03-31 | AC18: =DATE(YEAR(AB18) + 1, MONTH(AB18), DAY(AB18)) -> 2028-03-31 | AD18: =DATE(YEAR(AC18) + 1, MONTH(AC18), DAY(AC18)) -> 2029-03-31 | AE18: =DATE(YEAR(AD18) + 1, MONTH(AD18), DAY(AD18)) -> 2030-03-31 | AF18: =DATE(YEAR(AE18) + 1, MONTH(AE18), DAY(AE18)) -> 2031-03-31 | AG18: =DATE(YEAR(AF18) + 1, MONTH(AF18), DAY(AF18)) -> 2032-03-31 | AH18: =DATE(YEAR(AG18) + 1, MONTH(AG18), DAY(AG18)) -> 2033-03-31 | AI18: =DATE(YEAR(AH18) + 1, MONTH(AH18), DAY(AH18)) -> 2034-03-31 | AJ18: =DATE(YEAR(AI18) + 1, MONTH(AI18), DAY(AI18)) -> 2035-03-31 | AK18: =DATE(YEAR(AJ18) + 1, MONTH(AJ18), DAY(AJ18)) -> 2036-03-31 | AL18: =DATE(YEAR(AK18) + 1, MONTH(AK18), DAY(AK18)) -> 2037-03-31 | AM18: =DATE(YEAR(AL18) + 1, MONTH(AL18), DAY(AL18)) -> 2038-03-31 | AN18: =DATE(YEAR(AM18) + 1, MONTH(AM18), DAY(AM18)) -> 2039-03-31 | AO18: =DATE(YEAR(AN18) + 1, MONTH(AN18), DAY(AN18)) -> 2040-03-31 | AP18: =DATE(YEAR(AO18) + 1, MONTH(AO18), DAY(AO18)) -> 2041-03-31 | AQ18: =DATE(YEAR(AP18) + 1, MONTH(AP18), DAY(AP18)) -> 2042-03-31 | AR18: =DATE(YEAR(AQ18) + 1, MONTH(AQ18), DAY(AQ18)) -> 2043-03-31 | AS18: =DATE(YEAR(AR18) + 1, MONTH(AR18), DAY(AR18)) -> 2044-03-31 | AT18: =DATE(YEAR(AS18) + 1, MONTH(AS18), DAY(AS18)) -> 2045-03-31 | AU18: =DATE(YEAR(AT18) + 1, MONTH(AT18), DAY(AT18)) -> 2046-03-31 | AV18: =DATE(YEAR(AU18) + 1, MONTH(AU18), DAY(AU18)) -> 2047-03-31 | AW18: =DATE(YEAR(AV18) + 1, MONTH(AV18), DAY(AV18)) -> 2048-03-31 | AX18: =DATE(YEAR(AW18) + 1, MONTH(AW18), DAY(AW18)) -> 2049-03-31
E20: Development costs | G20: =CONCATENATE($I$9,"m nominal") -> £m nominal | K20: 0 | L20: 0.33222997 | M20: 0.51022354 | N20: 6.46254305 | O20: 1.396926 | P20: 3.86346612 | Q20: -1.578 | R20: 0 | S20: 0 | T20: 0 | U20: 0 | V20: 0 | W20: 0 | X20: 0 | Y20: 0 | Z20: 0 | AA20: 0 | AB20: 0 | AC20: 0 | AD20: 0 | AE20: 0 | AF20: 0 | AG20: 0 | AH20: 0 | AI20: 0 | AJ20: 0 | AK20: 0 | AL20: 0 | AM20: 0 | AN20: 0 | AO20: 0 | AP20: 0 | AQ20: 0 | AR20: 0 | AS20: 0 | AT20: 0 | AU20: 0 | AV20: 0 | AW20: 0 | AX20: 0
E21: Capex | G21: =CONCATENATE($I$9,"m nominal") -> £m nominal | K21: 0 | L21: 0 | M21: 0 | N21: 0 | O21: 0 | P21: 0 | Q21: 20.16552582 | R21: 42.97562091 | S21: 44.59211966 | T21: 113.0361652 | U21: 176.4051121 | V21: 122.0385712 | W21: 39.35533285 | X21: -0.265193023 | Y21: 0 | Z21: 0 | AA21: 0 | AB21: 0 | AC21: 0 | AD21: 0 | AE21: 0 | AF21: 0 | AG21: 0 | AH21: 0 | AI21: 0 | AJ21: 0 | AK21: 0 | AL21: 0 | AM21: 0 | AN21: 0 | AO21: 0 | AP21: 0 | AQ21: 0 | AR21: 0 | AS21: 0 | AT21: 0 | AU21: 0 | AV21: 0 | AW21: 0 | AX21: 0
E22: Spares | G22: =CONCATENATE($I$9,"m nominal") -> £m nominal | K22: 0 | L22: 0 | M22: 0 | N22: 0 | O22: 0 | P22: 0 | Q22: 0.097881745 | R22: 0.283152073 | S22: 0.187867474 | T22: 0.754773922 | U22: 2.883968361 | V22: 0.818726915 | W22: 0.743830612 | X22: 0 | Y22: 0 | Z22: 0 | AA22: 0 | AB22: 0 | AC22: 0 | AD22: 0 | AE22: 0 | AF22: 0 | AG22: 0 | AH22: 0 | AI22: 0 | AJ22: 0 | AK22: 0 | AL22: 0 | AM22: 0 | AN22: 0 | AO22: 0 | AP22: 0 | AQ22: 0 | AR22: 0 | AS22: 0 | AT22: 0 | AU22: 0 | AV22: 0 | AW22: 0 | AX22: 0
E24: Base year average UK RPI inflation index value (CHAW) | G24: Jan 1987 = 100 | H24: UK RPI index 2015/16 | I24: 259.4333333
E25: Base year EU inflation index value | G25: Dec 2011 = 100
E26: Base year average exchange rate (XUMAERS) | G26: GBP / EUR
E28: 12-month average UK RPI inflation index value (CHAW) | G28: =G24 -> Jan 1987 = 100 | H28: UK RPI index t | K28: 215.7666667 | L28: 226.475 | M28: 237.3416667 | N28: 244.675 | O28: 251.7333333 | P28: 256.6666667 | Q28: 259.4333333 | R28: 264.9916667 | S28: 274.9083333 | T28: 283.3083333 | U28: 290.6416667 | V28: 294.1666667 | W28: 311.1583333 | X28: =W28*(1+$I$103) -> 319.6109495 | Y28: =X28*(1+$I$103) -> 328.2931809 | Z28: 337.2112652 | AA28: 346.3716092 | AB28: 355.7807939 | AC28: 365.4455792 | AD28: 375.3729084 | AE28: 385.5699134 | AF28: 396.0439201 | AG28: 406.8024532 | AH28: 417.8532419 | AI28: 429.2042252 | AJ28: 440.8635579 | AK28: 452.8396165 | AL28: 465.1410047 | AM28: 477.7765601 | AN28: 490.7553603 | AO28: 504.0867297 | AP28: 517.7802457 | AQ28: 531.8457461 | AR28: 546.2933358 | AS28: 561.1333942 | AT28: 576.3765829 | AU28: 592.0338528 | AV28: 608.1164524 | AW28: 624.6359358 | AX28: 641.604171
E29: 12 month average EU RPI inflation index value | G29: =G25 -> Dec 2011 = 100
E30: 12 month average exchange rate (XUMAERS) | G30: GBP / EUR
E32: Indexation factor | H32: =IF(I6=100%,"CRPIt","PPPIt") -> CRPIt | K32: =IF($I$6=100%,(K28/$I$24),($I$6*(K28/$I$24)+$I$7*(K29/$I$25)/(K30/$I$26))) -> 0.8316844406 | L32: =IF($I$6=100%,(L28/$I$24),($I$6*(L28/$I$24)+$I$7*(L29/$I$25)/(L30/$I$26))) -> 0.8729602982 | M32: =IF($I$6=100%,(M28/$I$24),($I$6*(M28/$I$24)+$I$7*(M29/$I$25)/(M30/$I$26))) -> 0.9148464604 | N32: =IF($I$6=100%,(N28/$I$24),($I$6*(N28/$I$24)+$I$7*(N29/$I$25)/(N30/$I$26))) -> 0.9431131955 | O32: 0.9703199282 | P32: 0.9893357319 | Q32: =IF($I$6=100%,(Q28/$I$24),($I$6*(Q28/$I$24)+$I$7*(Q29/$I$25)/(Q30/$I$26))) -> 1 | R32: 1.021424901 | S32: 1.059649236 | T32: 1.092027496 | U32: 1.120294231 | V32: 1.133881537 | W32: 1.199376847 | X32: 1.231957919 | Y32: 1.265424056 | Z32: 1.299799301 | AA32: 1.335108349 | AB32: 1.371376567 | AC32: 1.408630011 | AD32: 1.446895446 | AE32: 1.48620036 | AF32: 1.526572993 | AG32: 1.568042348 | AH32: 1.610638219 | AI32: 1.654391206 | AJ32: 1.699332743 | AK32: 1.745495117 | AL32: 1.792911492 | AM32: 1.841615933 | AN32: 1.891643429 | AO32: 1.943029923 | AP32: 1.995812331 | AQ32: 2.050028573 | AR32: 2.105717599 | AS32: 2.162919418 | AT32: 2.221675124 | AU32: 2.282026929 | AV32: 2.34401819 | AW32: 2.407693444 | AX32: 2.473098437
E34: =E20 -> Development costs | G34: =$I$11 -> £m 15/16 prices | K34: =IF($I$9="£",K20/K$32,K20/K$32/K$30) -> 0 | L34: =IF($I$9="£",L20/L$32,L20/L$32/L$30) -> 0.3805785563 | M34: =IF($I$9="£",M20/M$32,M20/M$32/M$30) -> 0.5577149414 | N34: =IF($I$9="£",N20/N$32,N20/N$32/N$30) -> 6.852351426 | O34: 1.439655066 | P34: 3.905111274 | Q34: -1.578 | R34: 0 | S34: 0 | T34: 0 | U34: 0 | V34: 0 | W34: 0 | X34: 0 | Y34: 0 | Z34: 0 | AA34: 0 | AB34: 0 | AC34: 0 | AD34: 0 | AE34: 0 | AF34: 0 | AG34: 0 | AH34: 0 | AI34: 0 | AJ34: 0 | AK34: 0 | AL34: 0 | AM34: 0 | AN34: 0 | AO34: 0 | AP34: 0 | AQ34: 0 | AR34: 0 | AS34: 0 | AT34: 0 | AU34: 0 | AV34: 0 | AW34: 0 | AX34: 0
E35: =E21 -> Capex | G35: =$I$11 -> £m 15/16 prices | K35: =IF($I$9="£",K21/K$32,K21/K$32) -> 0 | L35: 0 | M35: =IF($I$9="£",M21/M$32,M21/M$32/M$30) -> 0 | N35: =IF($I$9="£",N21/N$32,N21/N$32/N$30) -> 0 | O35: =IF($I$9="£",O21/O$32,O21/O$32/O$30) -> 0 | P35: 0 | Q35: 20.16552582 | R35: 42.07418567 | S35: 42.08196275 | T35: 103.5103655 | U35: 157.4631978 | V35: 107.6290311 | W35: 32.81315038 | X35: -0.2152614297 | Y35: 0 | Z35: 0 | AA35: 0 | AB35: 0 | AC35: 0 | AD35: 0 | AE35: 0 | AF35: 0 | AG35: 0 | AH35: 0 | AI35: 0 | AJ35: 0 | AK35: 0 | AL35: 0 | AM35: 0 | AN35: 0 | AO35: 0 | AP35: 0 | AQ35: 0 | AR35: 0 | AS35: 0 | AT35: 0 | AU35: 0 | AV35: 0 | AW35: 0 | AX35: 0
E36: =E22 -> Spares | G36: =$I$11 -> £m 15/16 prices | K36: 0 | L36: 0 | M36: =IF($I$9="£",M22/M$32,M22/M$32/M$30) -> 0 | N36: =IF($I$9="£",N22/N$32,N22/N$32/N$30) -> 0 | O36: =IF($I$9="£",O22/O$32,O22/O$32/O$30) -> 0 | P36: 0 | Q36: 0.09788174499 | R36: 0.277212816 | S36: 0.1772921337 | T36: 0.691167507 | U36: 2.574295467 | V36: 0.7220568361 | W36: 0.6201808996 | X36: 0 | Y36: 0 | Z36: 0 | AA36: 0 | AB36: 0 | AC36: 0 | AD36: 0 | AE36: 0 | AF36: 0 | AG36: 0 | AH36: 0 | AI36: 0 | AJ36: 0 | AK36: 0 | AL36: 0 | AM36: 0 | AN36: 0 | AO36: 0 | AP36: 0 | AQ36: 0 | AR36: 0 | AS36: 0 | AT36: 0 | AU36: 0 | AV36: 0 | AW36: 0 | AX36: 0
C38: Ex-ante allowances for the operational period
E40: Operational Year | K40: Year 1 | L40: Year 2 | M40: Year 3 | N40: Year 4 | O40: Year 5 | P40: Year 6 | Q40: Year 7 | R40: Year 8 | S40: Year 9 | T40: Year 10 | U40: Year 11 | V40: Year 12 | W40: Year 13 | X40: Year 14 | Y40: Year 15 | Z40: Year 16 | AA40: Year 17 | AB40: Year 18 | AC40: Year 19 | AD40: Year 20 | AE40: Year 21 | AF40: Year 22 | AG40: Year 23 | AH40: Year 24 | AI40: Year 25
E42: Replacement Capex | G42: £m 20/21 prices | K42: 0 | L42: 1.044301352 | M42: 0 | N42: 0 | O42: 0.9406535808 | P42: 0 | Q42: 0.9344906103 | R42: 7.670863589 | S42: 0 | T42: 0.7449996607 | U42: 0.8109082757 | V42: 1.459208212 | W42: 2.184481561 | X42: 0 | Y42: 0 | Z42: 0.2594906103 | AA42: 43.98320133 | AB42: 0.4446 | AC42: 0.1297453051 | AD42: 0.3003996607 | AE42: 0.02808 | AF42: 0.67518175 | AG42: 0.9747082757 | AH42: 0 | AI42: 0.42588
E43: Decommissioning baseline | G43: £m 20/21 prices | K43: 0 | L43: 0 | M43: 0 | N43: 0 | O43: 0 | P43: 0 | Q43: 0 | R43: 0 | S43: 0 | T43: 0 | U43: 0 | V43: 0 | W43: 0 | X43: 0 | Y43: 0 | Z43: 0 | AA43: 0 | AB43: 0 | AC43: 0 | AD43: 0 | AE43: 0 | AF43: 0 | AG43: 0 | AH43: 0 | AI43: 27.45723394
E44: Controllable Opex | G44: £m 20/21 prices | K44: 21.05072859 | L44: 25.88285117 | M44: 28.60981772 | N44: 29.47017585 | O44: 26.05574613 | P44: 24.85811169 | Q44: 25.01498497 | R44: 25.82685659 | S44: 25.83035546 | T44: 26.01045734 | U44: 26.26659633 | V44: 26.356928 | W44: 26.6223955 | X44: 26.48603579 | Y44: 26 | Z44: 26.87049043 | AA44: 26.95242479 | AB44: 27.25084535 | AC44: 27.105596 | AD44: 27.23855116 | AE44: 27.52006608 | AF44: 27.59176822 | AG44: 27.8826811 | AH44: 27.77132596 | AI44: 28.09280771
E45: Non-controllable Opex baseline | G45: £m 20/21 prices | K45: 1.305281052 | L45: 1.295385422 | M45: 1.285564813 | N45: 1.275818656 | O45: 1.266146387 | P45: 1.256547446 | Q45: 1.247021276 | R45: 1.237567326 | S45: 1.228185049 | T45: 1.218873901 | U45: 1.209633343 | V45: 1.20046284 | W45: 1.19136186 | X45: 1.182329877 | Y45: 1.173366368 | Z45: 1.164470813 | AA45: 1.155642697 | AB45: 1.146881509 | AC45: 1.138186741 | AD45: 1.129557891 | AE45: 1.120994457 | AF45: 1.112495946 | AG45: 1.104061863 | AH45: 1.095691721 | AI45: 1.087385035
E47: =E24 -> Base year average UK RPI inflation index value (CHAW) | G47: =G24 -> Jan 1987 = 100 | H47: =H24 -> UK RPI index 2015/16 | I47: =I24 -> 259.4333333
G48: =IF(G25="","",G25) -> Dec 2011 = 100
E49: =IF(E26="","",E26) -> Base year average exchange rate (XUMAERS) | G49: GBP / EUR
E51: 2020/21 average UK RPI inflation index value (CHAW) | G51: =G24 -> Jan 1987 = 100 | H51: UK RPI index 2020/21 | I51: 294.1666667
E52: 2020 average EU RPI inflation index value | G52: =IF(G25="","",G25) -> Dec 2011 = 100
E53: 2020 average exchange rate (XUMAERS) | G53: =IF(G26="","",G26) -> GBP / EUR
E55: =E30 -> 12 month average exchange rate (XUMAERS) | G55: =G30 -> GBP / EUR | H55: =IF(H30="","",H30) -> 
E57: Indexation conversion from 20/21 to 15/16 terms | I57: =IF($I$6=100%,(I51/$I$47),$I$6*(I51/$I$47)+$I$7*((I52/$I$48)/(I53/$I$49))) -> 1.133881537
E59: =E42 -> Replacement Capex | G59: =$I$11 -> £m 15/16 prices | I59: =SUM(K59:AI59) -> 55.57123185 | K59: =IF($I$9="£",K42/$I$57,K42/K$55/$I$57) -> 0 | L59: =IF($I$9="£",L42/$I$57,L42/L$55/$I$57) -> 0.9209968749 | M59: 0 | N59: 0 | O59: 0.8295871749 | P59: 0 | Q59: 0.8241518888 | R59: 6.765136692 | S59: 0 | T59: 0.6570348282 | U59: 0.7151613721 | V59: 1.286914166 | W59: 1.92655184 | X59: 0 | Y59: 0 | Z59: 0.2288516056 | AA59: 38.78994401 | AB59: 0.3921044532 | AC59: 0.1144258028 | AD59: 0.264930375 | AE59: 0.02476449178 | AF59: 0.5954605733 | AG59: 0.8596209075 | AH59: 0 | AI59: 0.375594792
E60: =E43 -> Decommissioning baseline | G60: £m 15/16 prices | I60: =SUM(K60:AI60) -> 24.21525798 | K60: =IF($I$9="£",K43/$I$57,K43/K$55/$I$57) -> 0 | L60: 0 | M60: 0 | N60: 0 | O60: 0 | P60: 0 | Q60: 0 | R60: 0 | S60: 0 | T60: 0 | U60: 0 | V60: 0 | W60: 0 | X60: 0 | Y60: 0 | Z60: 0 | AA60: 0 | AB60: 0 | AC60: 0 | AD60: 0 | AE60: 0 | AF60: 0 | AG60: 0 | AH60: 0 | AI60: 24.21525798
E61: Controllable Opex | G61: £m 15/16 prices | I61: 586.1446512 | K61: =IF($I$9="£",K44/$I$57,K44/K$55/$I$57) -> 18.56519214 | L61: =IF($I$9="£",L44/$I$57,L44/L$55/$I$57) -> 22.82676834 | M61: 25.23175199 | N61: 25.99052449 | O61: 22.97924896 | P61: 21.9230236 | Q61: 22.06137428 | R61: 22.77738525 | S61: 22.78047099 | T61: 22.93930759 | U61: 23.16520331 | V61: 23.24486919 | W61: 23.47899197 | X61: 23.35873275 | Y61: 22.93008498 | Z61: 23.69779343 | AA61: 23.7700535 | AB61: 24.03323845 | AC61: 23.90513922 | AD61: 24.02239588 | AE61: 24.2706713 | AF61: 24.33390731 | AG61: 24.59047105 | AH61: 24.49226401 | AI61: 24.77578724
E62: Non-controllable Opex baseline | G62: £m 15/16 prices | I62: 26.30690537 | K62: =IF($I$9="£",K45/$I$57,K45/K$55/$I$57) -> 1.151161748 | L62: 1.142434531 | M62: 1.133773477 | N62: 1.125178085 | O62: 1.116647856 | P62: 1.108182297 | Q62: 1.099780917 | R62: 1.091443229 | S62: 1.083168752 | T62: 1.074957005 | U62: 1.066807514 | V62: 1.058719805 | W62: 1.050693412 | X62: 1.042727868 | Y62: 1.034822713 | Z62: 1.026977488 | AA62: 1.01919174 | AB62: 1.011465018 | AC62: 1.003796873 | AD62: 0.9961868625 | AE62: 0.9886345452 | AF62: 0.9811394836 | AG62: 0.9737012439 | AH62: 0.966319395 | AI62: 0.9589935097
B64: Variables set at financial close
C66: Finance
E68: Cap return rate | G68: real annual % | I68: 0.0798
E69: Floor return rate | G69: real annual % | I69: 0.0088
E70: Interest during construction (IDC) rate | G70: real annual % | I70: 0.0637
E71: Cost of debt (for tax) | G71: real annual % | I71: =I69 -> 0.0088
E73: Pre-operational notional gearing | G73: % | I73: 0.3341
E74: Operational notional gearing | G74: % | I74: 0.5
E76: Equity transaction costs | G76: % | I76: 0.05
E77: Debt transaction costs | G77: % | I77: 0.025
C79: Model operation
C80: Note: changes in these variables may require structural changes to the model.
E81: Year commencing | K81: =$I$84 -> 2009-04-01 | L81: =+K82+1 -> 2010-04-01 | M81: =+L82+1 -> 2011-04-01 | N81: =+M82+1 -> 2012-04-01 | O81: =+N82+1 -> 2013-04-01 | P81: =+O82+1 -> 2014-04-01 | Q81: =+P82+1 -> 2015-04-01 | R81: =+Q82+1 -> 2016-04-01 | S81: =+R82+1 -> 2017-04-01 | T81: =+S82+1 -> 2018-04-01 | U81: =+T82+1 -> 2019-04-01 | V81: =+U82+1 -> 2020-04-01 | W81: =+V82+1 -> 2021-04-01 | X81: =+W82+1 -> 2022-04-01 | Y81: =+X82+1 -> 2023-04-01 | Z81: =+Y82+1 -> 2024-04-01 | AA81: =+Z82+1 -> 2025-04-01 | AB81: =+AA82+1 -> 2026-04-01 | AC81: =+AB82+1 -> 2027-04-01 | AD81: =+AC82+1 -> 2028-04-01 | AE81: =+AD82+1 -> 2029-04-01 | AF81: =+AE82+1 -> 2030-04-01 | AG81: =+AF82+1 -> 2031-04-01 | AH81: =+AG82+1 -> 2032-04-01 | AI81: =+AH82+1 -> 2033-04-01 | AJ81: =+AI82+1 -> 2034-04-01 | AK81: =+AJ82+1 -> 2035-04-01 | AL81: =+AK82+1 -> 2036-04-01 | AM81: =+AL82+1 -> 2037-04-01 | AN81: =+AM82+1 -> 2038-04-01 | AO81: =+AN82+1 -> 2039-04-01 | AP81: =+AO82+1 -> 2040-04-01 | AQ81: =+AP82+1 -> 2041-04-01 | AR81: =+AQ82+1 -> 2042-04-01 | AS81: =+AR82+1 -> 2043-04-01 | AT81: =+AS82+1 -> 2044-04-01 | AU81: =+AT82+1 -> 2045-04-01 | AV81: =+AU82+1 -> 2046-04-01 | AW81: =+AV82+1 -> 2047-04-01 | AX81: =+AW82+1 -> 2048-04-01
E82: Year ending | K82: =EOMONTH(K81,11) -> 2010-03-31 | L82: =DATE(YEAR(K82) + 1, MONTH(K82), DAY(K82)) -> 2011-03-31 | M82: =DATE(YEAR(L82) + 1, MONTH(L82), DAY(L82)) -> 2012-03-31 | N82: =DATE(YEAR(M82) + 1, MONTH(M82), DAY(M82)) -> 2013-03-31 | O82: =DATE(YEAR(N82) + 1, MONTH(N82), DAY(N82)) -> 2014-03-31 | P82: =DATE(YEAR(O82) + 1, MONTH(O82), DAY(O82)) -> 2015-03-31 | Q82: =DATE(YEAR(P82) + 1, MONTH(P82), DAY(P82)) -> 2016-03-31 | R82: =DATE(YEAR(Q82) + 1, MONTH(Q82), DAY(Q82)) -> 2017-03-31 | S82: =DATE(YEAR(R82) + 1, MONTH(R82), DAY(R82)) -> 2018-03-31 | T82: =DATE(YEAR(S82) + 1, MONTH(S82), DAY(S82)) -> 2019-03-31 | U82: =DATE(YEAR(T82) + 1, MONTH(T82), DAY(T82)) -> 2020-03-31 | V82: =DATE(YEAR(U82) + 1, MONTH(U82), DAY(U82)) -> 2021-03-31 | W82: =DATE(YEAR(V82) + 1, MONTH(V82), DAY(V82)) -> 2022-03-31 | X82: =DATE(YEAR(W82) + 1, MONTH(W82), DAY(W82)) -> 2023-03-31 | Y82: =DATE(YEAR(X82) + 1, MONTH(X82), DAY(X82)) -> 2024-03-31 | Z82: =DATE(YEAR(Y82) + 1, MONTH(Y82), DAY(Y82)) -> 2025-03-31 | AA82: =DATE(YEAR(Z82) + 1, MONTH(Z82), DAY(Z82)) -> 2026-03-31 | AB82: =DATE(YEAR(AA82) + 1, MONTH(AA82), DAY(AA82)) -> 2027-03-31 | AC82: =DATE(YEAR(AB82) + 1, MONTH(AB82), DAY(AB82)) -> 2028-03-31 | AD82: =DATE(YEAR(AC82) + 1, MONTH(AC82), DAY(AC82)) -> 2029-03-31 | AE82: =DATE(YEAR(AD82) + 1, MONTH(AD82), DAY(AD82)) -> 2030-03-31 | AF82: =DATE(YEAR(AE82) + 1, MONTH(AE82), DAY(AE82)) -> 2031-03-31 | AG82: =DATE(YEAR(AF82) + 1, MONTH(AF82), DAY(AF82)) -> 2032-03-31 | AH82: =DATE(YEAR(AG82) + 1, MONTH(AG82), DAY(AG82)) -> 2033-03-31 | AI82: =DATE(YEAR(AH82) + 1, MONTH(AH82), DAY(AH82)) -> 2034-03-31 | AJ82: =DATE(YEAR(AI82) + 1, MONTH(AI82), DAY(AI82)) -> 2035-03-31 | AK82: =DATE(YEAR(AJ82) + 1, MONTH(AJ82), DAY(AJ82)) -> 2036-03-31 | AL82: =DATE(YEAR(AK82) + 1, MONTH(AK82), DAY(AK82)) -> 2037-03-31 | AM82: =DATE(YEAR(AL82) + 1, MONTH(AL82), DAY(AL82)) -> 2038-03-31 | AN82: =DATE(YEAR(AM82) + 1, MONTH(AM82), DAY(AM82)) -> 2039-03-31 | AO82: =DATE(YEAR(AN82) + 1, MONTH(AN82), DAY(AN82)) -> 2040-03-31 | AP82: =DATE(YEAR(AO82) + 1, MONTH(AO82), DAY(AO82)) -> 2041-03-31 | AQ82: =DATE(YEAR(AP82) + 1, MONTH(AP82), DAY(AP82)) -> 2042-03-31 | AR82: =DATE(YEAR(AQ82) + 1, MONTH(AQ82), DAY(AQ82)) -> 2043-03-31 | AS82: =DATE(YEAR(AR82) + 1, MONTH(AR82), DAY(AR82)) -> 2044-03-31 | AT82: =DATE(YEAR(AS82) + 1, MONTH(AS82), DAY(AS82)) -> 2045-03-31 | AU82: =DATE(YEAR(AT82) + 1, MONTH(AT82), DAY(AT82)) -> 2046-03-31 | AV82: =DATE(YEAR(AU82) + 1, MONTH(AU82), DAY(AU82)) -> 2047-03-31 | AW82: =DATE(YEAR(AV82) + 1, MONTH(AV82), DAY(AV82)) -> 2048-03-31 | AX82: =DATE(YEAR(AW82) + 1, MONTH(AW82), DAY(AW82)) -> 2049-03-31
E84: Model start date | G84: date | I84: 2009-04-01
E85: Regime start date | G85: date | I85: 2021-01-01
E86: End date for IDC | G86: date | I86: 2021-09-30
E87: Start of operations | G87: date | I87: 2021-10-01
E88: Regime end date | G88: date | I88: =DATE(YEAR($I$85)+I89,MONTH($I$85),DAY($I$85))-1 -> 2045-12-31
E89: Number of operational years | G89: full years | I89: 25
E91: Days in year | G91: days | K91: =K$82-K$81+1 -> 365 | L91: 365 | M91: 366 | N91: 365 | O91: 365 | P91: 365 | Q91: 366 | R91: 365 | S91: 365 | T91: 365 | U91: 366 | V91: 365 | W91: 365 | X91: 365 | Y91: 366 | Z91: 365 | AA91: 365 | AB91: 365 | AC91: 366 | AD91: 365 | AE91: 365 | AF91: 365 | AG91: 366 | AH91: 365 | AI91: 365 | AJ91: 365 | AK91: 366 | AL91: 365 | AM91: 365 | AN91: 365 | AO91: 366 | AP91: 365 | AQ91: 365 | AR91: 365 | AS91: 366 | AT91: 365 | AU91: 365 | AV91: 365 | AW91: 366 | AX91: 365
E92: IDC flag | G92: flag | K92: =IF($I$86>=K$82,1,IF($I$86>=K$81,($I$86-K$81+1)/K$91,0)) -> 1 | L92: 1 | M92: 1 | N92: 1 | O92: 1 | P92: 1 | Q92: 1 | R92: 1 | S92: 1 | T92: 1 | U92: 1 | V92: 1 | W92: 0.501369863 | X92: 0 | Y92: 0 | Z92: 0 | AA92: 0 | AB92: 0 | AC92: 0 | AD92: 0 | AE92: 0 | AF92: 0 | AG92: 0 | AH92: 0 | AI92: 0 | AJ92: 0 | AK92: 0 | AL92: 0 | AM92: 0 | AN92: 0 | AO92: 0 | AP92: 0 | AQ92: 0 | AR92: 0 | AS92: 0 | AT92: 0 | AU92: 0 | AV92: 0 | AW92: 0 | AX92: 0
E93: Post-IDC and pre-operations flag | G93: flag | K93: =IF(OR(K92=1,K94=1),0,IF($I$87<K81,0,IF($I$87<K82,($I$87-(MAX($I$86+1,K81)))/K91,MIN(1,(K82-$I$86)/K91)))) -> 0 | L93: =IF(OR(L92=1,L94=1),0,IF($I$87<L81,0,IF($I$87<L82,($I$87-(MAX($I$86+1,L81)))/L91,MIN(1,(L82-$I$86)/L91)))) -> 0 | M93: 0 | N93: 0 | O93: 0 | P93: 0 | Q93: 0 | R93: 0 | S93: 0 | T93: 0 | U93: 0 | V93: 0 | W93: 0 | X93: 0 | Y93: 0 | Z93: 0 | AA93: 0 | AB93: 0 | AC93: 0 | AD93: 0 | AE93: 0 | AF93: 0 | AG93: 0 | AH93: 0 | AI93: 0 | AJ93: 0 | AK93: 0 | AL93: 0 | AM93: 0 | AN93: 0 | AO93: 0 | AP93: 0 | AQ93: 0 | AR93: 0 | AS93: 0 | AT93: 0 | AU93: 0 | AV93: 0 | AW93: 0 | AX93: 0
E94: Operations flag | G94: flag | K94: =IF(OR($I$87>K$82,$I$88<K$81),0,IF($I$87>=K$81,(K$82-$I$87+1)/K$91,IF($I$88<=K$82,($I$88-K$81+1)/K$91,1))) -> 0 | L94: 0 | M94: 0 | N94: 0 | O94: 0 | P94: 0 | Q94: 0 | R94: 0 | S94: 0 | T94: 0 | U94: 0 | V94: 0 | W94: 0.498630137 | X94: 1 | Y94: 1 | Z94: 1 | AA94: 1 | AB94: 1 | AC94: 1 | AD94: 1 | AE94: 1 | AF94: 1 | AG94: 1 | AH94: 1 | AI94: 1 | AJ94: 1 | AK94: 1 | AL94: 1 | AM94: 1 | AN94: 1 | AO94: 1 | AP94: 1 | AQ94: 1 | AR94: 1 | AS94: 1 | AT94: 1 | AU94: 0.7534246575 | AV94: 0 | AW94: 0 | AX94: 0
E95: Transfer construction to operations flag | G95: flag | H95: ` | K95: =IF(AND(SUM(K34:K36)<>0,SUM(L34:$AX36)=0),1,0) -> 0 | L95: =IF(AND(SUM(L34:L36)<>0,SUM(M34:$AX36)=0),1,0) -> 0 | M95: =IF(AND(SUM(M34:M36)<>0,SUM(N34:$AX36)=0),1,0) -> 0 | N95: =IF(AND(SUM(N34:N36)<>0,SUM(O34:$AX36)=0),1,0) -> 0 | O95: =IF(AND(SUM(O34:O36)<>0,SUM(P34:$AX36)=0),1,0) -> 0 | P95: =IF(AND(SUM(P34:P36)<>0,SUM(Q34:$AX36)=0),1,0) -> 0 | Q95: =IF(AND(SUM(Q34:Q36)<>0,SUM(R34:$AX36)=0),1,0) -> 0 | R95: =IF(AND(SUM(R34:R36)<>0,SUM(S34:$AX36)=0),1,0) -> 0 | S95: =IF(AND(SUM(S34:S36)<>0,SUM(T34:$AX36)=0),1,0) -> 0 | T95: =IF(AND(SUM(T34:T36)<>0,SUM(U34:$AX36)=0),1,0) -> 0 | U95: =IF(AND(SUM(U34:U36)<>0,SUM(V34:$AX36)=0),1,0) -> 0 | V95: =IF(AND(SUM(V34:V36)<>0,SUM(W34:$AX36)=0),1,0) -> 0 | W95: =IF(AND(SUM(W34:W36)<>0,SUM(X34:$AX36)=0),1,0) -> 0 | X95: =IF(AND(SUM(X34:X36)<>0,SUM(Y34:$AX36)=0),1,0) -> 1 | Y95: =IF(AND(SUM(Y34:Y36)<>0,SUM(Z34:$AX36)=0),1,0) -> 0 | Z95: =IF(AND(SUM(Z34:Z36)<>0,SUM(AA34:$AX36)=0),1,0) -> 0 | AA95: =IF(AND(SUM(AA34:AA36)<>0,SUM(AB34:$AX36)=0),1,0) -> 0 | AB95: =IF(AND(SUM(AB34:AB36)<>0,SUM(AC34:$AX36)=0),1,0) -> 0 | AC95: =IF(AND(SUM(AC34:AC36)<>0,SUM(AD34:$AX36)=0),1,0) -> 0 | AD95: =IF(AND(SUM(AD34:AD36)<>0,SUM(AE34:$AX36)=0),1,0) -> 0 | AE95: =IF(AND(SUM(AE34:AE36)<>0,SUM(AF34:$AX36)=0),1,0) -> 0 | AF95: =IF(AND(SUM(AF34:AF36)<>0,SUM(AG34:$AX36)=0),1,0) -> 0 | AG95: =IF(AND(SUM(AG34:AG36)<>0,SUM(AH34:$AX36)=0),1,0) -> 0 | AH95: =IF(AND(SUM(AH34:AH36)<>0,SUM(AI34:$AX36)=0),1,0) -> 0 | AI95: =IF(AND(SUM(AI34:AI36)<>0,SUM(AJ34:$AX36)=0),1,0) -> 0 | AJ95: =IF(AND(SUM(AJ34:AJ36)<>0,SUM(AK34:$AX36)=0),1,0) -> 0 | AK95: =IF(AND(SUM(AK34:AK36)<>0,SUM(AL34:$AX36)=0),1,0) -> 0 | AL95: =IF(AND(SUM(AL34:AL36)<>0,SUM(AM34:$AX36)=0),1,0) -> 0 | AM95: =IF(AND(SUM(AM34:AM36)<>0,SUM(AN34:$AX36)=0),1,0) -> 0 | AN95: =IF(AND(SUM(AN34:AN36)<>0,SUM(AO34:$AX36)=0),1,0) -> 0 | AO95: =IF(AND(SUM(AO34:AO36)<>0,SUM(AP34:$AX36)=0),1,0) -> 0 | AP95: =IF(AND(SUM(AP34:AP36)<>0,SUM(AQ34:$AX36)=0),1,0) -> 0 | AQ95: =IF(AND(SUM(AQ34:AQ36)<>0,SUM(AR34:$AX36)=0),1,0) -> 0 | AR95: =IF(AND(SUM(AR34:AR36)<>0,SUM(AS34:$AX36)=0),1,0) -> 0 | AS95: =IF(AND(SUM(AS34:AS36)<>0,SUM(AT34:$AX36)=0),1,0) -> 0 | AT95: =IF(AND(SUM(AT34:AT36)<>0,SUM(AU34:$AX36)=0),1,0) -> 0 | AU95: =IF(AND(SUM(AU34:AU36)<>0,SUM(AV34:$AX36)=0),1,0) -> 0 | AV95: =IF(AND(SUM(AV34:AV36)<>0,SUM(AW34:$AX36)=0),1,0) -> 0 | AW95: =IF(AND(SUM(AW34:AW36)<>0,SUM(AX34:$AX36)=0),1,0) -> 0 | AX95: =IF(AND(SUM(AX34:AX36)<>0,SUM($AX34:AZ36)=0),1,0) -> 0
E96: Initial transaction costs flag | G96: flag | K96: =IF(AND(SUM($J35:K35)=0,L35>0),1,0) -> 0 | L96: =IF(AND(SUM($J35:L35)=0,M35>0),1,0) -> 0 | M96: =IF(AND(SUM($J35:M35)=0,N35>0),1,0) -> 0 | N96: =IF(AND(SUM($J35:N35)=0,O35>0),1,0) -> 0 | O96: =IF(AND(SUM($J35:O35)=0,P35>0),1,0) -> 0 | P96: =IF(AND(SUM($J35:P35)=0,Q35>0),1,0) -> 1 | Q96: =IF(AND(SUM($J35:Q35)=0,R35>0),1,0) -> 0 | R96: =IF(AND(SUM($J35:R35)=0,S35>0),1,0) -> 0 | S96: =IF(AND(SUM($J35:S35)=0,T35>0),1,0) -> 0 | T96: =IF(AND(SUM($J35:T35)=0,U35>0),1,0) -> 0 | U96: =IF(AND(SUM($J35:U35)=0,V35>0),1,0) -> 0 | V96: =IF(AND(SUM($J35:V35)=0,W35>0),1,0) -> 0 | W96: =IF(AND(SUM($J35:W35)=0,X35>0),1,0) -> 0 | X96: =IF(AND(SUM($J35:X35)=0,Y35>0),1,0) -> 0 | Y96: =IF(AND(SUM($J35:Y35)=0,Z35>0),1,0) -> 0 | Z96: =IF(AND(SUM($J35:Z35)=0,AA35>0),1,0) -> 0 | AA96: =IF(AND(SUM($J35:AA35)=0,AB35>0),1,0) -> 0 | AB96: =IF(AND(SUM($J35:AB35)=0,AC35>0),1,0) -> 0 | AC96: =IF(AND(SUM($J35:AC35)=0,AD35>0),1,0) -> 0 | AD96: =IF(AND(SUM($J35:AD35)=0,AE35>0),1,0) -> 0 | AE96: =IF(AND(SUM($J35:AE35)=0,AF35>0),1,0) -> 0 | AF96: =IF(AND(SUM($J35:AF35)=0,AG35>0),1,0) -> 0 | AG96: =IF(AND(SUM($J35:AG35)=0,AH35>0),1,0) -> 0 | AH96: =IF(AND(SUM($J35:AH35)=0,AI35>0),1,0) -> 0 | AI96: =IF(AND(SUM($J35:AI35)=0,AJ35>0),1,0) -> 0 | AJ96: =IF(AND(SUM($J35:AJ35)=0,AK35>0),1,0) -> 0 | AK96: =IF(AND(SUM($J35:AK35)=0,AL35>0),1,0) -> 0 | AL96: =IF(AND(SUM($J35:AL35)=0,AM35>0),1,0) -> 0 | AM96: =IF(AND(SUM($J35:AM35)=0,AN35>0),1,0) -> 0 | AN96: =IF(AND(SUM($J35:AN35)=0,AO35>0),1,0) -> 0 | AO96: =IF(AND(SUM($J35:AO35)=0,AP35>0),1,0) -> 0 | AP96: =IF(AND(SUM($J35:AP35)=0,AQ35>0),1,0) -> 0 | AQ96: =IF(AND(SUM($J35:AQ35)=0,AR35>0),1,0) -> 0 | AR96: =IF(AND(SUM($J35:AR35)=0,AS35>0),1,0) -> 0 | AS96: =IF(AND(SUM($J35:AS35)=0,AT35>0),1,0) -> 0 | AT96: =IF(AND(SUM($J35:AT35)=0,AU35>0),1,0) -> 0 | AU96: =IF(AND(SUM($J35:AU35)=0,AV35>0),1,0) -> 0 | AV96: =IF(AND(SUM($J35:AV35)=0,AW35>0),1,0) -> 0 | AW96: =IF(AND(SUM($J35:AW35)=0,AX35>0),1,0) -> 0 | AX96: =IF(AND(SUM($J35:AX35)=0,AZ35>0),1,0) -> 0
C98: Tax - Financial years
E100: Year commencing | K100: =K17 -> 2009-04-01 | L100: =+K101+1 -> 2010-04-01 | M100: =+L101+1 -> 2011-04-01 | N100: =+M101+1 -> 2012-04-01 | O100: 2013-04-01 | P100: 2014-04-01 | Q100: 2015-04-01 | R100: 2016-04-01 | S100: 2017-04-01 | T100: 2018-04-01 | U100: 2019-04-01 | V100: 2020-04-01 | W100: 2021-04-01 | X100: 2022-04-01 | Y100: 2023-04-01 | Z100: 2024-04-01 | AA100: 2025-04-01 | AB100: 2026-04-01 | AC100: 2027-04-01 | AD100: 2028-04-01 | AE100: 2029-04-01 | AF100: 2030-04-01 | AG100: 2031-04-01 | AH100: 2032-04-01 | AI100: 2033-04-01 | AJ100: 2034-04-01 | AK100: 2035-04-01 | AL100: 2036-04-01 | AM100: 2037-04-01 | AN100: 2038-04-01 | AO100: 2039-04-01 | AP100: 2040-04-01 | AQ100: 2041-04-01 | AR100: 2042-04-01 | AS100: 2043-04-01 | AT100: 2044-04-01 | AU100: 2045-04-01 | AV100: 2046-04-01 | AW100: 2047-04-01 | AX100: 2048-04-01
E101: Year ending | K101: =K18 -> 2010-03-31 | L101: =DATE(YEAR(K101) + 1, MONTH(K101), DAY(K101)) -> 2011-03-31 | M101: 2012-03-31 | N101: 2013-03-31 | O101: 2014-03-31 | P101: 2015-03-31 | Q101: 2016-03-31 | R101: 2017-03-31 | S101: 2018-03-31 | T101: 2019-03-31 | U101: 2020-03-31 | V101: 2021-03-31 | W101: 2022-03-31 | X101: 2023-03-31 | Y101: 2024-03-31 | Z101: 2025-03-31 | AA101: 2026-03-31 | AB101: 2027-03-31 | AC101: 2028-03-31 | AD101: 2029-03-31 | AE101: 2030-03-31 | AF101: 2031-03-31 | AG101: 2032-03-31 | AH101: 2033-03-31 | AI101: 2034-03-31 | AJ101: 2035-03-31 | AK101: 2036-03-31 | AL101: 2037-03-31 | AM101: 2038-03-31 | AN101: 2039-03-31 | AO101: 2040-03-31 | AP101: 2041-03-31 | AQ101: 2042-03-31 | AR101: 2043-03-31 | AS101: 2044-03-31 | AT101: 2045-03-31 | AU101: 2046-03-31 | AV101: 2047-03-31 | AW101: 2048-03-31 | AX101: 2049-03-31
E103: Long-term expected UK RPI inflation | G103: % | I103: 0.027165
E104: =E24 -> Base year average UK RPI inflation index value (CHAW) | G104: =G24 -> Jan 1987 = 100 | H104: =H24 -> UK RPI index 2015/16 | I104: =I24 -> 259.4333333
E106: =E28 -> 12-month average UK RPI inflation index value (CHAW) | G106: =G28 -> Jan 1987 = 100 | H106: =H28 -> UK RPI index t | K106: =K28 -> 215.7666667 | L106: 226.475 | M106: 237.3416667 | N106: 244.675 | O106: 251.7333333 | P106: 256.6666667 | Q106: 259.4333333 | R106: 264.9916667 | S106: 274.9083333 | T106: 283.3083333 | U106: 290.6416667 | V106: 294.1666667 | W106: 311.1583333 | X106: 319.6109495 | Y106: 328.2931809 | Z106: 337.2112652 | AA106: 346.3716092 | AB106: 355.7807939 | AC106: 365.4455792 | AD106: 375.3729084 | AE106: 385.5699134 | AF106: 396.0439201 | AG106: 406.8024532 | AH106: 417.8532419 | AI106: 429.2042252 | AJ106: 440.8635579 | AK106: 452.8396165 | AL106: 465.1410047 | AM106: 477.7765601 | AN106: 490.7553603 | AO106: 504.0867297 | AP106: 517.7802457 | AQ106: 531.8457461 | AR106: 546.2933358 | AS106: 561.1333942 | AT106: 576.3765829 | AU106: 592.0338528 | AV106: 608.1164524 | AW106: 624.6359358 | AX106: 641.604171
E107: UK RPI inflation uplift from 2015/16 term | G107: scalar | K107: =K106/$I$104 -> 0.8316844406 | L107: =L106/$I$104 -> 0.8729602982 | M107: 0.9148464604 | N107: 0.9431131955 | O107: 0.9703199282 | P107: 0.9893357319 | Q107: 1 | R107: 1.021424901 | S107: 1.059649236 | T107: 1.092027496 | U107: 1.120294231 | V107: 1.133881537 | W107: 1.199376847 | X107: 1.231957919 | Y107: 1.265424056 | Z107: 1.299799301 | AA107: 1.335108349 | AB107: 1.371376567 | AC107: 1.408630011 | AD107: 1.446895446 | AE107: 1.48620036 | AF107: 1.526572993 | AG107: 1.568042348 | AH107: 1.610638219 | AI107: 1.654391206 | AJ107: 1.699332743 | AK107: 1.745495117 | AL107: 1.792911492 | AM107: 1.841615933 | AN107: 1.891643429 | AO107: 1.943029923 | AP107: 1.995812331 | AQ107: 2.050028573 | AR107: 2.105717599 | AS107: 2.162919418 | AT107: 2.221675124 | AU107: 2.282026929 | AV107: 2.34401819 | AW107: 2.407693444 | AX107: 2.473098437
C109: Tax - Operational years
E111: Operational Year | K111: Year 1 | L111: Year 2 | M111: Year 3 | N111: Year 4 | O111: Year 5 | P111: Year 6 | Q111: Year 7 | R111: Year 8 | S111: Year 9 | T111: Year 10 | U111: Year 11 | V111: Year 12 | W111: Year 13 | X111: Year 14 | Y111: Year 15 | Z111: Year 16 | AA111: Year 17 | AB111: Year 18 | AC111: Year 19 | AD111: Year 20 | AE111: Year 21 | AF111: Year 22 | AG111: Year 23 | AH111: Year 24 | AI111: Year 25
E113: Corporation tax rate | G113: % | K113: 0.2 | L113: 0.2 | M113: 0.2 | N113: 0.2 | O113: 0.2 | P113: 0.2 | Q113: 0.2 | R113: 0.2 | S113: 0.2 | T113: 0.2 | U113: 0.2 | V113: 0.2 | W113: 0.2 | X113: 0.2 | Y113: 0.2 | Z113: 0.2 | AA113: 0.2 | AB113: 0.2 | AC113: 0.2 | AD113: 0.2 | AE113: 0.2 | AF113: 0.2 | AG113: 0.2 | AH113: 0.2 | AI113: 0.2
E114: Capital allowance rate (declining balance) | G114: % | K114: 0.08 | L114: 0.08 | M114: 0.08 | N114: 0.08 | O114: 0.08 | P114: 0.08 | Q114: 0.08 | R114: 0.08 | S114: 0.08 | T114: 0.08 | U114: 0.08 | V114: 0.08 | W114: 0.08 | X114: 0.08 | Y114: 0.08 | Z114: 0.08 | AA114: 0.08 | AB114: 0.08 | AC114: 0.08 | AD114: 0.08 | AE114: 0.08 | AF114: 0.08 | AG114: 0.08 | AH114: 0.08 | AI114: 0.08
E116: =E103 -> Long-term expected UK RPI inflation | G116: % | I116: =I103 -> 0.027165
E117: Start of price base year | G117: date | I117: 2015-04-01
E118: End of price base year | G118: date | I118: =EOMONTH(I117,11) -> 2016-03-31
E119: UK RPI uplift from 2015/16 term to start of regime | G119: scalar | I119: =(1+$I$116)^((I85-AVERAGE(I117,I118))/365.25) -> 1.151258535
C121: Tax - Annuity
E123: Tax element of Cap and Floor annuity previously calculated and fixed | G123: choice | I123: No
B125: End of sheet

Sheet Data Sources
A1: Data Sources | H1: Licence | I1: Reference row in
E2: Parameter | G2: Units | H2: Terminology | I2: Inputs sheet | K2: Source | L2: Link
B4: Indexation, currency and base year price term
E6: =Inputs!E6 -> GB indexed portion of interconnector | G6: =Inputs!G6 -> choice % | I6: =ROW(Inputs!E6) -> 6 | K6: NSL licence - Special conditions - Schedule 1
E7: =Inputs!E9 -> Currency of cost inputs | G7: =Inputs!G9 -> choice | I7: =ROW(Inputs!E9) -> 9 | K7: Post Construction Review (PCR) decision
E8: =Inputs!E11 -> Base year price term | G8: =Inputs!G11 -> choice | I8: =ROW(Inputs!E11) -> 11 | K8: NSL licence - Special conditions - Schedule 1
B10: Variables set after financial close
C12: Actual values
E14: =Inputs!E20 -> Development costs | G14: =Inputs!G20 -> £m nominal | I14: =ROW(Inputs!E20) -> 20 | K14: Post Construction Review (PCR) decision
E15: =Inputs!E21 -> Capex | G15: =Inputs!G21 -> £m nominal | I15: =ROW(Inputs!E21) -> 21 | K15: Post Construction Review (PCR) decision
E16: =Inputs!E22 -> Spares | G16: =Inputs!G22 -> £m nominal | I16: =ROW(Inputs!E22) -> 22 | K16: Post Construction Review (PCR) decision
E18: =Inputs!E24 -> Base year average UK RPI inflation index value (CHAW) | G18: =Inputs!G24 -> Jan 1987 = 100 | H18: =Inputs!H24 -> UK RPI index 2015/16 | I18: =ROW(Inputs!E24) -> 24 | K18: Office for National Statistics | L18: RPI All Items Index: Jan 1987=100
E22: =Inputs!E28 -> 12-month average UK RPI inflation index value (CHAW) | G22: =Inputs!G28 -> Jan 1987 = 100 | H22: =Inputs!H28 -> UK RPI index t | I22: =ROW(Inputs!E28) -> 28 | K22: Office for National Statistics | L22: RPI All Items Index: Jan 1987=100
C24: Ex-ante allowances for the operational period
E26: =Inputs!E42 -> Replacement Capex | G26: =Inputs!G42 -> £m 20/21 prices | I26: =ROW(Inputs!E42) -> 42 | K26: Post Construction Review (PCR) decision
E27: =Inputs!E43 -> Decommissioning baseline | G27: =Inputs!G43 -> £m 20/21 prices | I27: =ROW(Inputs!E43) -> 43 | K27: Post Construction Review (PCR) decision
E28: =Inputs!E44 -> Controllable Opex | G28: =Inputs!G44 -> £m 20/21 prices | I28: =ROW(Inputs!E44) -> 44 | K28: Post Construction Review (PCR) decision
E29: =Inputs!E45 -> Non-controllable Opex baseline | G29: =Inputs!G45 -> £m 20/21 prices | I29: =ROW(Inputs!E45) -> 45 | K29: Post Construction Review (PCR) decision
E31: =Inputs!E51 -> 2020/21 average UK RPI inflation index value (CHAW) | G31: =Inputs!G51 -> Jan 1987 = 100 | I31: =ROW(Inputs!E51) -> 51 | K31: Office for National Statistics | L31: RPI All Items Index: Jan 1987=100
E32: =Inputs!E52 -> 2020 average EU RPI inflation index value | G32: =Inputs!G52 -> Dec 2011 = 100 | I32: =ROW(Inputs!E52) -> 52
E33: =Inputs!E53 -> 2020 average exchange rate (XUMAERS) | G33: =Inputs!G53 -> GBP / EUR | I33: =ROW(Inputs!E53) -> 53
E35: =Inputs!E55 -> 12 month average exchange rate (XUMAERS) | G35: =Inputs!G55 -> GBP / EUR | H35: =Inputs!H55 ->  | I35: =ROW(Inputs!E55) -> 55
B37: Variables set at financial close
C39: Finance
E41: =Inputs!E68 -> Cap return rate | G41: =Inputs!G68 -> real annual % | I41: =ROW(Inputs!E68) -> 68 | K41: NSL FPA consultation and decision documents | L41: Decision on the Final Project Assessment of the NSL interconnector to Norway | Ofgem
E42: =Inputs!E69 -> Floor return rate | G42: =Inputs!G69 -> real annual % | I42: =ROW(Inputs!E69) -> 69 | K42: NSL FPA consultation and decision documents | L42: Decision on the Final Project Assessment of the NSL interconnector to Norway | Ofgem
E43: =Inputs!E70 -> Interest during construction (IDC) rate | G43: =Inputs!G70 -> real annual % | I43: =ROW(Inputs!E70) -> 70 | K43: NSL FPA consultation and decision documents | L43: Decision on the Final Project Assessment of the NSL interconnector to Norway | Ofgem
E45: =Inputs!E73 -> Pre-operational notional gearing | G45: =Inputs!G73 -> % | I45: =ROW(Inputs!E73) -> 73 | K45: NSL Cap and Floor Financial Model 1 Handbook (NSLCFFM1H) | L45: Interconnector Cap and Floor Regime Handbook (ofgem.gov.uk)
E46: =Inputs!E74 -> Operational notional gearing | G46: =Inputs!G74 -> % | I46: =ROW(Inputs!E74) -> 74 | K46: NSL Cap and Floor Financial Model 1 Handbook (NSLCFFM1H) | L46: Interconnector Cap and Floor Regime Handbook (ofgem.gov.uk)
E48: =Inputs!E76 -> Equity transaction costs | G48: =Inputs!G76 -> % | I48: =ROW(Inputs!E76) -> 76 | K48: Cap and Floor regime handbook | L48: Interconnector Cap and Floor Regime Handbook (ofgem.gov.uk)
E49: =Inputs!E77 -> Debt transaction costs | G49: =Inputs!G77 -> % | I49: =ROW(Inputs!E77) -> 77 | K49: Cap and Floor regime handbook | L49: Interconnector Cap and Floor Regime Handbook (ofgem.gov.uk)
C51: Model operation
E53: =Inputs!E85 -> Regime start date | G53: =Inputs!G85 -> date | I53: =ROW(Inputs!I85) -> 85 | K53: Post Construction Review (PCR) decision
E54: =Inputs!E86 -> End date for IDC | G54: =Inputs!G86 -> date | I54: =ROW(Inputs!I86) -> 86 | K54: Post Construction Review (PCR) decision
E55: =Inputs!E87 -> Start of operations | G55: =Inputs!G87 -> date | I55: =ROW(Inputs!I87) -> 87 | K55: Post Construction Review (PCR) decision
E56: =Inputs!E89 -> Number of operational years | G56: =Inputs!G89 -> full years | I56: =ROW(Inputs!I89) -> 89 | K56: NSL licence - Special conditions - Schedule 1
C58: Tax - Financial years
E60: =Inputs!E103 -> Long-term expected UK RPI inflation | G60: =Inputs!G103 -> % | I60: =ROW(Inputs!E103) -> 103 | K60: NSL Cap and Floor Financial Model 1 Handbook (NSLCFFM1H)
C62: Tax - Operational years
E64: =Inputs!E113 -> Corporation tax rate | G64: =Inputs!G113 -> % | I64: =ROW(Inputs!E113) -> 113 | K64: HM Revenue and Customs | L64: Corporation Tax rates and allowances - GOV.UK (www.gov.uk)
E65: =Inputs!E114 -> Capital allowance rate (declining balance) | G65: =Inputs!G114 -> % | I65: =ROW(Inputs!E114) -> 114 | K65: HM Revenue and Customs | L65: HS252 Capital allowances and balancing charges (2020) - GOV.UK (www.gov.uk)
E66: =Inputs!E117 -> Start of price base year | G66: =Inputs!G117 -> date | I66: =ROW(Inputs!E117) -> 117 | K66: NSL licence - Special conditions - Schedule 1
C68: Tax - Annuity
E70: =Inputs!E123 -> Tax element of Cap and Floor annuity previously calculated and fixed | G70: =Inputs!G123 -> choice | I70: =ROW(Inputs!E123) -> 123 | K70: NSL Cap and Floor Financial Model 1 Handbook (NSLCFFM1H)
B72: End of sheet

Sheet Pre Op RAV
A1: Pre Op RAV | H1: Licence
E2: Parameter | G2: Units | H2: Terminology | I2: Constant | K2: Annual values
E3: Year commencing | K3: =Inputs!K17 -> 2009-04-01 | L3: =+K4+1 -> 2010-04-01 | M3: =+L4+1 -> 2011-04-01 | N3: =+M4+1 -> 2012-04-01 | O3: 2013-04-01 | P3: 2014-04-01 | Q3: 2015-04-01 | R3: 2016-04-01 | S3: 2017-04-01 | T3: 2018-04-01 | U3: 2019-04-01 | V3: 2020-04-01 | W3: 2021-04-01 | X3: 2022-04-01 | Y3: 2023-04-01 | Z3: 2024-04-01 | AA3: 2025-04-01 | AB3: 2026-04-01 | AC3: 2027-04-01 | AD3: 2028-04-01 | AE3: 2029-04-01 | AF3: 2030-04-01 | AG3: 2031-04-01 | AH3: 2032-04-01 | AI3: 2033-04-01 | AJ3: 2034-04-01 | AK3: 2035-04-01 | AL3: 2036-04-01 | AM3: 2037-04-01 | AN3: 2038-04-01 | AO3: 2039-04-01 | AP3: 2040-04-01 | AQ3: 2041-04-01 | AR3: 2042-04-01 | AS3: 2043-04-01 | AT3: 2044-04-01 | AU3: 2045-04-01 | AV3: 2046-04-01 | AW3: 2047-04-01 | AX3: 2048-04-01
E4: Year ending | K4: =Inputs!K18 -> 2010-03-31 | L4: =DATE(YEAR(K4) + 1, MONTH(K4), DAY(K4)) -> 2011-03-31 | M4: 2012-03-31 | N4: 2013-03-31 | O4: 2014-03-31 | P4: 2015-03-31 | Q4: 2016-03-31 | R4: 2017-03-31 | S4: 2018-03-31 | T4: 2019-03-31 | U4: 2020-03-31 | V4: 2021-03-31 | W4: 2022-03-31 | X4: 2023-03-31 | Y4: 2024-03-31 | Z4: 2025-03-31 | AA4: 2026-03-31 | AB4: 2027-03-31 | AC4: 2028-03-31 | AD4: 2029-03-31 | AE4: 2030-03-31 | AF4: 2031-03-31 | AG4: 2032-03-31 | AH4: 2033-03-31 | AI4: 2034-03-31 | AJ4: 2035-03-31 | AK4: 2036-03-31 | AL4: 2037-03-31 | AM4: 2038-03-31 | AN4: 2039-03-31 | AO4: 2040-03-31 | AP4: 2041-03-31 | AQ4: 2042-03-31 | AR4: 2043-03-31 | AS4: 2044-03-31 | AT4: 2045-03-31 | AU4: 2046-03-31 | AV4: 2047-03-31 | AW4: 2048-03-31 | AX4: 2049-03-31
B6: Flags
E8: IDC flag | G8: flag | K8: =Inputs!K92 -> 1 | L8: =Inputs!L92 -> 1 | M8: =Inputs!M92 -> 1 | N8: =Inputs!N92 -> 1 | O8: =Inputs!O92 -> 1 | P8: =Inputs!P92 -> 1 | Q8: =Inputs!Q92 -> 1 | R8: =Inputs!R92 -> 1 | S8: =Inputs!S92 -> 1 | T8: =Inputs!T92 -> 1 | U8: =Inputs!U92 -> 1 | V8: =Inputs!V92 -> 1 | W8: =Inputs!W92 -> 0.501369863 | X8: =Inputs!X92 -> 0 | Y8: =Inputs!Y92 -> 0 | Z8: =Inputs!Z92 -> 0 | AA8: =Inputs!AA92 -> 0 | AB8: =Inputs!AB92 -> 0 | AC8: =Inputs!AC92 -> 0 | AD8: =Inputs!AD92 -> 0 | AE8: =Inputs!AE92 -> 0 | AF8: =Inputs!AF92 -> 0 | AG8: =Inputs!AG92 -> 0 | AH8: =Inputs!AH92 -> 0 | AI8: =Inputs!AI92 -> 0 | AJ8: =Inputs!AJ92 -> 0 | AK8: =Inputs!AK92 -> 0 | AL8: =Inputs!AL92 -> 0 | AM8: =Inputs!AM92 -> 0 | AN8: =Inputs!AN92 -> 0 | AO8: =Inputs!AO92 -> 0 | AP8: =Inputs!AP92 -> 0 | AQ8: =Inputs!AQ92 -> 0 | AR8: =Inputs!AR92 -> 0 | AS8: =Inputs!AS92 -> 0 | AT8: =Inputs!AT92 -> 0 | AU8: =Inputs!AU92 -> 0 | AV8: =Inputs!AV92 -> 0 | AW8: =Inputs!AW92 -> 0 | AX8: =Inputs!AX92 -> 0
E9: Post-IDC and pre-operations flag | G9: flag | K9: =Inputs!K93 -> 0 | L9: =Inputs!L93 -> 0 | M9: =Inputs!M93 -> 0 | N9: =Inputs!N93 -> 0 | O9: =Inputs!O93 -> 0 | P9: =Inputs!P93 -> 0 | Q9: =Inputs!Q93 -> 0 | R9: =Inputs!R93 -> 0 | S9: =Inputs!S93 -> 0 | T9: =Inputs!T93 -> 0 | U9: =Inputs!U93 -> 0 | V9: =Inputs!V93 -> 0 | W9: =Inputs!W93 -> 0 | X9: =Inputs!X93 -> 0 | Y9: =Inputs!Y93 -> 0 | Z9: =Inputs!Z93 -> 0 | AA9: =Inputs!AA93 -> 0 | AB9: =Inputs!AB93 -> 0 | AC9: =Inputs!AC93 -> 0 | AD9: =Inputs!AD93 -> 0 | AE9: =Inputs!AE93 -> 0 | AF9: =Inputs!AF93 -> 0 | AG9: =Inputs!AG93 -> 0 | AH9: =Inputs!AH93 -> 0 | AI9: =Inputs!AI93 -> 0 | AJ9: =Inputs!AJ93 -> 0 | AK9: =Inputs!AK93 -> 0 | AL9: =Inputs!AL93 -> 0 | AM9: =Inputs!AM93 -> 0 | AN9: =Inputs!AN93 -> 0 | AO9: =Inputs!AO93 -> 0 | AP9: =Inputs!AP93 -> 0 | AQ9: =Inputs!AQ93 -> 0 | AR9: =Inputs!AR93 -> 0 | AS9: =Inputs!AS93 -> 0 | AT9: =Inputs!AT93 -> 0 | AU9: =Inputs!AU93 -> 0 | AV9: =Inputs!AV93 -> 0 | AW9: =Inputs!AW93 -> 0 | AX9: =Inputs!AX93 -> 0
E10: Operations flag | G10: flag | K10: =Inputs!K94 -> 0 | L10: =Inputs!L94 -> 0 | M10: =Inputs!M94 -> 0 | N10: =Inputs!N94 -> 0 | O10: =Inputs!O94 -> 0 | P10: =Inputs!P94 -> 0 | Q10: =Inputs!Q94 -> 0 | R10: =Inputs!R94 -> 0 | S10: =Inputs!S94 -> 0 | T10: =Inputs!T94 -> 0 | U10: =Inputs!U94 -> 0 | V10: =Inputs!V94 -> 0 | W10: =Inputs!W94 -> 0.498630137 | X10: =Inputs!X94 -> 1 | Y10: =Inputs!Y94 -> 1 | Z10: =Inputs!Z94 -> 1 | AA10: =Inputs!AA94 -> 1 | AB10: =Inputs!AB94 -> 1 | AC10: =Inputs!AC94 -> 1 | AD10: =Inputs!AD94 -> 1 | AE10: =Inputs!AE94 -> 1 | AF10: =Inputs!AF94 -> 1 | AG10: =Inputs!AG94 -> 1 | AH10: =Inputs!AH94 -> 1 | AI10: =Inputs!AI94 -> 1 | AJ10: =Inputs!AJ94 -> 1 | AK10: =Inputs!AK94 -> 1 | AL10: =Inputs!AL94 -> 1 | AM10: =Inputs!AM94 -> 1 | AN10: =Inputs!AN94 -> 1 | AO10: =Inputs!AO94 -> 1 | AP10: =Inputs!AP94 -> 1 | AQ10: =Inputs!AQ94 -> 1 | AR10: =Inputs!AR94 -> 1 | AS10: =Inputs!AS94 -> 1 | AT10: =Inputs!AT94 -> 1 | AU10: =Inputs!AU94 -> 0.7534246575 | AV10: =Inputs!AV94 -> 0 | AW10: =Inputs!AW94 -> 0 | AX10: =Inputs!AX94 -> 0
E11: Transfer construction to operations flag | G11: flag | K11: =Inputs!K95 -> 0 | L11: =Inputs!L95 -> 0 | M11: =Inputs!M95 -> 0 | N11: =Inputs!N95 -> 0 | O11: =Inputs!O95 -> 0 | P11: =Inputs!P95 -> 0 | Q11: =Inputs!Q95 -> 0 | R11: =Inputs!R95 -> 0 | S11: =Inputs!S95 -> 0 | T11: =Inputs!T95 -> 0 | U11: =Inputs!U95 -> 0 | V11: =Inputs!V95 -> 0 | W11: =Inputs!W95 -> 0 | X11: =Inputs!X95 -> 1 | Y11: =Inputs!Y95 -> 0 | Z11: =Inputs!Z95 -> 0 | AA11: =Inputs!AA95 -> 0 | AB11: =Inputs!AB95 -> 0 | AC11: =Inputs!AC95 -> 0 | AD11: =Inputs!AD95 -> 0 | AE11: =Inputs!AE95 -> 0 | AF11: =Inputs!AF95 -> 0 | AG11: =Inputs!AG95 -> 0 | AH11: =Inputs!AH95 -> 0 | AI11: =Inputs!AI95 -> 0 | AJ11: =Inputs!AJ95 -> 0 | AK11: =Inputs!AK95 -> 0 | AL11: =Inputs!AL95 -> 0 | AM11: =Inputs!AM95 -> 0 | AN11: =Inputs!AN95 -> 0 | AO11: =Inputs!AO95 -> 0 | AP11: =Inputs!AP95 -> 0 | AQ11: =Inputs!AQ95 -> 0 | AR11: =Inputs!AR95 -> 0 | AS11: =Inputs!AS95 -> 0 | AT11: =Inputs!AT95 -> 0 | AU11: =Inputs!AU95 -> 0 | AV11: =Inputs!AV95 -> 0 | AW11: =Inputs!AW95 -> 0 | AX11: =Inputs!AX95 -> 0
B13: RAV
C15: Pre-operational
E17: Opening pre-operational RAV (before transfers) | G17: =Inputs!$I$11 -> £m 15/16 prices | L17: =K24 -> 0 | M17: =L24 -> 0.3923258326 | N17: 0.992246855 | O17: 8.11931518 | P17: 10.1206083 | Q17: 14.79094096 | R17: 34.99529187 | S17: 80.88314638 | T17: 129.5990694 | U17: 245.2724403 | V17: =U24 -> 425.8736477 | W17: 564.697348 | X17: 616.3973532 | Y17: 0 | Z17: 0 | AA17: 0 | AB17: 0 | AC17: 0 | AD17: 0 | AE17: 0 | AF17: 0 | AG17: 0 | AH17: 0 | AI17: 0 | AJ17: 0 | AK17: 0 | AL17: 0 | AM17: 0 | AN17: 0 | AO17: 0 | AP17: 0 | AQ17: 0 | AR17: 0 | AS17: 0 | AT17: 0 | AU17: 0 | AV17: 0 | AW17: 0 | AX17: 0
E18: =Inputs!E34 -> Development costs | G18: =Inputs!$I$11 -> £m 15/16 prices | K18: =Inputs!K34 -> 0 | L18: =Inputs!L34 -> 0.3805785563 | M18: =Inputs!M34 -> 0.5577149414 | N18: =Inputs!N34 -> 6.852351426 | O18: =Inputs!O34 -> 1.439655066 | P18: =Inputs!P34 -> 3.905111274 | Q18: =Inputs!Q34 -> -1.578 | R18: =Inputs!R34 -> 0 | S18: =Inputs!S34 -> 0 | T18: =Inputs!T34 -> 0 | U18: =Inputs!U34 -> 0 | V18: =Inputs!V34 -> 0 | W18: =Inputs!W34 -> 0 | X18: =Inputs!X34 -> 0 | Y18: =Inputs!Y34 -> 0 | Z18: =Inputs!Z34 -> 0 | AA18: =Inputs!AA34 -> 0 | AB18: =Inputs!AB34 -> 0 | AC18: =Inputs!AC34 -> 0 | AD18: =Inputs!AD34 -> 0 | AE18: =Inputs!AE34 -> 0 | AF18: =Inputs!AF34 -> 0 | AG18: =Inputs!AG34 -> 0 | AH18: =Inputs!AH34 -> 0 | AI18: =Inputs!AI34 -> 0 | AJ18: =Inputs!AJ34 -> 0 | AK18: =Inputs!AK34 -> 0 | AL18: =Inputs!AL34 -> 0 | AM18: =Inputs!AM34 -> 0 | AN18: =Inputs!AN34 -> 0 | AO18: =Inputs!AO34 -> 0 | AP18: =Inputs!AP34 -> 0 | AQ18: =Inputs!AQ34 -> 0 | AR18: =Inputs!AR34 -> 0 | AS18: =Inputs!AS34 -> 0 | AT18: =Inputs!AT34 -> 0 | AU18: =Inputs!AU34 -> 0 | AV18: =Inputs!AV34 -> 0 | AW18: =Inputs!AW34 -> 0 | AX18: =Inputs!AX34 -> 0
E19: =Inputs!E35 -> Capex | G19: =Inputs!$I$11 -> £m 15/16 prices | K19: =Inputs!K35 -> 0 | L19: =Inputs!L35 -> 0 | M19: =Inputs!M35 -> 0 | N19: =Inputs!N35 -> 0 | O19: =Inputs!O35 -> 0 | P19: =Inputs!P35 -> 0 | Q19: =Inputs!Q35 -> 20.16552582 | R19: =Inputs!R35 -> 42.07418567 | S19: =Inputs!S35 -> 42.08196275 | T19: =Inputs!T35 -> 103.5103655 | U19: =Inputs!U35 -> 157.4631978 | V19: =Inputs!V35 -> 107.6290311 | W19: =Inputs!W35 -> 32.81315038 | X19: =Inputs!X35 -> -0.2152614297 | Y19: =Inputs!Y35 -> 0 | Z19: =Inputs!Z35 -> 0 | AA19: =Inputs!AA35 -> 0 | AB19: =Inputs!AB35 -> 0 | AC19: =Inputs!AC35 -> 0 | AD19: =Inputs!AD35 -> 0 | AE19: =Inputs!AE35 -> 0 | AF19: =Inputs!AF35 -> 0 | AG19: =Inputs!AG35 -> 0 | AH19: =Inputs!AH35 -> 0 | AI19: =Inputs!AI35 -> 0 | AJ19: =Inputs!AJ35 -> 0 | AK19: =Inputs!AK35 -> 0 | AL19: =Inputs!AL35 -> 0 | AM19: =Inputs!AM35 -> 0 | AN19: =Inputs!AN35 -> 0 | AO19: =Inputs!AO35 -> 0 | AP19: =Inputs!AP35 -> 0 | AQ19: =Inputs!AQ35 -> 0 | AR19: =Inputs!AR35 -> 0 | AS19: =Inputs!AS35 -> 0 | AT19: =Inputs!AT35 -> 0 | AU19: =Inputs!AU35 -> 0 | AV19: =Inputs!AV35 -> 0 | AW19: =Inputs!AW35 -> 0 | AX19: =Inputs!AX35 -> 0
E20: =Inputs!E36 -> Spares | G20: =Inputs!$I$11 -> £m 15/16 prices | K20: =Inputs!K36 -> 0 | L20: =Inputs!L36 -> 0 | M20: =Inputs!M36 -> 0 | N20: =Inputs!N36 -> 0 | O20: =Inputs!O36 -> 0 | P20: =Inputs!P36 -> 0 | Q20: =Inputs!Q36 -> 0.09788174499 | R20: =Inputs!R36 -> 0.277212816 | S20: =Inputs!S36 -> 0.1772921337 | T20: =Inputs!T36 -> 0.691167507 | U20: =Inputs!U36 -> 2.574295467 | V20: =Inputs!V36 -> 0.7220568361 | W20: =Inputs!W36 -> 0.6201808996 | X20: =Inputs!X36 -> 0 | Y20: =Inputs!Y36 -> 0 | Z20: =Inputs!Z36 -> 0 | AA20: =Inputs!AA36 -> 0 | AB20: =Inputs!AB36 -> 0 | AC20: =Inputs!AC36 -> 0 | AD20: =Inputs!AD36 -> 0 | AE20: =Inputs!AE36 -> 0 | AF20: =Inputs!AF36 -> 0 | AG20: =Inputs!AG36 -> 0 | AH20: =Inputs!AH36 -> 0 | AI20: =Inputs!AI36 -> 0 | AJ20: =Inputs!AJ36 -> 0 | AK20: =Inputs!AK36 -> 0 | AL20: =Inputs!AL36 -> 0 | AM20: =Inputs!AM36 -> 0 | AN20: =Inputs!AN36 -> 0 | AO20: =Inputs!AO36 -> 0 | AP20: =Inputs!AP36 -> 0 | AQ20: =Inputs!AQ36 -> 0 | AR20: =Inputs!AR36 -> 0 | AS20: =Inputs!AS36 -> 0 | AT20: =Inputs!AT36 -> 0 | AU20: =Inputs!AU36 -> 0 | AV20: =Inputs!AV36 -> 0 | AW20: =Inputs!AW36 -> 0 | AX20: =Inputs!AX36 -> 0
E21: =Finance!E24 -> Capitalised interest during construction | G21: =Inputs!$I$11 -> £m 15/16 prices | K21: =Finance!K24 -> 0 | L21: =Finance!L24 -> 0.01174727627 | M21: =Finance!M24 -> 0.04220608104 | N21: =Finance!N24 -> 0.2747168994 | O21: =Finance!O24 -> 0.5616380509 | P21: =Finance!P24 -> 0.7652213869 | Q21: =Finance!Q24 -> 1.518943351 | R21: =Finance!R24 -> 3.536456032 | S21: =Finance!S24 -> 6.456668178 | T21: =Finance!T24 -> 11.47183793 | U21: =Finance!U24 -> 20.56371408 | V21: =Finance!V24 -> 30.47261242 | W21: =Finance!W24 -> 18.26667392 | X21: =Finance!X24 -> 0 | Y21: =Finance!Y24 -> 0 | Z21: =Finance!Z24 -> 0 | AA21: =Finance!AA24 -> 0 | AB21: =Finance!AB24 -> 0 | AC21: =Finance!AC24 -> 0 | AD21: =Finance!AD24 -> 0 | AE21: =Finance!AE24 -> 0 | AF21: =Finance!AF24 -> 0 | AG21: =Finance!AG24 -> 0 | AH21: =Finance!AH24 -> 0 | AI21: =Finance!AI24 -> 0 | AJ21: =Finance!AJ24 -> 0 | AK21: =Finance!AK24 -> 0 | AL21: =Finance!AL24 -> 0 | AM21: =Finance!AM24 -> 0 | AN21: =Finance!AN24 -> 0 | AO21: =Finance!AO24 -> 0 | AP21: =Finance!AP24 -> 0 | AQ21: =Finance!AQ24 -> 0 | AR21: =Finance!AR24 -> 0 | AS21: =Finance!AS24 -> 0 | AT21: =Finance!AT24 -> 0 | AU21: =Finance!AU24 -> 0 | AV21: =Finance!AV24 -> 0 | AW21: =Finance!AW24 -> 0 | AX21: =Finance!AX24 -> 0
E22: Closing pre-operational RAV (after IDC) | G22: =Inputs!$I$11 -> £m 15/16 prices | K22: =SUM(K17:K21) -> 0 | L22: 0.3923258326 | M22: 0.992246855 | N22: 8.11931518 | O22: 10.1206083 | P22: 14.79094096 | Q22: 34.99529187 | R22: 80.88314638 | S22: 129.5990694 | T22: 245.2724403 | U22: 425.8736477 | V22: =SUM(V17:V21) -> 564.697348 | W22: 616.3973532 | X22: 616.1820918 | Y22: 0 | Z22: 0 | AA22: 0 | AB22: 0 | AC22: 0 | AD22: 0 | AE22: 0 | AF22: 0 | AG22: 0 | AH22: 0 | AI22: 0 | AJ22: 0 | AK22: 0 | AL22: 0 | AM22: 0 | AN22: 0 | AO22: 0 | AP22: 0 | AQ22: 0 | AR22: 0 | AS22: 0 | AT22: 0 | AU22: 0 | AV22: 0 | AW22: 0 | AX22: 0
E23: Pre-operational RAV transfers | G23: =Inputs!$I$11 -> £m 15/16 prices | K23: =-K22*K11 -> 0 | L23: 0 | M23: 0 | N23: 0 | O23: 0 | P23: 0 | Q23: 0 | R23: 0 | S23: 0 | T23: 0 | U23: 0 | V23: =-V22*V11 -> 0 | W23: =-W22*W11 -> 0 | X23: -616.1820918 | Y23: 0 | Z23: 0 | AA23: 0 | AB23: 0 | AC23: 0 | AD23: 0 | AE23: 0 | AF23: 0 | AG23: 0 | AH23: 0 | AI23: 0 | AJ23: 0 | AK23: 0 | AL23: 0 | AM23: 0 | AN23: 0 | AO23: 0 | AP23: 0 | AQ23: 0 | AR23: 0 | AS23: 0 | AT23: 0 | AU23: 0 | AV23: 0 | AW23: 0 | AX23: 0
E24: Closing pre-operational RAV (after IDC) - adjusted for RAV transfers | G24: =Inputs!$I$11 -> £m 15/16 prices | K24: =SUM(K22:K23) -> 0 | L24: 0.3923258326 | M24: 0.992246855 | N24: 8.11931518 | O24: 10.1206083 | P24: 14.79094096 | Q24: 34.99529187 | R24: 80.88314638 | S24: 129.5990694 | T24: 245.2724403 | U24: =SUM(U22:U23) -> 425.8736477 | V24: =SUM(V22:V23) -> 564.697348 | W24: 616.3973532 | X24: 0 | Y24: 0 | Z24: 0 | AA24: 0 | AB24: 0 | AC24: 0 | AD24: 0 | AE24: 0 | AF24: 0 | AG24: 0 | AH24: 0 | AI24: 0 | AJ24: 0 | AK24: 0 | AL24: 0 | AM24: 0 | AN24: 0 | AO24: 0 | AP24: 0 | AQ24: 0 | AR24: 0 | AS24: 0 | AT24: 0 | AU24: 0 | AV24: 0 | AW24: 0 | AX24: 0
B26: End of sheet

Sheet Finance
A1: Finance | H1: Licence
E2: Parameter | G2: Units | H2: Terminology | I2: Constant | K2: Annual values
E3: Year commencing | K3: =Inputs!K17 -> 2009-04-01 | L3: =+K4+1 -> 2010-04-01 | M3: 2011-04-01 | N3: 2012-04-01 | O3: 2013-04-01 | P3: 2014-04-01 | Q3: 2015-04-01 | R3: 2016-04-01 | S3: 2017-04-01 | T3: 2018-04-01 | U3: 2019-04-01 | V3: 2020-04-01 | W3: 2021-04-01 | X3: 2022-04-01 | Y3: 2023-04-01 | Z3: 2024-04-01 | AA3: 2025-04-01 | AB3: 2026-04-01 | AC3: 2027-04-01 | AD3: 2028-04-01 | AE3: 2029-04-01 | AF3: 2030-04-01 | AG3: 2031-04-01 | AH3: 2032-04-01 | AI3: 2033-04-01 | AJ3: 2034-04-01 | AK3: 2035-04-01 | AL3: 2036-04-01 | AM3: 2037-04-01 | AN3: 2038-04-01 | AO3: 2039-04-01 | AP3: 2040-04-01 | AQ3: 2041-04-01 | AR3: 2042-04-01 | AS3: 2043-04-01 | AT3: 2044-04-01 | AU3: =+AT4+1 -> 2045-04-01 | AV3: =+AU4+1 -> 2046-04-01 | AW3: =+AV4+1 -> 2047-04-01 | AX3: =+AW4+1 -> 2048-04-01
E4: Year ending | K4: =Inputs!K18 -> 2010-03-31 | L4: =DATE(YEAR(K4) + 1, MONTH(K4), DAY(K4)) -> 2011-03-31 | M4: 2012-03-31 | N4: 2013-03-31 | O4: 2014-03-31 | P4: 2015-03-31 | Q4: 2016-03-31 | R4: 2017-03-31 | S4: 2018-03-31 | T4: 2019-03-31 | U4: 2020-03-31 | V4: 2021-03-31 | W4: 2022-03-31 | X4: 2023-03-31 | Y4: 2024-03-31 | Z4: 2025-03-31 | AA4: 2026-03-31 | AB4: 2027-03-31 | AC4: 2028-03-31 | AD4: 2029-03-31 | AE4: 2030-03-31 | AF4: 2031-03-31 | AG4: 2032-03-31 | AH4: 2033-03-31 | AI4: 2034-03-31 | AJ4: 2035-03-31 | AK4: 2036-03-31 | AL4: 2037-03-31 | AM4: 2038-03-31 | AN4: 2039-03-31 | AO4: 2040-03-31 | AP4: 2041-03-31 | AQ4: 2042-03-31 | AR4: 2043-03-31 | AS4: 2044-03-31 | AT4: 2045-03-31 | AU4: =DATE(YEAR(AT4) + 1, MONTH(AT4), DAY(AT4)) -> 2046-03-31 | AV4: =DATE(YEAR(AU4) + 1, MONTH(AU4), DAY(AU4)) -> 2047-03-31 | AW4: =DATE(YEAR(AV4) + 1, MONTH(AV4), DAY(AV4)) -> 2048-03-31 | AX4: =DATE(YEAR(AW4) + 1, MONTH(AW4), DAY(AW4)) -> 2049-03-31
B6: Flags
E8: IDC flag | G8: flag | K8: =Inputs!K92 -> 1 | L8: =Inputs!L92 -> 1 | M8: =Inputs!M92 -> 1 | N8: =Inputs!N92 -> 1 | O8: =Inputs!O92 -> 1 | P8: =Inputs!P92 -> 1 | Q8: =Inputs!Q92 -> 1 | R8: =Inputs!R92 -> 1 | S8: =Inputs!S92 -> 1 | T8: =Inputs!T92 -> 1 | U8: =Inputs!U92 -> 1 | V8: =Inputs!V92 -> 1 | W8: =Inputs!W92 -> 0.501369863 | X8: =Inputs!X92 -> 0 | Y8: =Inputs!Y92 -> 0 | Z8: =Inputs!Z92 -> 0 | AA8: =Inputs!AA92 -> 0 | AB8: =Inputs!AB92 -> 0 | AC8: =Inputs!AC92 -> 0 | AD8: =Inputs!AD92 -> 0 | AE8: =Inputs!AE92 -> 0 | AF8: =Inputs!AF92 -> 0 | AG8: =Inputs!AG92 -> 0 | AH8: =Inputs!AH92 -> 0 | AI8: =Inputs!AI92 -> 0 | AJ8: =Inputs!AJ92 -> 0 | AK8: =Inputs!AK92 -> 0 | AL8: =Inputs!AL92 -> 0 | AM8: =Inputs!AM92 -> 0 | AN8: =Inputs!AN92 -> 0 | AO8: =Inputs!AO92 -> 0 | AP8: =Inputs!AP92 -> 0 | AQ8: =Inputs!AQ92 -> 0 | AR8: =Inputs!AR92 -> 0 | AS8: =Inputs!AS92 -> 0 | AT8: =Inputs!AT92 -> 0 | AU8: =Inputs!AU92 -> 0 | AV8: =Inputs!AV92 -> 0 | AW8: =Inputs!AW92 -> 0 | AX8: =Inputs!AX92 -> 0
E9: Post-IDC and pre-operations flag | G9: flag | K9: =Inputs!K93 -> 0 | L9: =Inputs!L93 -> 0 | M9: =Inputs!M93 -> 0 | N9: =Inputs!N93 -> 0 | O9: =Inputs!O93 -> 0 | P9: =Inputs!P93 -> 0 | Q9: =Inputs!Q93 -> 0 | R9: =Inputs!R93 -> 0 | S9: =Inputs!S93 -> 0 | T9: =Inputs!T93 -> 0 | U9: =Inputs!U93 -> 0 | V9: =Inputs!V93 -> 0 | W9: =Inputs!W93 -> 0 | X9: =Inputs!X93 -> 0 | Y9: =Inputs!Y93 -> 0 | Z9: =Inputs!Z93 -> 0 | AA9: =Inputs!AA93 -> 0 | AB9: =Inputs!AB93 -> 0 | AC9: =Inputs!AC93 -> 0 | AD9: =Inputs!AD93 -> 0 | AE9: =Inputs!AE93 -> 0 | AF9: =Inputs!AF93 -> 0 | AG9: =Inputs!AG93 -> 0 | AH9: =Inputs!AH93 -> 0 | AI9: =Inputs!AI93 -> 0 | AJ9: =Inputs!AJ93 -> 0 | AK9: =Inputs!AK93 -> 0 | AL9: =Inputs!AL93 -> 0 | AM9: =Inputs!AM93 -> 0 | AN9: =Inputs!AN93 -> 0 | AO9: =Inputs!AO93 -> 0 | AP9: =Inputs!AP93 -> 0 | AQ9: =Inputs!AQ93 -> 0 | AR9: =Inputs!AR93 -> 0 | AS9: =Inputs!AS93 -> 0 | AT9: =Inputs!AT93 -> 0 | AU9: =Inputs!AU93 -> 0 | AV9: =Inputs!AV93 -> 0 | AW9: =Inputs!AW93 -> 0 | AX9: =Inputs!AX93 -> 0
E10: Operations flag | G10: flag | K10: =Inputs!K94 -> 0 | L10: =Inputs!L94 -> 0 | M10: =Inputs!M94 -> 0 | N10: =Inputs!N94 -> 0 | O10: =Inputs!O94 -> 0 | P10: =Inputs!P94 -> 0 | Q10: =Inputs!Q94 -> 0 | R10: =Inputs!R94 -> 0 | S10: =Inputs!S94 -> 0 | T10: =Inputs!T94 -> 0 | U10: =Inputs!U94 -> 0 | V10: =Inputs!V94 -> 0 | W10: =Inputs!W94 -> 0.498630137 | X10: =Inputs!X94 -> 1 | Y10: =Inputs!Y94 -> 1 | Z10: =Inputs!Z94 -> 1 | AA10: =Inputs!AA94 -> 1 | AB10: =Inputs!AB94 -> 1 | AC10: =Inputs!AC94 -> 1 | AD10: =Inputs!AD94 -> 1 | AE10: =Inputs!AE94 -> 1 | AF10: =Inputs!AF94 -> 1 | AG10: =Inputs!AG94 -> 1 | AH10: =Inputs!AH94 -> 1 | AI10: =Inputs!AI94 -> 1 | AJ10: =Inputs!AJ94 -> 1 | AK10: =Inputs!AK94 -> 1 | AL10: =Inputs!AL94 -> 1 | AM10: =Inputs!AM94 -> 1 | AN10: =Inputs!AN94 -> 1 | AO10: =Inputs!AO94 -> 1 | AP10: =Inputs!AP94 -> 1 | AQ10: =Inputs!AQ94 -> 1 | AR10: =Inputs!AR94 -> 1 | AS10: =Inputs!AS94 -> 1 | AT10: =Inputs!AT94 -> 1 | AU10: =Inputs!AU94 -> 0.7534246575 | AV10: =Inputs!AV94 -> 0 | AW10: =Inputs!AW94 -> 0 | AX10: =Inputs!AX94 -> 0
E11: Transfer construction to operations flag | G11: flag | K11: =Inputs!K95 -> 0 | L11: =Inputs!L95 -> 0 | M11: =Inputs!M95 -> 0 | N11: =Inputs!N95 -> 0 | O11: =Inputs!O95 -> 0 | P11: =Inputs!P95 -> 0 | Q11: =Inputs!Q95 -> 0 | R11: =Inputs!R95 -> 0 | S11: =Inputs!S95 -> 0 | T11: =Inputs!T95 -> 0 | U11: =Inputs!U95 -> 0 | V11: =Inputs!V95 -> 0 | W11: =Inputs!W95 -> 0 | X11: =Inputs!X95 -> 1 | Y11: =Inputs!Y95 -> 0 | Z11: =Inputs!Z95 -> 0 | AA11: =Inputs!AA95 -> 0 | AB11: =Inputs!AB95 -> 0 | AC11: =Inputs!AC95 -> 0 | AD11: =Inputs!AD95 -> 0 | AE11: =Inputs!AE95 -> 0 | AF11: =Inputs!AF95 -> 0 | AG11: =Inputs!AG95 -> 0 | AH11: =Inputs!AH95 -> 0 | AI11: =Inputs!AI95 -> 0 | AJ11: =Inputs!AJ95 -> 0 | AK11: =Inputs!AK95 -> 0 | AL11: =Inputs!AL95 -> 0 | AM11: =Inputs!AM95 -> 0 | AN11: =Inputs!AN95 -> 0 | AO11: =Inputs!AO95 -> 0 | AP11: =Inputs!AP95 -> 0 | AQ11: =Inputs!AQ95 -> 0 | AR11: =Inputs!AR95 -> 0 | AS11: =Inputs!AS95 -> 0 | AT11: =Inputs!AT95 -> 0 | AU11: =Inputs!AU95 -> 0 | AV11: =Inputs!AV95 -> 0 | AW11: =Inputs!AW95 -> 0 | AX11: =Inputs!AX95 -> 0
E12: Initial transaction costs flag | G12: flag | K12: =Inputs!K96 -> 0 | L12: =Inputs!L96 -> 0 | M12: =Inputs!M96 -> 0 | N12: =Inputs!N96 -> 0 | O12: =Inputs!O96 -> 0 | P12: =Inputs!P96 -> 1 | Q12: =Inputs!Q96 -> 0 | R12: =Inputs!R96 -> 0 | S12: =Inputs!S96 -> 0 | T12: =Inputs!T96 -> 0 | U12: =Inputs!U96 -> 0 | V12: =Inputs!V96 -> 0 | W12: =Inputs!W96 -> 0 | X12: =Inputs!X96 -> 0 | Y12: =Inputs!Y96 -> 0 | Z12: =Inputs!Z96 -> 0 | AA12: =Inputs!AA96 -> 0 | AB12: =Inputs!AB96 -> 0 | AC12: =Inputs!AC96 -> 0 | AD12: =Inputs!AD96 -> 0 | AE12: =Inputs!AE96 -> 0 | AF12: =Inputs!AF96 -> 0 | AG12: =Inputs!AG96 -> 0 | AH12: =Inputs!AH96 -> 0 | AI12: =Inputs!AI96 -> 0 | AJ12: =Inputs!AJ96 -> 0 | AK12: =Inputs!AK96 -> 0 | AL12: =Inputs!AL96 -> 0 | AM12: =Inputs!AM96 -> 0 | AN12: =Inputs!AN96 -> 0 | AO12: =Inputs!AO96 -> 0 | AP12: =Inputs!AP96 -> 0 | AQ12: =Inputs!AQ96 -> 0 | AR12: =Inputs!AR96 -> 0 | AS12: =Inputs!AS96 -> 0 | AT12: =Inputs!AT96 -> 0 | AU12: =Inputs!AU96 -> 0 | AV12: =Inputs!AV96 -> 0 | AW12: =Inputs!AW96 -> 0 | AX12: =Inputs!AX96 -> 0
B14: Pre-operational interest during construction
C16: Pre-operational interest during construction
E18: Interest during construction rate | G18: =Inputs!G70 -> real annual % | I18: =Inputs!I70 -> 0.0637
E20: Opening pre-operational RAV (before transfers) | G20: =Inputs!$I$11 -> £m 15/16 prices | K20: ='Pre Op RAV'!K17 -> 0 | L20: ='Pre Op RAV'!L17 -> 0 | M20: ='Pre Op RAV'!M17 -> 0.3923258326 | N20: ='Pre Op RAV'!N17 -> 0.992246855 | O20: ='Pre Op RAV'!O17 -> 8.11931518 | P20: ='Pre Op RAV'!P17 -> 10.1206083 | Q20: ='Pre Op RAV'!Q17 -> 14.79094096 | R20: ='Pre Op RAV'!R17 -> 34.99529187 | S20: ='Pre Op RAV'!S17 -> 80.88314638 | T20: ='Pre Op RAV'!T17 -> 129.5990694 | U20: ='Pre Op RAV'!U17 -> 245.2724403 | V20: ='Pre Op RAV'!V17 -> 425.8736477 | W20: ='Pre Op RAV'!W17 -> 564.697348 | X20: ='Pre Op RAV'!X17 -> 616.3973532 | Y20: ='Pre Op RAV'!Y17 -> 0 | Z20: ='Pre Op RAV'!Z17 -> 0 | AA20: ='Pre Op RAV'!AA17 -> 0 | AB20: ='Pre Op RAV'!AB17 -> 0 | AC20: ='Pre Op RAV'!AC17 -> 0 | AD20: ='Pre Op RAV'!AD17 -> 0 | AE20: ='Pre Op RAV'!AE17 -> 0 | AF20: ='Pre Op RAV'!AF17 -> 0 | AG20: ='Pre Op RAV'!AG17 -> 0 | AH20: ='Pre Op RAV'!AH17 -> 0 | AI20: ='Pre Op RAV'!AI17 -> 0 | AJ20: ='Pre Op RAV'!AJ17 -> 0 | AK20: ='Pre Op RAV'!AK17 -> 0 | AL20: ='Pre Op RAV'!AL17 -> 0 | AM20: ='Pre Op RAV'!AM17 -> 0 | AN20: ='Pre Op RAV'!AN17 -> 0 | AO20: ='Pre Op RAV'!AO17 -> 0 | AP20: ='Pre Op RAV'!AP17 -> 0 | AQ20: ='Pre Op RAV'!AQ17 -> 0 | AR20: ='Pre Op RAV'!AR17 -> 0 | AS20: ='Pre Op RAV'!AS17 -> 0 | AT20: ='Pre Op RAV'!AT17 -> 0 | AU20: ='Pre Op RAV'!AU17 -> 0 | AV20: ='Pre Op RAV'!AV17 -> 0 | AW20: ='Pre Op RAV'!AW17 -> 0 | AX20: ='Pre Op RAV'!AX17 -> 0
E21: Development costs | G21: =Inputs!$I$11 -> £m 15/16 prices | K21: =Inputs!K34 -> 0 | L21: =Inputs!L34 -> 0.3805785563 | M21: =Inputs!M34 -> 0.5577149414 | N21: =Inputs!N34 -> 6.852351426 | O21: =Inputs!O34 -> 1.439655066 | P21: =Inputs!P34 -> 3.905111274 | Q21: =Inputs!Q34 -> -1.578 | R21: =Inputs!R34 -> 0 | S21: =Inputs!S34 -> 0 | T21: =Inputs!T34 -> 0 | U21: =Inputs!U34 -> 0 | V21: =Inputs!V34 -> 0 | W21: =Inputs!W34 -> 0 | X21: =Inputs!X34 -> 0 | Y21: =Inputs!Y34 -> 0 | Z21: =Inputs!Z34 -> 0 | AA21: =Inputs!AA34 -> 0 | AB21: =Inputs!AB34 -> 0 | AC21: =Inputs!AC34 -> 0 | AD21: =Inputs!AD34 -> 0 | AE21: =Inputs!AE34 -> 0 | AF21: =Inputs!AF34 -> 0 | AG21: =Inputs!AG34 -> 0 | AH21: =Inputs!AH34 -> 0 | AI21: =Inputs!AI34 -> 0 | AJ21: =Inputs!AJ34 -> 0 | AK21: =Inputs!AK34 -> 0 | AL21: =Inputs!AL34 -> 0 | AM21: =Inputs!AM34 -> 0 | AN21: =Inputs!AN34 -> 0 | AO21: =Inputs!AO34 -> 0 | AP21: =Inputs!AP34 -> 0 | AQ21: =Inputs!AQ34 -> 0 | AR21: =Inputs!AR34 -> 0 | AS21: =Inputs!AS34 -> 0 | AT21: =Inputs!AT34 -> 0 | AU21: =Inputs!AU34 -> 0 | AV21: =Inputs!AV34 -> 0 | AW21: =Inputs!AW34 -> 0 | AX21: =Inputs!AX34 -> 0
E22: Capex | G22: =Inputs!$I$11 -> £m 15/16 prices | K22: =Inputs!K35 -> 0 | L22: =Inputs!L35 -> 0 | M22: =Inputs!M35 -> 0 | N22: =Inputs!N35 -> 0 | O22: =Inputs!O35 -> 0 | P22: =Inputs!P35 -> 0 | Q22: =Inputs!Q35 -> 20.16552582 | R22: =Inputs!R35 -> 42.07418567 | S22: =Inputs!S35 -> 42.08196275 | T22: =Inputs!T35 -> 103.5103655 | U22: =Inputs!U35 -> 157.4631978 | V22: =Inputs!V35 -> 107.6290311 | W22: =Inputs!W35 -> 32.81315038 | X22: =Inputs!X35 -> -0.2152614297 | Y22: =Inputs!Y35 -> 0 | Z22: =Inputs!Z35 -> 0 | AA22: =Inputs!AA35 -> 0 | AB22: =Inputs!AB35 -> 0 | AC22: =Inputs!AC35 -> 0 | AD22: =Inputs!AD35 -> 0 | AE22: =Inputs!AE35 -> 0 | AF22: =Inputs!AF35 -> 0 | AG22: =Inputs!AG35 -> 0 | AH22: =Inputs!AH35 -> 0 | AI22: =Inputs!AI35 -> 0 | AJ22: =Inputs!AJ35 -> 0 | AK22: =Inputs!AK35 -> 0 | AL22: =Inputs!AL35 -> 0 | AM22: =Inputs!AM35 -> 0 | AN22: =Inputs!AN35 -> 0 | AO22: =Inputs!AO35 -> 0 | AP22: =Inputs!AP35 -> 0 | AQ22: =Inputs!AQ35 -> 0 | AR22: =Inputs!AR35 -> 0 | AS22: =Inputs!AS35 -> 0 | AT22: =Inputs!AT35 -> 0 | AU22: =Inputs!AU35 -> 0 | AV22: =Inputs!AV35 -> 0 | AW22: =Inputs!AW35 -> 0 | AX22: =Inputs!AX35 -> 0
E23: Spares | G23: =Inputs!$I$11 -> £m 15/16 prices | K23: =Inputs!K36 -> 0 | L23: =Inputs!L36 -> 0 | M23: =Inputs!M36 -> 0 | N23: =Inputs!N36 -> 0 | O23: =Inputs!O36 -> 0 | P23: =Inputs!P36 -> 0 | Q23: =Inputs!Q36 -> 0.09788174499 | R23: =Inputs!R36 -> 0.277212816 | S23: =Inputs!S36 -> 0.1772921337 | T23: =Inputs!T36 -> 0.691167507 | U23: =Inputs!U36 -> 2.574295467 | V23: =Inputs!V36 -> 0.7220568361 | W23: =Inputs!W36 -> 0.6201808996 | X23: =Inputs!X36 -> 0 | Y23: =Inputs!Y36 -> 0 | Z23: =Inputs!Z36 -> 0 | AA23: =Inputs!AA36 -> 0 | AB23: =Inputs!AB36 -> 0 | AC23: =Inputs!AC36 -> 0 | AD23: =Inputs!AD36 -> 0 | AE23: =Inputs!AE36 -> 0 | AF23: =Inputs!AF36 -> 0 | AG23: =Inputs!AG36 -> 0 | AH23: =Inputs!AH36 -> 0 | AI23: =Inputs!AI36 -> 0 | AJ23: =Inputs!AJ36 -> 0 | AK23: =Inputs!AK36 -> 0 | AL23: =Inputs!AL36 -> 0 | AM23: =Inputs!AM36 -> 0 | AN23: =Inputs!AN36 -> 0 | AO23: =Inputs!AO36 -> 0 | AP23: =Inputs!AP36 -> 0 | AQ23: =Inputs!AQ36 -> 0 | AR23: =Inputs!AR36 -> 0 | AS23: =Inputs!AS36 -> 0 | AT23: =Inputs!AT36 -> 0 | AU23: =Inputs!AU36 -> 0 | AV23: =Inputs!AV36 -> 0 | AW23: =Inputs!AW36 -> 0 | AX23: =Inputs!AX36 -> 0
E24: Capitalised interest during construction | G24: =Inputs!$I$11 -> £m 15/16 prices | K24: =((1+$I18)^K8-1)*(K20+(K21+K22+K23)/(2+$I18)) -> 0 | L24: =((1+$I18)^L8-1)*(L20+(L21+L22+L23)/(2+$I18)) -> 0.01174727627 | M24: 0.04220608104 | N24: 0.2747168994 | O24: 0.5616380509 | P24: 0.7652213869 | Q24: 1.518943351 | R24: 3.536456032 | S24: 6.456668178 | T24: 11.47183793 | U24: 20.56371408 | V24: =((1+$I18)^V8-1)*(V20+(V21+V22+V23)/(2+$I18)) -> 30.47261242 | W24: =((1+$I18)^W8-1)*(W20+(W21+W22+W23)/(2+$I18)) -> 18.26667392 | X24: =((1+$I18)^X8-1)*(X20+(X21+X22+X23)/(2+$I18)) -> 0 | Y24: =((1+$I18)^Y8-1)*(Y20+(Y21+Y22+Y23)/(2+$I18)) -> 0 | Z24: =((1+$I18)^Z8-1)*(Z20+(Z21+Z22+Z23)/(2+$I18)) -> 0 | AA24: =((1+$I18)^AA8-1)*(AA20+(AA21+AA22+AA23)/(2+$I18)) -> 0 | AB24: =((1+$I18)^AB8-1)*(AB20+(AB21+AB22+AB23)/(2+$I18)) -> 0 | AC24: =((1+$I18)^AC8-1)*(AC20+(AC21+AC22+AC23)/(2+$I18)) -> 0 | AD24: =((1+$I18)^AD8-1)*(AD20+(AD21+AD22+AD23)/(2+$I18)) -> 0 | AE24: =((1+$I18)^AE8-1)*(AE20+(AE21+AE22+AE23)/(2+$I18)) -> 0 | AF24: =((1+$I18)^AF8-1)*(AF20+(AF21+AF22+AF23)/(2+$I18)) -> 0 | AG24: =((1+$I18)^AG8-1)*(AG20+(AG21+AG22+AG23)/(2+$I18)) -> 0 | AH24: =((1+$I18)^AH8-1)*(AH20+(AH21+AH22+AH23)/(2+$I18)) -> 0 | AI24: =((1+$I18)^AI8-1)*(AI20+(AI21+AI22+AI23)/(2+$I18)) -> 0 | AJ24: =((1+$I18)^AJ8-1)*(AJ20+(AJ21+AJ22+AJ23)/(2+$I18)) -> 0 | AK24: =((1+$I18)^AK8-1)*(AK20+(AK21+AK22+AK23)/(2+$I18)) -> 0 | AL24: =((1+$I18)^AL8-1)*(AL20+(AL21+AL22+AL23)/(2+$I18)) -> 0 | AM24: =((1+$I18)^AM8-1)*(AM20+(AM21+AM22+AM23)/(2+$I18)) -> 0 | AN24: =((1+$I18)^AN8-1)*(AN20+(AN21+AN22+AN23)/(2+$I18)) -> 0 | AO24: =((1+$I18)^AO8-1)*(AO20+(AO21+AO22+AO23)/(2+$I18)) -> 0 | AP24: =((1+$I18)^AP8-1)*(AP20+(AP21+AP22+AP23)/(2+$I18)) -> 0 | AQ24: =((1+$I18)^AQ8-1)*(AQ20+(AQ21+AQ22+AQ23)/(2+$I18)) -> 0 | AR24: =((1+$I18)^AR8-1)*(AR20+(AR21+AR22+AR23)/(2+$I18)) -> 0 | AS24: =((1+$I18)^AS8-1)*(AS20+(AS21+AS22+AS23)/(2+$I18)) -> 0 | AT24: =((1+$I18)^AT8-1)*(AT20+(AT21+AT22+AT23)/(2+$I18)) -> 0 | AU24: =((1+$I18)^AU8-1)*(AU20+(AU21+AU22+AU23)/(2+$I18)) -> 0 | AV24: =((1+$I18)^AV8-1)*(AV20+(AV21+AV22+AV23)/(2+$I18)) -> 0 | AW24: =((1+$I18)^AW8-1)*(AW20+(AW21+AW22+AW23)/(2+$I18)) -> 0 | AX24: =((1+$I18)^AX8-1)*(AX20+(AX21+AX22+AX23)/(2+$I18)) -> 0
B26: Transaction costs
C28: Parameters
E30: Pre-operational notional gearing | G30: =Inputs!G73 -> % | I30: =Inputs!I73 -> 0.3341
E31: Operational notional gearing | G31: =Inputs!G74 -> % | I31: =Inputs!I74 -> 0.5
E33: Debt transaction costs | G33: =Inputs!G77 -> % | I33: =Inputs!I77 -> 0.025
E34: Equity transaction rate | G34: =Inputs!G76 -> % | I34: =Inputs!I76 -> 0.05
C36: Allowance
E38: Transaction costs - opening | G38: =Inputs!$I$11 -> £m 15/16 prices | K38: =J46 -> 0 | L38: 0 | M38: 0 | N38: 0 | O38: 0 | P38: 0 | Q38: 26.45456348 | R38: 28.13971918 | S38: 29.93221929 | T38: 31.83890166 | U38: 33.86703969 | V38: 36.02437012 | W38: 38.3191225 | X38: 39.52408944 | Y38: 0 | Z38: 0 | AA38: 0 | AB38: 0 | AC38: 0 | AD38: 0 | AE38: 0 | AF38: 0 | AG38: 0 | AH38: 0 | AI38: 0 | AJ38: 0 | AK38: 0 | AL38: 0 | AM38: 0 | AN38: 0 | AO38: 0 | AP38: 0 | AQ38: 0 | AR38: 0 | AS38: 0 | AT38: 0 | AU38: =AT46 -> 0 | AV38: =AU46 -> 0 | AW38: =AV46 -> 0 | AX38: =AW46 -> 0
E39: Initial debt transaction costs | G39: =Inputs!$I$11 -> £m 15/16 prices | K39: =$I30*K$12*$I33*'Op Rav'!$K$11 -> 0 | L39: =$I30*L$12*$I33*'Op Rav'!$K$11 -> 0 | M39: =$I30*M$12*$I33*'Op Rav'!$K$11 -> 0 | N39: =$I30*N$12*$I33*'Op Rav'!$K$11 -> 0 | O39: =$I30*O$12*$I33*'Op Rav'!$K$11 -> 0 | P39: =$I30*P$12*$I33*'Op Rav'!$K$11 -> 5.146660922 | Q39: =$I30*Q$12*$I33*'Op Rav'!$K$11 -> 0 | R39: =$I30*R$12*$I33*'Op Rav'!$K$11 -> 0 | S39: =$I30*S$12*$I33*'Op Rav'!$K$11 -> 0 | T39: =$I30*T$12*$I33*'Op Rav'!$K$11 -> 0 | U39: =$I30*U$12*$I33*'Op Rav'!$K$11 -> 0 | V39: =$I30*V$12*$I33*'Op Rav'!$K$11 -> 0 | W39: =$I30*W$12*$I33*'Op Rav'!$K$11 -> 0 | X39: =$I30*X$12*$I33*'Op Rav'!$K$11 -> 0 | Y39: =$I30*Y$12*$I33*'Op Rav'!$K$11 -> 0 | Z39: =$I30*Z$12*$I33*'Op Rav'!$K$11 -> 0 | AA39: =$I30*AA$12*$I33*'Op Rav'!$K$11 -> 0 | AB39: =$I30*AB$12*$I33*'Op Rav'!$K$11 -> 0 | AC39: =$I30*AC$12*$I33*'Op Rav'!$K$11 -> 0 | AD39: =$I30*AD$12*$I33*'Op Rav'!$K$11 -> 0 | AE39: =$I30*AE$12*$I33*'Op Rav'!$K$11 -> 0 | AF39: =$I30*AF$12*$I33*'Op Rav'!$K$11 -> 0 | AG39: =$I30*AG$12*$I33*'Op Rav'!$K$11 -> 0 | AH39: =$I30*AH$12*$I33*'Op Rav'!$K$11 -> 0 | AI39: =$I30*AI$12*$I33*'Op Rav'!$K$11 -> 0 | AJ39: =$I30*AJ$12*$I33*'Op Rav'!$K$11 -> 0 | AK39: =$I30*AK$12*$I33*'Op Rav'!$K$11 -> 0 | AL39: =$I30*AL$12*$I33*'Op Rav'!$K$11 -> 0 | AM39: =$I30*AM$12*$I33*'Op Rav'!$K$11 -> 0 | AN39: =$I30*AN$12*$I33*'Op Rav'!$K$11 -> 0 | AO39: =$I30*AO$12*$I33*'Op Rav'!$K$11 -> 0 | AP39: =$I30*AP$12*$I33*'Op Rav'!$K$11 -> 0 | AQ39: =$I30*AQ$12*$I33*'Op Rav'!$K$11 -> 0 | AR39: =$I30*AR$12*$I33*'Op Rav'!$K$11 -> 0 | AS39: =$I30*AS$12*$I33*'Op Rav'!$K$11 -> 0 | AT39: =$I30*AT$12*$I33*'Op Rav'!$K$11 -> 0 | AU39: =$I30*AU$12*$I33*'Op Rav'!$K$11 -> 0 | AV39: =$I30*AV$12*$I33*'Op Rav'!$K$11 -> 0 | AW39: =$I30*AW$12*$I33*'Op Rav'!$K$11 -> 0 | AX39: =$I30*AX$12*$I33*'Op Rav'!$K$11 -> 0
E40: Initial equity transaction costs | G40: =Inputs!$I$11 -> £m 15/16 prices | K40: =(1-$I30)*K$12*$I34*'Op Rav'!$K$11 -> 0 | L40: =(1-$I30)*L$12*$I34*'Op Rav'!$K$11 -> 0 | M40: =(1-$I30)*M$12*$I34*'Op Rav'!$K$11 -> 0 | N40: =(1-$I30)*N$12*$I34*'Op Rav'!$K$11 -> 0 | O40: =(1-$I30)*O$12*$I34*'Op Rav'!$K$11 -> 0 | P40: =(1-$I30)*P$12*$I34*'Op Rav'!$K$11 -> 20.51578275 | Q40: =(1-$I30)*Q$12*$I34*'Op Rav'!$K$11 -> 0 | R40: =(1-$I30)*R$12*$I34*'Op Rav'!$K$11 -> 0 | S40: =(1-$I30)*S$12*$I34*'Op Rav'!$K$11 -> 0 | T40: =(1-$I30)*T$12*$I34*'Op Rav'!$K$11 -> 0 | U40: =(1-$I30)*U$12*$I34*'Op Rav'!$K$11 -> 0 | V40: =(1-$I30)*V$12*$I34*'Op Rav'!$K$11 -> 0 | W40: =(1-$I30)*W$12*$I34*'Op Rav'!$K$11 -> 0 | X40: =(1-$I30)*X$12*$I34*'Op Rav'!$K$11 -> 0 | Y40: =(1-$I30)*Y$12*$I34*'Op Rav'!$K$11 -> 0 | Z40: =(1-$I30)*Z$12*$I34*'Op Rav'!$K$11 -> 0 | AA40: =(1-$I30)*AA$12*$I34*'Op Rav'!$K$11 -> 0 | AB40: =(1-$I30)*AB$12*$I34*'Op Rav'!$K$11 -> 0 | AC40: =(1-$I30)*AC$12*$I34*'Op Rav'!$K$11 -> 0 | AD40: =(1-$I30)*AD$12*$I34*'Op Rav'!$K$11 -> 0 | AE40: =(1-$I30)*AE$12*$I34*'Op Rav'!$K$11 -> 0 | AF40: =(1-$I30)*AF$12*$I34*'Op Rav'!$K$11 -> 0 | AG40: =(1-$I30)*AG$12*$I34*'Op Rav'!$K$11 -> 0 | AH40: =(1-$I30)*AH$12*$I34*'Op Rav'!$K$11 -> 0 | AI40: =(1-$I30)*AI$12*$I34*'Op Rav'!$K$11 -> 0 | AJ40: =(1-$I30)*AJ$12*$I34*'Op Rav'!$K$11 -> 0 | AK40: =(1-$I30)*AK$12*$I34*'Op Rav'!$K$11 -> 0 | AL40: =(1-$I30)*AL$12*$I34*'Op Rav'!$K$11 -> 0 | AM40: =(1-$I30)*AM$12*$I34*'Op Rav'!$K$11 -> 0 | AN40: =(1-$I30)*AN$12*$I34*'Op Rav'!$K$11 -> 0 | AO40: =(1-$I30)*AO$12*$I34*'Op Rav'!$K$11 -> 0 | AP40: =(1-$I30)*AP$12*$I34*'Op Rav'!$K$11 -> 0 | AQ40: =(1-$I30)*AQ$12*$I34*'Op Rav'!$K$11 -> 0 | AR40: =(1-$I30)*AR$12*$I34*'Op Rav'!$K$11 -> 0 | AS40: =(1-$I30)*AS$12*$I34*'Op Rav'!$K$11 -> 0 | AT40: =(1-$I30)*AT$12*$I34*'Op Rav'!$K$11 -> 0 | AU40: =(1-$I30)*AU$12*$I34*'Op Rav'!$K$11 -> 0 | AV40: =(1-$I30)*AV$12*$I34*'Op Rav'!$K$11 -> 0 | AW40: =(1-$I30)*AW$12*$I34*'Op Rav'!$K$11 -> 0 | AX40: =(1-$I30)*AX$12*$I34*'Op Rav'!$K$11 -> 0
E41: Final debt transaction costs | G41: =Inputs!$I$11 -> £m 15/16 prices | K41: =($I31-$I30)*'Op Rav'!$K$11*$I33*K$11 -> 0 | L41: =($I31-$I30)*'Op Rav'!$K$11*$I33*L$11 -> 0 | M41: =($I31-$I30)*'Op Rav'!$K$11*$I33*M$11 -> 0 | N41: =($I31-$I30)*'Op Rav'!$K$11*$I33*N$11 -> 0 | O41: =($I31-$I30)*'Op Rav'!$K$11*$I33*O$11 -> 0 | P41: =($I31-$I30)*'Op Rav'!$K$11*$I33*P$11 -> 0 | Q41: =($I31-$I30)*'Op Rav'!$K$11*$I33*Q$11 -> 0 | R41: =($I31-$I30)*'Op Rav'!$K$11*$I33*R$11 -> 0 | S41: =($I31-$I30)*'Op Rav'!$K$11*$I33*S$11 -> 0 | T41: =($I31-$I30)*'Op Rav'!$K$11*$I33*T$11 -> 0 | U41: =($I31-$I30)*'Op Rav'!$K$11*$I33*U$11 -> 0 | V41: =($I31-$I30)*'Op Rav'!$K$11*$I33*V$11 -> 0 | W41: =($I31-$I30)*'Op Rav'!$K$11*$I33*W$11 -> 0 | X41: =($I31-$I30)*'Op Rav'!$K$11*$I33*X$11 -> 2.555615226 | Y41: =($I31-$I30)*'Op Rav'!$K$11*$I33*Y$11 -> 0 | Z41: =($I31-$I30)*'Op Rav'!$K$11*$I33*Z$11 -> 0 | AA41: =($I31-$I30)*'Op Rav'!$K$11*$I33*AA$11 -> 0 | AB41: =($I31-$I30)*'Op Rav'!$K$11*$I33*AB$11 -> 0 | AC41: =($I31-$I30)*'Op Rav'!$K$11*$I33*AC$11 -> 0 | AD41: =($I31-$I30)*'Op Rav'!$K$11*$I33*AD$11 -> 0 | AE41: =($I31-$I30)*'Op Rav'!$K$11*$I33*AE$11 -> 0 | AF41: =($I31-$I30)*'Op Rav'!$K$11*$I33*AF$11 -> 0 | AG41: =($I31-$I30)*'Op Rav'!$K$11*$I33*AG$11 -> 0 | AH41: =($I31-$I30)*'Op Rav'!$K$11*$I33*AH$11 -> 0 | AI41: =($I31-$I30)*'Op Rav'!$K$11*$I33*AI$11 -> 0 | AJ41: =($I31-$I30)*'Op Rav'!$K$11*$I33*AJ$11 -> 0 | AK41: =($I31-$I30)*'Op Rav'!$K$11*$I33*AK$11 -> 0 | AL41: =($I31-$I30)*'Op Rav'!$K$11*$I33*AL$11 -> 0 | AM41: =($I31-$I30)*'Op Rav'!$K$11*$I33*AM$11 -> 0 | AN41: =($I31-$I30)*'Op Rav'!$K$11*$I33*AN$11 -> 0 | AO41: =($I31-$I30)*'Op Rav'!$K$11*$I33*AO$11 -> 0 | AP41: =($I31-$I30)*'Op Rav'!$K$11*$I33*AP$11 -> 0 | AQ41: =($I31-$I30)*'Op Rav'!$K$11*$I33*AQ$11 -> 0 | AR41: =($I31-$I30)*'Op Rav'!$K$11*$I33*AR$11 -> 0 | AS41: =($I31-$I30)*'Op Rav'!$K$11*$I33*AS$11 -> 0 | AT41: =($I31-$I30)*'Op Rav'!$K$11*$I33*AT$11 -> 0 | AU41: =($I31-$I30)*'Op Rav'!$K$11*$I33*AU$11 -> 0 | AV41: =($I31-$I30)*'Op Rav'!$K$11*$I33*AV$11 -> 0 | AW41: =($I31-$I30)*'Op Rav'!$K$11*$I33*AW$11 -> 0 | AX41: =($I31-$I30)*'Op Rav'!$K$11*$I33*AX$11 -> 0
E42: Final equity transaction costs | G42: =Inputs!$I$11 -> £m 15/16 prices | K42: =($I30-$I31)*'Op Rav'!$K$11*$I34*K$11 -> 0 | L42: =($I30-$I31)*'Op Rav'!$K$11*$I34*L$11 -> 0 | M42: =($I30-$I31)*'Op Rav'!$K$11*$I34*M$11 -> 0 | N42: =($I30-$I31)*'Op Rav'!$K$11*$I34*N$11 -> 0 | O42: =($I30-$I31)*'Op Rav'!$K$11*$I34*O$11 -> 0 | P42: =($I30-$I31)*'Op Rav'!$K$11*$I34*P$11 -> 0 | Q42: =($I30-$I31)*'Op Rav'!$K$11*$I34*Q$11 -> 0 | R42: =($I30-$I31)*'Op Rav'!$K$11*$I34*R$11 -> 0 | S42: =($I30-$I31)*'Op Rav'!$K$11*$I34*S$11 -> 0 | T42: =($I30-$I31)*'Op Rav'!$K$11*$I34*T$11 -> 0 | U42: =($I30-$I31)*'Op Rav'!$K$11*$I34*U$11 -> 0 | V42: =($I30-$I31)*'Op Rav'!$K$11*$I34*V$11 -> 0 | W42: =($I30-$I31)*'Op Rav'!$K$11*$I34*W$11 -> 0 | X42: =($I30-$I31)*'Op Rav'!$K$11*$I34*X$11 -> -5.111230452 | Y42: =($I30-$I31)*'Op Rav'!$K$11*$I34*Y$11 -> 0 | Z42: =($I30-$I31)*'Op Rav'!$K$11*$I34*Z$11 -> 0 | AA42: =($I30-$I31)*'Op Rav'!$K$11*$I34*AA$11 -> 0 | AB42: =($I30-$I31)*'Op Rav'!$K$11*$I34*AB$11 -> 0 | AC42: =($I30-$I31)*'Op Rav'!$K$11*$I34*AC$11 -> 0 | AD42: =($I30-$I31)*'Op Rav'!$K$11*$I34*AD$11 -> 0 | AE42: =($I30-$I31)*'Op Rav'!$K$11*$I34*AE$11 -> 0 | AF42: =($I30-$I31)*'Op Rav'!$K$11*$I34*AF$11 -> 0 | AG42: =($I30-$I31)*'Op Rav'!$K$11*$I34*AG$11 -> 0 | AH42: =($I30-$I31)*'Op Rav'!$K$11*$I34*AH$11 -> 0 | AI42: =($I30-$I31)*'Op Rav'!$K$11*$I34*AI$11 -> 0 | AJ42: =($I30-$I31)*'Op Rav'!$K$11*$I34*AJ$11 -> 0 | AK42: =($I30-$I31)*'Op Rav'!$K$11*$I34*AK$11 -> 0 | AL42: =($I30-$I31)*'Op Rav'!$K$11*$I34*AL$11 -> 0 | AM42: =($I30-$I31)*'Op Rav'!$K$11*$I34*AM$11 -> 0 | AN42: =($I30-$I31)*'Op Rav'!$K$11*$I34*AN$11 -> 0 | AO42: =($I30-$I31)*'Op Rav'!$K$11*$I34*AO$11 -> 0 | AP42: =($I30-$I31)*'Op Rav'!$K$11*$I34*AP$11 -> 0 | AQ42: =($I30-$I31)*'Op Rav'!$K$11*$I34*AQ$11 -> 0 | AR42: =($I30-$I31)*'Op Rav'!$K$11*$I34*AR$11 -> 0 | AS42: =($I30-$I31)*'Op Rav'!$K$11*$I34*AS$11 -> 0 | AT42: =($I30-$I31)*'Op Rav'!$K$11*$I34*AT$11 -> 0 | AU42: =($I30-$I31)*'Op Rav'!$K$11*$I34*AU$11 -> 0 | AV42: =($I30-$I31)*'Op Rav'!$K$11*$I34*AV$11 -> 0 | AW42: =($I30-$I31)*'Op Rav'!$K$11*$I34*AW$11 -> 0 | AX42: =($I30-$I31)*'Op Rav'!$K$11*$I34*AX$11 -> 0
E43: Transaction costs - annual movement | G43: =Inputs!$I$11 -> £m 15/16 prices | K43: =SUM(K39:K42) -> 0 | L43: 0 | M43: 0 | N43: 0 | O43: 0 | P43: 25.66244367 | Q43: 0 | R43: =SUM(R39:R42) -> 0 | S43: 0 | T43: 0 | U43: 0 | V43: 0 | W43: 0 | X43: -2.555615226 | Y43: 0 | Z43: 0 | AA43: 0 | AB43: 0 | AC43: 0 | AD43: 0 | AE43: 0 | AF43: 0 | AG43: 0 | AH43: 0 | AI43: 0 | AJ43: 0 | AK43: 0 | AL43: 0 | AM43: 0 | AN43: 0 | AO43: 0 | AP43: 0 | AQ43: 0 | AR43: 0 | AS43: 0 | AT43: 0 | AU43: =SUM(AU39:AU42) -> 0 | AV43: 0 | AW43: 0 | AX43: 0
E44: Capitalised IDC on transaction costs | G44: =Inputs!$I$11 -> £m 15/16 prices | K44: =((1+$I18)^K8-1)*(K38+(K39+K40+K41+K42)/(2+$I18)) -> 0 | L44: =((1+$I18)^L8-1)*(L38+(L39+L40+L41+L42)/(2+$I18)) -> 0 | M44: 0 | N44: 0 | O44: 0 | P44: 0.7921198148 | Q44: 1.685155694 | R44: 1.792500112 | S44: 1.906682369 | T44: 2.028138036 | U44: 2.157330428 | V44: 2.294752377 | W44: 1.204966946 | X44: 0 | Y44: 0 | Z44: 0 | AA44: 0 | AB44: 0 | AC44: 0 | AD44: 0 | AE44: 0 | AF44: 0 | AG44: 0 | AH44: 0 | AI44: 0 | AJ44: 0 | AK44: 0 | AL44: 0 | AM44: 0 | AN44: 0 | AO44: 0 | AP44: 0 | AQ44: 0 | AR44: 0 | AS44: 0 | AT44: 0 | AU44: 0 | AV44: 0 | AW44: 0 | AX44: 0
E45: Transfer to operational RAV | G45: =Inputs!$I$11 -> £m 15/16 prices | K45: =-SUM(K38,K43,K44)*K$11 -> 0 | L45: 0 | M45: 0 | N45: 0 | O45: 0 | P45: 0 | Q45: 0 | R45: 0 | S45: 0 | T45: 0 | U45: 0 | V45: 0 | W45: 0 | X45: -36.96847422 | Y45: 0 | Z45: 0 | AA45: 0 | AB45: 0 | AC45: 0 | AD45: 0 | AE45: 0 | AF45: 0 | AG45: 0 | AH45: 0 | AI45: 0 | AJ45: 0 | AK45: 0 | AL45: 0 | AM45: 0 | AN45: 0 | AO45: 0 | AP45: 0 | AQ45: 0 | AR45: 0 | AS45: 0 | AT45: 0 | AU45: 0 | AV45: 0 | AW45: 0 | AX45: 0
E46: Transaction costs - closing | G46: =Inputs!$I$11 -> £m 15/16 prices | K46: =SUM(K45,K44,K43,K38) -> 0 | L46: =SUM(L45,L44,L43,L38) -> 0 | M46: 0 | N46: 0 | O46: 0 | P46: 26.45456348 | Q46: 28.13971918 | R46: 29.93221929 | S46: 31.83890166 | T46: 33.86703969 | U46: 36.02437012 | V46: 38.3191225 | W46: 39.52408944 | X46: 0 | Y46: 0 | Z46: 0 | AA46: 0 | AB46: 0 | AC46: 0 | AD46: 0 | AE46: 0 | AF46: 0 | AG46: 0 | AH46: 0 | AI46: 0 | AJ46: 0 | AK46: 0 | AL46: 0 | AM46: 0 | AN46: 0 | AO46: 0 | AP46: 0 | AQ46: 0 | AR46: 0 | AS46: 0 | AT46: 0 | AU46: 0 | AV46: 0 | AW46: 0 | AX46: 0
B48: End of sheet

Sheet Op Rav
A1: Op RAV | H1: Licence
E2: Parameter | G2: Units | H2: Terminology | I2: Constant | K2: Annual values
E3: Project year | K3: Year 1 | L3: Year 2 | M3: Year 3 | N3: Year 4 | O3: Year 5 | P3: Year 6 | Q3: Year 7 | R3: Year 8 | S3: Year 9 | T3: Year 10 | U3: Year 11 | V3: Year 12 | W3: Year 13 | X3: Year 14 | Y3: Year 15 | Z3: Year 16 | AA3: Year 17 | AB3: Year 18 | AC3: Year 19 | AD3: Year 20 | AE3: Year 21 | AF3: Year 22 | AG3: Year 23 | AH3: Year 24 | AI3: Year 25
B5: RAV
C7: Operational
E9: Opening operational RAV (before transfers) | G9: =Inputs!$I$11 -> £m 15/16 prices | K9: =J15 -> 0 | L9: 627.0245434 | M9: 601.8195176 | N9: 575.6534516 | O9: 549.4873857 | P9: 524.1509069 | Q9: 497.9433615 | R9: 472.5599681 | S9: 453.0717732 | T9: 426.4204924 | U9: 400.4262465 | V9: 374.4463247 | W9: 348.9870729 | X9: 324.0684652 | Y9: 297.0627598 | Z9: 270.0570544 | AA9: 243.2802005 | AB9: 255.0390112 | AC9: 223.5512392 | AD9: 191.7297737 | AE9: 160.0397418 | AF9: 128.0565579 | AG9: 96.63787902 | AH9: 65.28487359 | AI9: 32.64243679
E10: Transfers of transaction costs | G10: =Inputs!$I$11 -> £m 15/16 prices | K10: =-SUM(Finance!K45:AX45) -> 36.96847422
E11: Transfers of pre-operational RAV | G11: =Inputs!$I$11 -> £m 15/16 prices | K11: =-SUM('Pre Op RAV'!K23:AX23) -> 616.1820918
E12: Opening operational RAV (after transfers) | G12: =Inputs!$I$11 -> £m 15/16 prices | K12: =SUM(K9:K11) -> 653.150566 | L12: =SUM(L9:L11) -> 627.0245434 | M12: =SUM(M9:M11) -> 601.8195176 | N12: 575.6534516 | O12: 549.4873857 | P12: 524.1509069 | Q12: 497.9433615 | R12: 472.5599681 | S12: 453.0717732 | T12: 426.4204924 | U12: 400.4262465 | V12: 374.4463247 | W12: 348.9870729 | X12: 324.0684652 | Y12: 297.0627598 | Z12: 270.0570544 | AA12: 243.2802005 | AB12: 255.0390112 | AC12: 223.5512392 | AD12: 191.7297737 | AE12: 160.0397418 | AF12: 128.0565579 | AG12: 96.63787902 | AH12: 65.28487359 | AI12: 32.64243679
E13: Replacement Capex | G13: =Inputs!$I$11 -> £m 15/16 prices | K13: =Inputs!K59 -> 0 | L13: =Inputs!L59 -> 0.9209968749 | M13: =Inputs!M59 -> 0 | N13: =Inputs!N59 -> 0 | O13: =Inputs!O59 -> 0.8295871749 | P13: =Inputs!P59 -> 0 | Q13: =Inputs!Q59 -> 0.8241518888 | R13: =Inputs!R59 -> 6.765136692 | S13: =Inputs!S59 -> 0 | T13: =Inputs!T59 -> 0.6570348282 | U13: =Inputs!U59 -> 0.7151613721 | V13: =Inputs!V59 -> 1.286914166 | W13: =Inputs!W59 -> 1.92655184 | X13: =Inputs!X59 -> 0 | Y13: =Inputs!Y59 -> 0 | Z13: =Inputs!Z59 -> 0.2288516056 | AA13: =Inputs!AA59 -> 38.78994401 | AB13: =Inputs!AB59 -> 0.3921044532 | AC13: =Inputs!AC59 -> 0.1144258028 | AD13: =Inputs!AD59 -> 0.264930375 | AE13: =Inputs!AE59 -> 0.02476449178 | AF13: =Inputs!AF59 -> 0.5954605733 | AG13: =Inputs!AG59 -> 0.8596209075 | AH13: =Inputs!AH59 -> 0 | AI13: =Inputs!AI59 -> 0.375594792
E14: Depreciation (negative) | G14: =Inputs!$I$11 -> £m 15/16 prices | K14: =- K25 -> -26.12602264 | L14: =- L25 -> -26.12602264 | M14: =- M25 -> -26.16606598 | N14: -26.16606598 | O14: -26.16606598 | P14: -26.20754534 | Q14: -26.20754534 | R14: -26.25333156 | S14: -26.65128078 | T14: -26.65128078 | U14: -26.6950831 | V14: -26.74616605 | W14: -26.84515945 | X14: -27.00570544 | Y14: -27.00570544 | Z14: -27.00570544 | AA14: -27.03113339 | AB14: -31.87987639 | AC14: -31.93589132 | AD14: -31.95496228 | AE14: -32.00794836 | AF14: -32.01413948 | AG14: -32.21262634 | AH14: -32.64243679 | AI14: -33.01803159
E15: Closing operational RAV | G15: =Inputs!$I$11 -> £m 15/16 prices | K15: =SUM(K12:K14) -> 627.0245434 | L15: 601.8195176 | M15: 575.6534516 | N15: 549.4873857 | O15: 524.1509069 | P15: 497.9433615 | Q15: 472.5599681 | R15: 453.0717732 | S15: 426.4204924 | T15: 400.4262465 | U15: 374.4463247 | V15: 348.9870729 | W15: 324.0684652 | X15: 297.0627598 | Y15: 270.0570544 | Z15: 243.2802005 | AA15: 255.0390112 | AB15: 223.5512392 | AC15: 191.7297737 | AD15: 160.0397418 | AE15: 128.0565579 | AF15: 96.63787902 | AG15: 65.28487359 | AH15: 32.64243679 | AI15: 0
E17: Average operational RAV | G17: =Inputs!$I$11 -> £m 15/16 prices | K17: =AVERAGE(K12, K15) -> 640.0875547 | L17: =AVERAGE(L12, L15) -> 614.4220305 | M17: =AVERAGE(M12, M15) -> 588.7364846 | N17: 562.5704187 | O17: 536.8191463 | P17: 511.0471342 | Q17: 485.2516648 | R17: 462.8158706 | S17: 439.7461328 | T17: 413.4233694 | U17: 387.4362856 | V17: 361.7166988 | W17: 336.527769 | X17: 310.5656125 | Y17: 283.5599071 | Z17: 256.6686275 | AA17: =AVERAGE(AA12, AA15) -> 249.1596058 | AB17: 239.2951252 | AC17: 207.6405065 | AD17: 175.8847577 | AE17: 144.0481499 | AF17: 112.3472185 | AG17: 80.9613763 | AH17: 48.96365519 | AI17: 16.3212184
B19: Operational RAV depreciation
E21: Number of operational years | G21: full years | I21: =Inputs!I89 -> 25
E22: Years remaining until end of operational period | G22: full years | K22: =I21 -> 25 | L22: =+K22-1 -> 24 | M22: =+L22-1 -> 23 | N22: 22 | O22: 21 | P22: 20 | Q22: 19 | R22: 18 | S22: 17 | T22: 16 | U22: 15 | V22: 14 | W22: 13 | X22: 12 | Y22: 11 | Z22: 10 | AA22: 9 | AB22: 8 | AC22: 7 | AD22: 6 | AE22: 5 | AF22: 4 | AG22: 3 | AH22: 2 | AI22: 1
E23: Year is before end of operational period | G23: flag | K23: =K22 > 0 -> TRUE | L23: TRUE | M23: TRUE | N23: TRUE | O23: TRUE | P23: TRUE | Q23: TRUE | R23: TRUE | S23: TRUE | T23: TRUE | U23: TRUE | V23: TRUE | W23: TRUE | X23: TRUE | Y23: TRUE | Z23: TRUE | AA23: TRUE | AB23: TRUE | AC23: TRUE | AD23: TRUE | AE23: TRUE | AF23: TRUE | AG23: TRUE | AH23: TRUE | AI23: TRUE
E25: RAV depreciation | G25: =Inputs!$I$11 -> £m 15/16 prices | K25: =IF(K23, IF(K22=1,SUM(K12:K13),K12 / K22), 0) -> 26.12602264 | L25: =IF(L23, IF(L22=1,SUM(L12:L13),L12 / L22), 0) -> 26.12602264 | M25: 26.16606598 | N25: 26.16606598 | O25: 26.16606598 | P25: 26.20754534 | Q25: 26.20754534 | R25: 26.25333156 | S25: 26.65128078 | T25: 26.65128078 | U25: 26.6950831 | V25: 26.74616605 | W25: 26.84515945 | X25: 27.00570544 | Y25: 27.00570544 | Z25: 27.00570544 | AA25: 27.03113339 | AB25: 31.87987639 | AC25: 31.93589132 | AD25: 31.95496228 | AE25: 32.00794836 | AF25: 32.01413948 | AG25: 32.21262634 | AH25: 32.64243679 | AI25: 33.01803159
E27: Depreciation equal to additions | G27: check | I27: =IF(ABS(SUM('Pre Op RAV'!K18:AX21,Finance!K39:AX42,Finance!K44:AX44,K13:AI13)-SUM(K25:AI25))<0.00000001,"TRUE","FALSE") -> TRUE
B29: Operational RAV return
E31: Cap return rate | G31: =Inputs!G68 -> real annual % | I31: =Inputs!I68 -> 0.0798
E32: Floor return rate | G32: =Inputs!G69 -> real annual % | I32: =Inputs!I69 -> 0.0088
E34: Opening operational RAV (after transfers) | G34: =Inputs!$I$11 -> £m 15/16 prices | K34: =K12 -> 653.150566 | L34: 627.0245434 | M34: 601.8195176 | N34: 575.6534516 | O34: 549.4873857 | P34: 524.1509069 | Q34: 497.9433615 | R34: 472.5599681 | S34: 453.0717732 | T34: 426.4204924 | U34: 400.4262465 | V34: 374.4463247 | W34: 348.9870729 | X34: 324.0684652 | Y34: 297.0627598 | Z34: 270.0570544 | AA34: 243.2802005 | AB34: 255.0390112 | AC34: 223.5512392 | AD34: 191.7297737 | AE34: 160.0397418 | AF34: 128.0565579 | AG34: 96.63787902 | AH34: 65.28487359 | AI34: 32.64243679
E35: Closing operational RAV | G35: =Inputs!$I$11 -> £m 15/16 prices | K35: =K15 -> 627.0245434 | L35: 601.8195176 | M35: 575.6534516 | N35: 549.4873857 | O35: 524.1509069 | P35: 497.9433615 | Q35: 472.5599681 | R35: 453.0717732 | S35: 426.4204924 | T35: 400.4262465 | U35: 374.4463247 | V35: 348.9870729 | W35: 324.0684652 | X35: 297.0627598 | Y35: 270.0570544 | Z35: 243.2802005 | AA35: 255.0390112 | AB35: 223.5512392 | AC35: 191.7297737 | AD35: 160.0397418 | AE35: 128.0565579 | AF35: 96.63787902 | AG35: 65.28487359 | AH35: 32.64243679 | AI35: 0
E37: NPV neutral return base (cap) | G37: =Inputs!$I$11 -> £m 15/16 prices | K37: =0.5 * K$34 + 0.5 * K$35 / (1 + $I31) -> 616.9181907 | L37: =0.5 * L$34 + 0.5 * L$35 / (1 + $I31) -> 592.1840246 | M37: 567.4653486 | N37: 542.2661524 | O37: 517.4510955 | P37: 492.647486 | Q37: 467.7899656 | R37: 446.0742854 | S37: 423.9893467 | T37: 398.6271042 | U37: 373.6000119 | V37: 348.8211772 | W37: 324.5530221 | X37: 299.5887611 | Y37: 273.5809513 | Z37: 247.6791109 | AA37: 239.7355861 | AB37: 231.0346191 | AC37: 200.5558445 | AD37: 169.9710833 | AE37: 139.3162952 | AF37: 108.7763244 | AG37: 78.54901618 | AH37: 47.75747513 | AI37: 16.3212184
E38: NPV neutral return base (floor) | G38: =Inputs!$I$11 -> £m 15/16 prices | K38: =0.5 * K$34 + 0.5 * K$35 / (1 + $I32) -> 637.3527133 | L38: 611.7971238 | M38: 586.2257043 | N38: 560.1737647 | O38: 534.5330004 | P38: 508.8752956 | Q38: 483.1905388 | R38: 460.8397447 | S38: 437.8862496 | T38: 411.6768632 | U38: 385.8030939 | V38: 360.1945506 | W38: 335.1143063 | X38: 309.2699383 | Y38: 282.3820214 | Z38: 255.6075322 | AA38: 248.0472232 | AB38: 238.3200801 | AC38: 206.8042545 | AD38: 175.1867256 | AE38: 143.4896161 | AF38: 111.925721 | AG38: 80.67662864 | AH38: 48.82128136 | AI38: 16.3212184
E40: Return (cap) | G40: =Inputs!$I$11 -> £m 15/16 prices | K40: =K37 * $I31 -> 49.23007162 | L40: 47.25628517 | M40: 45.28373482 | N40: 43.27283896 | O40: 41.29259742 | P40: 39.31326938 | Q40: 37.32963926 | R40: 35.59672797 | S40: 33.83434987 | T40: 31.81044291 | U40: 29.81328095 | V40: 27.83592994 | W40: 25.89933116 | X40: 23.90718314 | Y40: 21.83175991 | Z40: 19.76479305 | AA40: 19.13089977 | AB40: 18.43656261 | AC40: 16.00435639 | AD40: 13.56369245 | AE40: 11.11744036 | AF40: 8.680350691 | AG40: 6.268211491 | AH40: 3.811046515 | AI40: 1.302433228
E41: Return (floor) | G41: =Inputs!$I$11 -> £m 15/16 prices | K41: =K38 * $I32 -> 5.608703877 | L41: 5.38381469 | M41: 5.158786198 | N41: 4.929529129 | O41: 4.703890403 | P41: 4.478102601 | Q41: 4.252076742 | R41: 4.055389754 | S41: 3.853398997 | T41: 3.622756396 | U41: 3.395067226 | V41: 3.169712045 | W41: 2.949005895 | X41: 2.721575457 | Y41: 2.484961789 | Z41: 2.249346283 | AA41: 2.182815564 | AB41: 2.097216705 | AC41: 1.819877439 | AD41: 1.541643185 | AE41: 1.262708622 | AF41: 0.9849463446 | AG41: 0.709954332 | AH41: 0.4296272759 | AI41: 0.1436267219
B43: End of sheet

Sheet Allowances Cap
A1: Allowances Cap | H1: Licence
E2: Parameter | G2: Units | H2: Terminology | I2: Constant | K2: Annual values
E3: Project year | K3: Year 1 | L3: Year 2 | M3: Year 3 | N3: Year 4 | O3: Year 5 | P3: Year 6 | Q3: Year 7 | R3: Year 8 | S3: Year 9 | T3: Year 10 | U3: Year 11 | V3: Year 12 | W3: Year 13 | X3: Year 14 | Y3: Year 15 | Z3: Year 16 | AA3: Year 17 | AB3: Year 18 | AC3: Year 19 | AD3: Year 20 | AE3: Year 21 | AF3: Year 22 | AG3: Year 23 | AH3: Year 24 | AI3: Year 25
E4: Year | K4: 1 | L4: =+K4+1 -> 2 | M4: =+L4+1 -> 3 | N4: 4 | O4: 5 | P4: 6 | Q4: 7 | R4: 8 | S4: 9 | T4: 10 | U4: 11 | V4: 12 | W4: 13 | X4: 14 | Y4: 15 | Z4: 16 | AA4: 17 | AB4: 18 | AC4: 19 | AD4: 20 | AE4: 21 | AF4: 22 | AG4: 23 | AH4: 24 | AI4: 25
B6: Unprofiled allowances except tax (cap)
E8: Controllable Opex | G8: =Inputs!$I$11 -> £m 15/16 prices | K8: =Inputs!K61 -> 18.56519214 | L8: =Inputs!L61 -> 22.82676834 | M8: =Inputs!M61 -> 25.23175199 | N8: =Inputs!N61 -> 25.99052449 | O8: =Inputs!O61 -> 22.97924896 | P8: =Inputs!P61 -> 21.9230236 | Q8: =Inputs!Q61 -> 22.06137428 | R8: =Inputs!R61 -> 22.77738525 | S8: =Inputs!S61 -> 22.78047099 | T8: =Inputs!T61 -> 22.93930759 | U8: =Inputs!U61 -> 23.16520331 | V8: =Inputs!V61 -> 23.24486919 | W8: =Inputs!W61 -> 23.47899197 | X8: =Inputs!X61 -> 23.35873275 | Y8: =Inputs!Y61 -> 22.93008498 | Z8: =Inputs!Z61 -> 23.69779343 | AA8: =Inputs!AA61 -> 23.7700535 | AB8: =Inputs!AB61 -> 24.03323845 | AC8: =Inputs!AC61 -> 23.90513922 | AD8: =Inputs!AD61 -> 24.02239588 | AE8: =Inputs!AE61 -> 24.2706713 | AF8: =Inputs!AF61 -> 24.33390731 | AG8: =Inputs!AG61 -> 24.59047105 | AH8: =Inputs!AH61 -> 24.49226401 | AI8: =Inputs!AI61 -> 24.77578724
E9: Non-controllable Opex (baseline) | G9: =Inputs!$I$11 -> £m 15/16 prices | K9: =Inputs!K62 -> 1.151161748 | L9: =Inputs!L62 -> 1.142434531 | M9: =Inputs!M62 -> 1.133773477 | N9: =Inputs!N62 -> 1.125178085 | O9: =Inputs!O62 -> 1.116647856 | P9: =Inputs!P62 -> 1.108182297 | Q9: =Inputs!Q62 -> 1.099780917 | R9: =Inputs!R62 -> 1.091443229 | S9: =Inputs!S62 -> 1.083168752 | T9: =Inputs!T62 -> 1.074957005 | U9: =Inputs!U62 -> 1.066807514 | V9: =Inputs!V62 -> 1.058719805 | W9: =Inputs!W62 -> 1.050693412 | X9: =Inputs!X62 -> 1.042727868 | Y9: =Inputs!Y62 -> 1.034822713 | Z9: =Inputs!Z62 -> 1.026977488 | AA9: =Inputs!AA62 -> 1.01919174 | AB9: =Inputs!AB62 -> 1.011465018 | AC9: =Inputs!AC62 -> 1.003796873 | AD9: =Inputs!AD62 -> 0.9961868625 | AE9: =Inputs!AE62 -> 0.9886345452 | AF9: =Inputs!AF62 -> 0.9811394836 | AG9: =Inputs!AG62 -> 0.9737012439 | AH9: =Inputs!AH62 -> 0.966319395 | AI9: =Inputs!AI62 -> 0.9589935097
E10: Decommissioning baseline | G10: =Inputs!$I$11 -> £m 15/16 prices | K10: =Inputs!K60 -> 0 | L10: =Inputs!L60 -> 0 | M10: =Inputs!M60 -> 0 | N10: =Inputs!N60 -> 0 | O10: =Inputs!O60 -> 0 | P10: =Inputs!P60 -> 0 | Q10: =Inputs!Q60 -> 0 | R10: =Inputs!R60 -> 0 | S10: =Inputs!S60 -> 0 | T10: =Inputs!T60 -> 0 | U10: =Inputs!U60 -> 0 | V10: =Inputs!V60 -> 0 | W10: =Inputs!W60 -> 0 | X10: =Inputs!X60 -> 0 | Y10: =Inputs!Y60 -> 0 | Z10: =Inputs!Z60 -> 0 | AA10: =Inputs!AA60 -> 0 | AB10: =Inputs!AB60 -> 0 | AC10: =Inputs!AC60 -> 0 | AD10: =Inputs!AD60 -> 0 | AE10: =Inputs!AE60 -> 0 | AF10: =Inputs!AF60 -> 0 | AG10: =Inputs!AG60 -> 0 | AH10: =Inputs!AH60 -> 0 | AI10: =Inputs!AI60 -> 24.21525798
E11: RAV depreciation | G11: =Inputs!$I$11 -> £m 15/16 prices | K11: ='Op Rav'!K25 -> 26.12602264 | L11: ='Op Rav'!L25 -> 26.12602264 | M11: ='Op Rav'!M25 -> 26.16606598 | N11: ='Op Rav'!N25 -> 26.16606598 | O11: ='Op Rav'!O25 -> 26.16606598 | P11: ='Op Rav'!P25 -> 26.20754534 | Q11: ='Op Rav'!Q25 -> 26.20754534 | R11: ='Op Rav'!R25 -> 26.25333156 | S11: ='Op Rav'!S25 -> 26.65128078 | T11: ='Op Rav'!T25 -> 26.65128078 | U11: ='Op Rav'!U25 -> 26.6950831 | V11: ='Op Rav'!V25 -> 26.74616605 | W11: ='Op Rav'!W25 -> 26.84515945 | X11: ='Op Rav'!X25 -> 27.00570544 | Y11: ='Op Rav'!Y25 -> 27.00570544 | Z11: ='Op Rav'!Z25 -> 27.00570544 | AA11: ='Op Rav'!AA25 -> 27.03113339 | AB11: ='Op Rav'!AB25 -> 31.87987639 | AC11: ='Op Rav'!AC25 -> 31.93589132 | AD11: ='Op Rav'!AD25 -> 31.95496228 | AE11: ='Op Rav'!AE25 -> 32.00794836 | AF11: ='Op Rav'!AF25 -> 32.01413948 | AG11: ='Op Rav'!AG25 -> 32.21262634 | AH11: ='Op Rav'!AH25 -> 32.64243679 | AI11: ='Op Rav'!AI25 -> 33.01803159
E12: Return (cap) | G12: =Inputs!$I$11 -> £m 15/16 prices | K12: ='Op Rav'!K40 -> 49.23007162 | L12: ='Op Rav'!L40 -> 47.25628517 | M12: ='Op Rav'!M40 -> 45.28373482 | N12: ='Op Rav'!N40 -> 43.27283896 | O12: ='Op Rav'!O40 -> 41.29259742 | P12: ='Op Rav'!P40 -> 39.31326938 | Q12: ='Op Rav'!Q40 -> 37.32963926 | R12: ='Op Rav'!R40 -> 35.59672797 | S12: ='Op Rav'!S40 -> 33.83434987 | T12: ='Op Rav'!T40 -> 31.81044291 | U12: ='Op Rav'!U40 -> 29.81328095 | V12: ='Op Rav'!V40 -> 27.83592994 | W12: ='Op Rav'!W40 -> 25.89933116 | X12: ='Op Rav'!X40 -> 23.90718314 | Y12: ='Op Rav'!Y40 -> 21.83175991 | Z12: ='Op Rav'!Z40 -> 19.76479305 | AA12: ='Op Rav'!AA40 -> 19.13089977 | AB12: ='Op Rav'!AB40 -> 18.43656261 | AC12: ='Op Rav'!AC40 -> 16.00435639 | AD12: ='Op Rav'!AD40 -> 13.56369245 | AE12: ='Op Rav'!AE40 -> 11.11744036 | AF12: ='Op Rav'!AF40 -> 8.680350691 | AG12: ='Op Rav'!AG40 -> 6.268211491 | AH12: ='Op Rav'!AH40 -> 3.811046515 | AI12: ='Op Rav'!AI40 -> 1.302433228
E13: Unprofiled allowances except tax (cap) | G13: =Inputs!$I$11 -> £m 15/16 prices | K13: =SUM(K8:K12) -> 95.07244814 | L13: =SUM(L8:L12) -> 97.35151068 | M13: 97.81532627 | N13: 96.55460752 | O13: 91.55456023 | P13: 88.55202062 | Q13: 86.6983398 | R13: 85.71888801 | S13: 84.34927039 | T13: 82.47598828 | U13: 80.74037487 | V13: 78.88568499 | W13: 77.274176 | X13: 75.31434919 | Y13: 72.80237305 | Z13: 71.4952694 | AA13: 70.9512784 | AB13: 75.36114247 | AC13: 72.8491838 | AD13: 70.53723747 | AE13: 68.38469456 | AF13: 66.00953697 | AG13: 64.04501012 | AH13: 61.91206671 | AI13: 84.27050354
B15: Profiled allowances except tax (cap)
C17: Annuity parameters
E19: Cap return rate | G19: =Inputs!G68 -> real annual % | I19: =Inputs!I68 -> 0.0798
E20: Number of operational years | G20: =Inputs!G89 -> full years | I20: =Inputs!I89 -> 25
E21: Annuity factor (cap) | G21: scalar | I21: =I19 / (1 - (1 + I19)^(-I20)) -> 0.09351878972
E23: Year is within operational period | G23: flag | K23: =AND(K4 > 0, K4<= $I20) -> TRUE | L23: TRUE | M23: TRUE | N23: TRUE | O23: TRUE | P23: TRUE | Q23: TRUE | R23: TRUE | S23: TRUE | T23: TRUE | U23: TRUE | V23: TRUE | W23: TRUE | X23: TRUE | Y23: TRUE | Z23: TRUE | AA23: TRUE | AB23: TRUE | AC23: TRUE | AD23: TRUE | AE23: TRUE | AF23: TRUE | AG23: TRUE | AH23: TRUE | AI23: TRUE
E24: Discount factor to start of operational period (cap) | G24: scalar | K24: =(1 + $I19) ^ - K4 -> 0.9260974254 | L24: 0.8576564414 | M24: 0.7942734223 | N24: 0.7355745715 | O24: 0.6812137169 | P24: 0.6308702694 | Q24: 0.5842473323 | R24: 0.5410699503 | S24: 0.5010834879 | T24: 0.4640521281 | U24: 0.4297574811 | V24: 0.3979972968 | W24: 0.3685842719 | X24: 0.3413449453 | Y24: 0.316118675 | Z24: 0.2927566911 | AA24: 0.2711212179 | AB24: 0.2510846619 | AC24: 0.2325288589 | AD24: 0.2153443776 | AE24: 0.1994298737 | AF24: 0.1846914926 | AG24: 0.1710423158 | AH24: 0.1584018483 | AI24: 0.1466955439
C26: Allowances except tax
E28: Discounted unprofiled allowances except tax (cap) | G28: =Inputs!$I$11 -> £m 15/16 prices | K28: =K13 * K$24 -> 88.04634946 | L28: =L13 * L$24 -> 83.49415022 | M28: 77.69211395 | N28: 71.02311405 | O28: 62.36822227 | P28: 55.86483711 | Q28: 50.65327374 | R28: 46.37991447 | S28: 42.26602661 | T28: 38.27315788 | U28: 34.69878013 | V28: 31.39628939 | W28: 28.4820459 | X28: 25.7081724 | Y28: =Y13 * Y$24 -> 23.01418971 | Z28: =Z13 * Z$24 -> 20.9307185 | AA28: 19.23639701 | AB28: 18.92202697 | AC28: 16.93953758 | AD28: 15.1897975 | AE28: 13.637951 | AF28: 12.19139991 | AG28: 10.95440684 | AH28: 9.806985798 | AI28: 12.36210735
E29: NPV of allowances except tax (cap) | G29: =Inputs!$I$11 -> £m 15/16 prices | I29: =SUM(K28:AI28) -> 909.5319657
E31: Annuity factor (cap) | G31: =G$21 -> scalar | I31: =I$21 -> 0.09351878972
E33: Annuity of allowances except tax (cap) | G33: =Inputs!$I$11 -> £m 15/16 prices | I33: =I29 * I31 -> 85.05832865
E34: Annuitised allowances except tax (cap) | G34: =Inputs!$I$11 -> £m 15/16 prices | K34: =K$23 * $I33 -> 85.05832865 | L34: 85.05832865 | M34: 85.05832865 | N34: 85.05832865 | O34: 85.05832865 | P34: 85.05832865 | Q34: 85.05832865 | R34: 85.05832865 | S34: 85.05832865 | T34: 85.05832865 | U34: 85.05832865 | V34: 85.05832865 | W34: 85.05832865 | X34: =X$23 * $I33 -> 85.05832865 | Y34: =Y$23 * $I33 -> 85.05832865 | Z34: 85.05832865 | AA34: 85.05832865 | AB34: 85.05832865 | AC34: 85.05832865 | AD34: 85.05832865 | AE34: 85.05832865 | AF34: 85.05832865 | AG34: 85.05832865 | AH34: 85.05832865 | AI34: 85.05832865
B36: End of sheet

Sheet Allowances Floor
A1: Allowances Floor | H1: Licence
E2: Parameter | G2: Units | H2: Terminology | I2: Constant | K2: Annual values
E3: Project year | K3: Year 1 | L3: Year 2 | M3: Year 3 | N3: Year 4 | O3: Year 5 | P3: Year 6 | Q3: Year 7 | R3: Year 8 | S3: Year 9 | T3: Year 10 | U3: Year 11 | V3: Year 12 | W3: Year 13 | X3: Year 14 | Y3: Year 15 | Z3: Year 16 | AA3: Year 17 | AB3: Year 18 | AC3: Year 19 | AD3: Year 20 | AE3: Year 21 | AF3: Year 22 | AG3: Year 23 | AH3: Year 24 | AI3: Year 25
E4: Year | K4: 1 | L4: =+K4+1 -> 2 | M4: =+L4+1 -> 3 | N4: 4 | O4: 5 | P4: 6 | Q4: 7 | R4: 8 | S4: 9 | T4: 10 | U4: 11 | V4: 12 | W4: 13 | X4: 14 | Y4: 15 | Z4: 16 | AA4: 17 | AB4: 18 | AC4: 19 | AD4: 20 | AE4: 21 | AF4: 22 | AG4: 23 | AH4: 24 | AI4: 25
B6: Unprofiled allowances except tax (floor)
E8: Controllable Opex | G8: =Inputs!$I$11 -> £m 15/16 prices | K8: =Inputs!K61 -> 18.56519214 | L8: =Inputs!L61 -> 22.82676834 | M8: =Inputs!M61 -> 25.23175199 | N8: =Inputs!N61 -> 25.99052449 | O8: =Inputs!O61 -> 22.97924896 | P8: =Inputs!P61 -> 21.9230236 | Q8: =Inputs!Q61 -> 22.06137428 | R8: =Inputs!R61 -> 22.77738525 | S8: =Inputs!S61 -> 22.78047099 | T8: =Inputs!T61 -> 22.93930759 | U8: =Inputs!U61 -> 23.16520331 | V8: =Inputs!V61 -> 23.24486919 | W8: =Inputs!W61 -> 23.47899197 | X8: =Inputs!X61 -> 23.35873275 | Y8: =Inputs!Y61 -> 22.93008498 | Z8: =Inputs!Z61 -> 23.69779343 | AA8: =Inputs!AA61 -> 23.7700535 | AB8: =Inputs!AB61 -> 24.03323845 | AC8: =Inputs!AC61 -> 23.90513922 | AD8: =Inputs!AD61 -> 24.02239588 | AE8: =Inputs!AE61 -> 24.2706713 | AF8: =Inputs!AF61 -> 24.33390731 | AG8: =Inputs!AG61 -> 24.59047105 | AH8: =Inputs!AH61 -> 24.49226401 | AI8: =Inputs!AI61 -> 24.77578724
E9: Non-controllable Opex (baseline) | G9: =Inputs!$I$11 -> £m 15/16 prices | K9: =Inputs!K62 -> 1.151161748 | L9: =Inputs!L62 -> 1.142434531 | M9: =Inputs!M62 -> 1.133773477 | N9: =Inputs!N62 -> 1.125178085 | O9: =Inputs!O62 -> 1.116647856 | P9: =Inputs!P62 -> 1.108182297 | Q9: =Inputs!Q62 -> 1.099780917 | R9: =Inputs!R62 -> 1.091443229 | S9: =Inputs!S62 -> 1.083168752 | T9: =Inputs!T62 -> 1.074957005 | U9: =Inputs!U62 -> 1.066807514 | V9: =Inputs!V62 -> 1.058719805 | W9: =Inputs!W62 -> 1.050693412 | X9: =Inputs!X62 -> 1.042727868 | Y9: =Inputs!Y62 -> 1.034822713 | Z9: =Inputs!Z62 -> 1.026977488 | AA9: =Inputs!AA62 -> 1.01919174 | AB9: =Inputs!AB62 -> 1.011465018 | AC9: =Inputs!AC62 -> 1.003796873 | AD9: =Inputs!AD62 -> 0.9961868625 | AE9: =Inputs!AE62 -> 0.9886345452 | AF9: =Inputs!AF62 -> 0.9811394836 | AG9: =Inputs!AG62 -> 0.9737012439 | AH9: =Inputs!AH62 -> 0.966319395 | AI9: =Inputs!AI62 -> 0.9589935097
E10: Decommissioning baseline | G10: =Inputs!$I$11 -> £m 15/16 prices | K10: =Inputs!K60 -> 0 | L10: =Inputs!L60 -> 0 | M10: =Inputs!M60 -> 0 | N10: =Inputs!N60 -> 0 | O10: =Inputs!O60 -> 0 | P10: =Inputs!P60 -> 0 | Q10: =Inputs!Q60 -> 0 | R10: =Inputs!R60 -> 0 | S10: =Inputs!S60 -> 0 | T10: =Inputs!T60 -> 0 | U10: =Inputs!U60 -> 0 | V10: =Inputs!V60 -> 0 | W10: =Inputs!W60 -> 0 | X10: =Inputs!X60 -> 0 | Y10: =Inputs!Y60 -> 0 | Z10: =Inputs!Z60 -> 0 | AA10: =Inputs!AA60 -> 0 | AB10: =Inputs!AB60 -> 0 | AC10: =Inputs!AC60 -> 0 | AD10: =Inputs!AD60 -> 0 | AE10: =Inputs!AE60 -> 0 | AF10: =Inputs!AF60 -> 0 | AG10: =Inputs!AG60 -> 0 | AH10: =Inputs!AH60 -> 0 | AI10: =Inputs!AI60 -> 24.21525798
E11: RAV depreciation | G11: =Inputs!$I$11 -> £m 15/16 prices | K11: ='Op Rav'!K25 -> 26.12602264 | L11: ='Op Rav'!L25 -> 26.12602264 | M11: ='Op Rav'!M25 -> 26.16606598 | N11: ='Op Rav'!N25 -> 26.16606598 | O11: ='Op Rav'!O25 -> 26.16606598 | P11: ='Op Rav'!P25 -> 26.20754534 | Q11: ='Op Rav'!Q25 -> 26.20754534 | R11: ='Op Rav'!R25 -> 26.25333156 | S11: ='Op Rav'!S25 -> 26.65128078 | T11: ='Op Rav'!T25 -> 26.65128078 | U11: ='Op Rav'!U25 -> 26.6950831 | V11: ='Op Rav'!V25 -> 26.74616605 | W11: ='Op Rav'!W25 -> 26.84515945 | X11: ='Op Rav'!X25 -> 27.00570544 | Y11: ='Op Rav'!Y25 -> 27.00570544 | Z11: ='Op Rav'!Z25 -> 27.00570544 | AA11: ='Op Rav'!AA25 -> 27.03113339 | AB11: ='Op Rav'!AB25 -> 31.87987639 | AC11: ='Op Rav'!AC25 -> 31.93589132 | AD11: ='Op Rav'!AD25 -> 31.95496228 | AE11: ='Op Rav'!AE25 -> 32.00794836 | AF11: ='Op Rav'!AF25 -> 32.01413948 | AG11: ='Op Rav'!AG25 -> 32.21262634 | AH11: ='Op Rav'!AH25 -> 32.64243679 | AI11: ='Op Rav'!AI25 -> 33.01803159
E12: Return (floor) | G12: =Inputs!$I$11 -> £m 15/16 prices | K12: ='Op Rav'!K41 -> 5.608703877 | L12: ='Op Rav'!L41 -> 5.38381469 | M12: ='Op Rav'!M41 -> 5.158786198 | N12: ='Op Rav'!N41 -> 4.929529129 | O12: ='Op Rav'!O41 -> 4.703890403 | P12: ='Op Rav'!P41 -> 4.478102601 | Q12: ='Op Rav'!Q41 -> 4.252076742 | R12: ='Op Rav'!R41 -> 4.055389754 | S12: ='Op Rav'!S41 -> 3.853398997 | T12: ='Op Rav'!T41 -> 3.622756396 | U12: ='Op Rav'!U41 -> 3.395067226 | V12: ='Op Rav'!V41 -> 3.169712045 | W12: ='Op Rav'!W41 -> 2.949005895 | X12: ='Op Rav'!X41 -> 2.721575457 | Y12: ='Op Rav'!Y41 -> 2.484961789 | Z12: ='Op Rav'!Z41 -> 2.249346283 | AA12: ='Op Rav'!AA41 -> 2.182815564 | AB12: ='Op Rav'!AB41 -> 2.097216705 | AC12: ='Op Rav'!AC41 -> 1.819877439 | AD12: ='Op Rav'!AD41 -> 1.541643185 | AE12: ='Op Rav'!AE41 -> 1.262708622 | AF12: ='Op Rav'!AF41 -> 0.9849463446 | AG12: ='Op Rav'!AG41 -> 0.709954332 | AH12: ='Op Rav'!AH41 -> 0.4296272759 | AI12: ='Op Rav'!AI41 -> 0.1436267219
E13: Unprofiled allowances except tax (floor) | G13: =Inputs!$I$11 -> £m 15/16 prices | K13: =SUM(K8:K12) -> 51.4510804 | L13: 55.4790402 | M13: 57.69037765 | N13: 58.21129769 | O13: 54.96585321 | P13: 53.71685384 | Q13: 53.62077728 | R13: 54.17754979 | S13: 54.36831952 | T13: 54.28830177 | U13: 54.32216115 | V13: 54.2194671 | W13: 54.32385073 | X13: 54.12874151 | Y13: 53.45557492 | Z13: 53.97982263 | AA13: 54.0031942 | AB13: 59.02179657 | AC13: 58.66470485 | AD13: 58.51518821 | AE13: 58.52996283 | AF13: 58.31413262 | AG13: 58.48675296 | AH13: 58.53064747 | AI13: 83.11169704
B15: Profiled allowances except tax (floor)
C17: Annuity parameters
E19: Floor return rate | G19: =Inputs!G69 -> real annual % | I19: =Inputs!I69 -> 0.0088
E20: Number of operational years | G20: =Inputs!G89 -> full years | I20: =Inputs!I89 -> 25
E21: Annuity factor (floor) | G21: scalar | I21: =I19 / (1 - (1 + I19)^(-I20)) -> 0.0447362423
E23: Year is within operational period | G23: flag | K23: =AND(K4 > 0, K4<= $I20) -> TRUE | L23: TRUE | M23: TRUE | N23: TRUE | O23: TRUE | P23: TRUE | Q23: TRUE | R23: TRUE | S23: TRUE | T23: TRUE | U23: TRUE | V23: TRUE | W23: TRUE | X23: TRUE | Y23: TRUE | Z23: TRUE | AA23: TRUE | AB23: TRUE | AC23: TRUE | AD23: TRUE | AE23: TRUE | AF23: TRUE | AG23: TRUE | AH23: TRUE | AI23: TRUE
E24: Discount factor to start of operational period (floor) | G24: scalar | K24: =(1 + $I19) ^ - K4 -> 0.9912767645 | L24: 0.9826296238 | M24: 0.9740579141 | N24: 0.9655609775 | O24: 0.9571381617 | P24: 0.9487888201 | Q24: 0.9405123118 | R24: 0.9323080013 | S24: 0.9241752591 | T24: 0.9161134606 | U24: 0.9081219871 | V24: 0.9002002251 | W24: 0.8923475666 | X24: 0.8845634086 | Y24: 0.8768471536 | Z24: 0.8691982094 | AA24: 0.8616159887 | AB24: 0.8540999095 | AC24: 0.8466493948 | AD24: 0.8392638727 | AE24: 0.8319427763 | AF24: 0.8246855435 | AG24: 0.8174916173 | AH24: 0.8103604453 | AI24: 0.8032914803
C26: Allowances except tax
E28: Discounted unprofiled allowances except tax (floor) | G28: =Inputs!$I$11 -> £m 15/16 prices | K28: =K13 * K$24 -> 51.00226051 | L28: =L13 * L$24 -> 54.5153484 | M28: 56.19376892 | N28: 56.2065575 | O28: 52.6099157 | P28: 50.96595037 | Q28: 50.4310012 | R28: 50.51016316 | S28: 50.24585577 | T28: 49.734244 | U28: 49.33114893 | V28: 48.80837649 | W28: 48.475756 | X28: =X13 * X$24 -> 47.88030409 | Y28: 46.87236871 | Z28: 46.91916518 | AA28: 46.53001556 | AB28: 50.4105111 | AC28: 49.66843686 | AD28: 49.10968347 | AE28: 48.69357977 | AF28: 48.09082215 | AG28: 47.81243027 | AH28: 47.43092155 | AI28: 66.76291815
E29: NPV of allowances except tax (floor) | G29: =Inputs!$I$11 -> £m 15/16 prices | I29: =SUM(K28:AI28) -> 1265.211504
E31: Annuity factor (floor) | G31: =G$21 -> scalar | I31: =I$21 -> 0.0447362423
E33: Annuity of allowances except tax (floor) | G33: =Inputs!$I$11 -> £m 15/16 prices | I33: =I29 * I31 -> 56.6008084
E34: Annuitised allowances except tax (floor) | G34: =Inputs!$I$11 -> £m 15/16 prices | K34: =K$23 * $I33 -> 56.6008084 | L34: 56.6008084 | M34: 56.6008084 | N34: 56.6008084 | O34: 56.6008084 | P34: 56.6008084 | Q34: 56.6008084 | R34: 56.6008084 | S34: 56.6008084 | T34: 56.6008084 | U34: 56.6008084 | V34: 56.6008084 | W34: 56.6008084 | X34: =X$23 * $I33 -> 56.6008084 | Y34: 56.6008084 | Z34: 56.6008084 | AA34: 56.6008084 | AB34: 56.6008084 | AC34: 56.6008084 | AD34: 56.6008084 | AE34: 56.6008084 | AF34: 56.6008084 | AG34: 56.6008084 | AH34: 56.6008084 | AI34: 56.6008084
B36: End of sheet

Sheet Tax Deductions
A1: Tax Deductions | H1: Licence
E2: Parameter | G2: Units | H2: Terminology | I2: Constant | K2: Annual values
E3: Project year | K3: Year 1 | L3: Year 2 | M3: Year 3 | N3: Year 4 | O3: Year 5 | P3: Year 6 | Q3: Year 7 | R3: Year 8 | S3: Year 9 | T3: Year 10 | U3: Year 11 | V3: Year 12 | W3: Year 13 | X3: Year 14 | Y3: Year 15 | Z3: Year 16 | AA3: Year 17 | AB3: Year 18 | AC3: Year 19 | AD3: Year 20 | AE3: Year 21 | AF3: Year 22 | AG3: Year 23 | AH3: Year 24 | AI3: Year 25
B5: Tax deductions
C7: Inflation
E9: =Inputs!E119 -> UK RPI uplift from 2015/16 term to start of regime | G9: scalar | I9: =Inputs!I119 -> 1.151258535
E10: =Inputs!E116 -> Long-term expected UK RPI inflation | G10: % | I10: =Inputs!I116 -> 0.027165
E11: Forecast UK inflation uplift | G11: scalar | K11: =I9*(1+$I$10)^0.5 -> 1.166790728 | L11: =K11*(1+$I$10) -> 1.198486598 | M11: =L11*(1+$I$10) -> 1.231043487 | N11: 1.264484783 | O11: 1.298834512 | P11: 1.334117352 | Q11: 1.370358649 | R11: 1.407584442 | S11: 1.445821474 | T11: 1.485097214 | U11: 1.52543988 | V11: 1.566878454 | W11: 1.609442707 | X11: 1.653163218 | Y11: 1.698071397 | Z11: 1.744199507 | AA11: 1.791580686 | AB11: 1.840248976 | AC11: 1.890239339 | AD11: 1.941587691 | AE11: 1.99433092 | AF11: 2.04850692 | AG11: 2.10415461 | AH11: 2.16131397 | AI11: 2.220026064
C13: Total tax deductions
E15: Revenue pool additions | G15: £m nominal | K15: =K27 -> 23.00485891 | L15: 28.72676841 | M15: 32.4571084 | N15: 34.28739328 | O15: 31.29658239 | P15: 30.72633141 | Q15: 31.73908935 | R15: 33.59739162 | S15: 34.50256278 | T15: 35.66351744 | U15: 36.96447568 | V15: 38.08076996 | W15: 39.47912325 | X15: 40.33959716 | Y15: 40.69412429 | Z15: 43.12493323 | AA15: 44.411933 | AB15: 46.0884899 | AC15: 47.0838509 | AD15: 48.57577229 | AE15: 50.37541468 | AF15: 51.85804853 | AG15: 53.79097099 | AH15: 55.02399198 | AI15: 57.13188401
E16: Capital allowances | G16: £m nominal | K16: =K42 -> 44.66426038 | L16: 41.17942374 | M16: 37.88506984 | N16: 34.85426425 | O16: 32.15212283 | P16: 29.579953 | Q16: 27.30390746 | R16: 25.88139495 | S16: 23.81088336 | T16: 21.98407354 | U16: 20.31262251 | V16: 18.84892775 | W16: 17.58906752 | X16: 16.18194212 | Y16: 14.88738675 | Z16: 13.72832884 | AA16: 18.18968769 | AB16: 16.79223826 | AC16: 15.46616257 | AD16: 14.27002041 | AE16: 13.13236986 | AF16: 12.17936468 | AG16: 11.34971753 | AH16: 10.44174013 | AI16: 120.9138417
E17: Interest payable | G17: £m nominal | K17: =K58 -> 13.61173091 | L17: 13.26782373 | M17: 12.91146571 | N17: 12.5422061 | O17: 12.15957778 | P17: 11.76309678 | Q17: 11.35226155 | R17: 10.92655242 | S17: 10.4854309 | T17: 10.02833899 | U17: 9.554698505 | V17: 9.063910313 | W17: 8.555353599 | X17: 8.028385072 | Y17: 7.482338149 | Z17: 6.916522114 | AA17: 6.330221246 | AB17: 5.722693911 | AC17: 5.093171625 | AD17: 4.440858082 | AE17: 3.764928145 | AF17: 3.064526805 | AG17: 2.338768099 | AH17: 1.586733987 | AI17: 0.8074731925
E18: Debt transaction costs | G18: £m nominal | K18: =SUMPRODUCT(Finance!K39:AX39,Inputs!K107:AX107)+SUMPRODUCT(Finance!K41:AX41,Inputs!K107:AX107) -> 8.240185966
E19: Total tax deductions | G19: £m nominal | K19: =SUM(K15:K18) -> 89.52103616 | L19: 83.17401588 | M19: 83.25364395 | N19: 81.68386363 | O19: 75.608283 | P19: 72.06938119 | Q19: 70.39525836 | R19: 70.40533899 | S19: =SUM(S15:S18) -> 68.79887704 | T19: 67.67592997 | U19: 66.83179669 | V19: 65.99360802 | W19: 65.62354437 | X19: 64.54992435 | Y19: 63.06384919 | Z19: 63.76978418 | AA19: 68.93184194 | AB19: 68.60342207 | AC19: 67.6431851 | AD19: 67.28665079 | AE19: 67.27271269 | AF19: 67.10194002 | AG19: 67.47945662 | AH19: 67.0524661 | AI19: 178.8531989
B21: Tax pools
C23: Revenue pool
E25: Controllable Opex | G25: £m nominal | K25: =Inputs!K61* K$11 -> 21.66169405 | L25: =Inputs!L61* L$11 -> 27.35757594 | M25: =Inputs!M61* M$11 -> 31.06138394 | N25: =Inputs!N61* N$11 -> 32.86462272 | O25: =Inputs!O61* O$11 -> 29.84624162 | P25: =Inputs!P61* P$11 -> 29.24788618 | Q25: =Inputs!Q61* Q$11 -> 30.23199506 | R25: =Inputs!R61* R$11 -> 32.06109311 | S25: =Inputs!S61* S$11 -> 32.93649414 | T25: =Inputs!T61* T$11 -> 34.06710179 | U25: =Inputs!U61* U$11 -> 35.33712495 | V25: =Inputs!V61* V$11 -> 36.42188471 | W25: =Inputs!W61* W$11 -> 37.7880924 | X25: =Inputs!X61* X$11 -> 38.61579781 | Y25: =Inputs!Y61* Y$11 -> 38.93692145 | Z25: =Inputs!Z61* Z$11 -> 41.3336796 | AA25: =Inputs!AA61* AA$11 -> 42.58596876 | AB25: =Inputs!AB61* AB$11 -> 44.22714244 | AC25: =Inputs!AC61* AC$11 -> 45.18643456 | AD25: =Inputs!AD61* AD$11 -> 46.64158814 | AE25: =Inputs!AE61* AE$11 -> 48.40375024 | AF25: =Inputs!AF61* AF$11 -> 49.84817751 | AG25: =Inputs!AG61* AG$11 -> 51.74215302 | AH25: =Inputs!AH61* AH$11 -> 52.93547237 | AI25: =Inputs!AI61* AI$11 -> 55.00289343
E26: Non-controllable Opex (baseline) | G26: £m nominal | K26: =Inputs!K62* K$11 -> 1.343164854 | L26: =Inputs!L62* L$11 -> 1.369192475 | M26: =Inputs!M62* M$11 -> 1.395724455 | N26: =Inputs!N62* N$11 -> 1.422770566 | O26: =Inputs!O62* O$11 -> 1.450340773 | P26: =Inputs!P62* P$11 -> 1.478445231 | Q26: =Inputs!Q62* Q$11 -> 1.507094292 | R26: =Inputs!R62* R$11 -> 1.536298509 | S26: =Inputs!S62* S$11 -> 1.566068641 | T26: =Inputs!T62* T$11 -> 1.596415654 | U26: =Inputs!U62* U$11 -> 1.627350725 | V26: =Inputs!V62* V$11 -> 1.658885252 | W26: =Inputs!W62* W$11 -> 1.691030849 | X26: =Inputs!X62* X$11 -> 1.723799358 | Y26: =Inputs!Y62* Y$11 -> 1.757202849 | Z26: =Inputs!Z62* Z$11 -> 1.791253628 | AA26: =Inputs!AA62* AA$11 -> 1.825964237 | AB26: =Inputs!AB62* AB$11 -> 1.861347463 | AC26: =Inputs!AC62* AC$11 -> 1.897416338 | AD26: =Inputs!AD62* AD$11 -> 1.93418415 | AE26: =Inputs!AE62* AE$11 -> 1.971664442 | AF26: =Inputs!AF62* AF$11 -> 2.009871022 | AG26: =Inputs!AG62* AG$11 -> 2.048817961 | AH26: =Inputs!AH62* AH$11 -> 2.088519608 | AI26: =Inputs!AI62* AI$11 -> 2.128990587
E27: Revenue pool additions | G27: £m nominal | K27: =SUM(K25:K26) -> 23.00485891 | L27: 28.72676841 | M27: 32.4571084 | N27: 34.28739328 | O27: 31.29658239 | P27: 30.72633141 | Q27: 31.73908935 | R27: 33.59739162 | S27: 34.50256278 | T27: 35.66351744 | U27: 36.96447568 | V27: 38.08076996 | W27: 39.47912325 | X27: 40.33959716 | Y27: 40.69412429 | Z27: 43.12493323 | AA27: 44.411933 | AB27: 46.0884899 | AC27: 47.0838509 | AD27: 48.57577229 | AE27: 50.37541468 | AF27: 51.85804853 | AG27: 53.79097099 | AH27: 55.02399198 | AI27: 57.13188401
C29: Capital allowance pool
E31: Capital allowance rate (declining balance) | G31: =Inputs!G114 -> % | K31: =Inputs!K114 -> 0.08 | L31: =Inputs!L114 -> 0.08 | M31: =Inputs!M114 -> 0.08 | N31: =Inputs!N114 -> 0.08 | O31: =Inputs!O114 -> 0.08 | P31: =Inputs!P114 -> 0.08 | Q31: =Inputs!Q114 -> 0.08 | R31: =Inputs!R114 -> 0.08 | S31: =Inputs!S114 -> 0.08 | T31: =Inputs!T114 -> 0.08 | U31: =Inputs!U114 -> 0.08 | V31: =Inputs!V114 -> 0.08 | W31: =Inputs!W114 -> 0.08 | X31: =Inputs!X114 -> 0.08 | Y31: =Inputs!Y114 -> 0.08 | Z31: =Inputs!Z114 -> 0.08 | AA31: =Inputs!AA114 -> 0.08 | AB31: =Inputs!AB114 -> 0.08 | AC31: =Inputs!AC114 -> 0.08 | AD31: =Inputs!AD114 -> 0.08 | AE31: =Inputs!AE114 -> 0.08 | AF31: =Inputs!AF114 -> 0.08 | AG31: =Inputs!AG114 -> 0.08 | AH31: =Inputs!AH114 -> 0.08 | AI31: =Inputs!AI114 -> 0.08
E32: Number of operational years | G32: =Inputs!G89 -> full years | I32: =Inputs!I89 -> 25
E34: Opening balance brought forward | G34: £m nominal | K34: =J40 -> 0 | L34: 513.6389943 | M34: 473.563373 | N34: 435.6783032 | O34: 400.8240389 | P34: 369.7494125 | Q34: 340.1694595 | R34: 313.9949358 | S34: 297.636042 | T34: 273.8251586 | U34: 252.8168457 | V34: 233.5951588 | W34: 216.7626692 | X34: 202.2742764 | Y34: 186.0923343 | Z34: 171.2049476 | AA34: 157.8757816 | AB34: 209.1814084 | AC34: 193.11074 | AD34: 177.8608696 | AE34: 164.1052347 | AF34: 151.0222534 | AG34: 140.0626939 | AH34: 130.5217516 | AI34: 120.0800115
E35: Capex | G35: £m nominal | K35: =SUMPRODUCT('Pre Op RAV'!K19:AX19,Inputs!K107:AX107) -> 558.3032547
E36: Replacement Capex | G36: £m nominal | K36: ='Op Rav'!K13 * K$11 -> 0 | L36: ='Op Rav'!L13 * L$11 -> 1.103802412 | M36: ='Op Rav'!M13 * M$11 -> 0 | N36: ='Op Rav'!N13 * N$11 -> 0 | O36: ='Op Rav'!O13 * O$11 -> 1.077496454 | P36: ='Op Rav'!P13 * P$11 -> 0 | Q36: ='Op Rav'!Q13 * Q$11 -> 1.129383669 | R36: ='Op Rav'!R13 * R$11 -> 9.522501157 | S36: ='Op Rav'!S13 * S$11 -> 0 | T36: ='Op Rav'!T13 * T$11 -> 0.9757605928 | U36: ='Op Rav'!U13 * U$11 -> 1.090935677 | V36: ='Op Rav'!V13 * V$11 -> 2.016438079 | W36: ='Op Rav'!W13 * W$11 -> 3.100674809 | X36: ='Op Rav'!X13 * X$11 -> 0 | Y36: ='Op Rav'!Y13 * Y$11 -> 0 | Z36: ='Op Rav'!Z13 * Z$11 -> 0.3991628576 | AA36: ='Op Rav'!AA13 * AA$11 -> 69.49531452 | AB36: ='Op Rav'!AB13 * AB$11 -> 0.7215698184 | AC36: ='Op Rav'!AC13 * AC$11 -> 0.2162921539 | AD36: ='Op Rav'!AD13 * AD$11 -> 0.5143855549 | AE36: ='Op Rav'!AE13 * AE$11 -> 0.04938859169 | AF36: ='Op Rav'!AF13 * AF$11 -> 1.219805105 | AG36: ='Op Rav'!AG13 * AG$11 -> 1.808775296 | AH36: ='Op Rav'!AH13 * AH$11 -> 0 | AI36: ='Op Rav'!AI13 * AI$11 -> 0.8338302279
E37: Tax book value pre-depreciation | G37: £m nominal | K37: =SUM(K34:K36) -> 558.3032547 | L37: 514.7427968 | M37: 473.563373 | N37: 435.6783032 | O37: 401.9015354 | P37: 369.7494125 | Q37: 341.2988432 | R37: 323.5174369 | S37: 297.636042 | T37: 274.8009192 | U37: 253.9077813 | V37: 235.6115969 | W37: 219.863344 | X37: 202.2742764 | Y37: 186.0923343 | Z37: 171.6041104 | AA37: 227.3710961 | AB37: 209.9029783 | AC37: 193.3270321 | AD37: 178.3752551 | AE37: 164.1546233 | AF37: 152.2420585 | AG37: 141.8714692 | AH37: 130.5217516 | AI37: 120.9138417
E38: Capital allowance (reducing balance) | G38: £m nominal | K38: =-K37 * K31 -> -44.66426038 | L38: =-L37 * L31 -> -41.17942374 | M38: =-M37 * M31 -> -37.88506984 | N38: -34.85426425 | O38: -32.15212283 | P38: -29.579953 | Q38: -27.30390746 | R38: -25.88139495 | S38: -23.81088336 | T38: -21.98407354 | U38: -20.31262251 | V38: -18.84892775 | W38: -17.58906752 | X38: -16.18194212 | Y38: -14.88738675 | Z38: -13.72832884 | AA38: -18.18968769 | AB38: -16.79223826 | AC38: -15.46616257 | AD38: -14.27002041 | AE38: -13.13236986 | AF38: -12.17936468 | AG38: -11.34971753 | AH38: -10.44174013 | AI38: -9.673107338
E39: Write-back allowance | G39: £m nominal | AI39: =-SUM(AI37:AI38) -> -111.2407344
E40: Closing balance carried forward | G40: £m nominal | K40: =SUM(K37:K39) -> 513.6389943 | L40: =SUM(L37:L39) -> 473.563373 | M40: 435.6783032 | N40: 400.8240389 | O40: 369.7494125 | P40: 340.1694595 | Q40: 313.9949358 | R40: 297.636042 | S40: 273.8251586 | T40: 252.8168457 | U40: 233.5951588 | V40: 216.7626692 | W40: 202.2742764 | X40: 186.0923343 | Y40: 171.2049476 | Z40: 157.8757816 | AA40: 209.1814084 | AB40: 193.11074 | AC40: 177.8608696 | AD40: 164.1052347 | AE40: 151.0222534 | AF40: 140.0626939 | AG40: 130.5217516 | AH40: 120.0800115 | AI40: =SUM(AI37:AI39) -> 0
E42: Capital allowances | G42: £m nominal | K42: =-(K38 + K39) -> 44.66426038 | L42: =-(L38 + L39) -> 41.17942374 | M42: 37.88506984 | N42: 34.85426425 | O42: 32.15212283 | P42: 29.579953 | Q42: 27.30390746 | R42: 25.88139495 | S42: 23.81088336 | T42: 21.98407354 | U42: 20.31262251 | V42: =-(V38 + V39) -> 18.84892775 | W42: 17.58906752 | X42: 16.18194212 | Y42: 14.88738675 | Z42: 13.72832884 | AA42: 18.18968769 | AB42: 16.79223826 | AC42: 15.46616257 | AD42: 14.27002041 | AE42: 13.13236986 | AF42: 12.17936468 | AG42: 11.34971753 | AH42: 10.44174013 | AI42: 120.9138417
B44: Interest
C46: Cost of debt
E48: Cost of debt (for tax) | G48: =Inputs!G69 -> real annual % | I48: =Inputs!I71 -> 0.0088
E49: Expected UK RPI inflation | G49: =Inputs!G116 -> % | I49: =Inputs!I116 -> 0.027165
E50: Cost of debt (for tax) | G50: nominal annual % | I50: =(1 + I48) * (1 + I$49) - 1 -> 0.036204052
C52: Net debt
E54: Number of operational years | G54: =Inputs!G89 -> full years | I54: =Inputs!I89 -> 25
E55: Operational notional gearing | G55: =Inputs!G74 -> % | I55: =Inputs!I74 -> 0.5
E57: Principal repayments | G57: £m nominal | K57: =K59 - K58 -> 9.499135079 | L57: =L59 - L58 -> 9.84304226 | M57: 10.19940027 | N57: 10.56865989 | O57: 10.9512882 | P57: 11.34776921 | Q57: 11.75860444 | R57: 12.18431356 | S57: 12.62543509 | T57: 13.08252699 | U57: 13.55616748 | V57: 14.04695567 | W57: 14.55551239 | X57: 15.08248092 | Y57: 15.62852784 | Z57: 16.19434387 | AA57: 16.78064474 | AB57: 17.38817208 | AC57: 18.01769436 | AD57: 18.67000791 | AE57: 19.34593784 | AF57: 20.04633918 | AG57: 20.77209789 | AH57: 21.524132 | AI57: 22.3033928
E58: Net interest paid | G58: £m nominal | K58: =$I50 * K61 -> 13.61173091 | L58: 13.26782373 | M58: 12.91146571 | N58: 12.5422061 | O58: 12.15957778 | P58: 11.76309678 | Q58: 11.35226155 | R58: 10.92655242 | S58: 10.4854309 | T58: 10.02833899 | U58: 9.554698505 | V58: 9.063910313 | W58: 8.555353599 | X58: 8.028385072 | Y58: 7.482338149 | Z58: 6.916522114 | AA58: 6.330221246 | AB58: 5.722693911 | AC58: 5.093171625 | AD58: 4.440858082 | AE58: 3.764928145 | AF58: 3.064526805 | AG58: 2.338768099 | AH58: 1.586733987 | AI58: 0.8074731925
E59: Total | G59: £m nominal | K59: =$K$61*$I50/(1-(1+$I50)^(-$I54)) -> 23.11086599 | L59: =$K$61*$I50/(1-(1+$I50)^(-$I54)) -> 23.11086599 | M59: 23.11086599 | N59: 23.11086599 | O59: 23.11086599 | P59: 23.11086599 | Q59: 23.11086599 | R59: 23.11086599 | S59: 23.11086599 | T59: 23.11086599 | U59: 23.11086599 | V59: 23.11086599 | W59: 23.11086599 | X59: 23.11086599 | Y59: 23.11086599 | Z59: 23.11086599 | AA59: 23.11086599 | AB59: 23.11086599 | AC59: 23.11086599 | AD59: 23.11086599 | AE59: 23.11086599 | AF59: 23.11086599 | AG59: 23.11086599 | AH59: 23.11086599 | AI59: 23.11086599
E61: Opening net debt | G61: £m nominal | K61: ='Op Rav'!K12*I9*I55 -> 375.972582 | L61: =K63 -> 366.4734469 | M61: =L63 -> 356.6304046 | N61: 346.4310044 | O61: 335.8623445 | P61: 324.9110563 | Q61: 313.5632871 | R61: 301.8046826 | S61: 289.6203691 | T61: 276.994934 | U61: 263.912407 | V61: 250.3562395 | W61: 236.3092838 | X61: 221.7537714 | Y61: 206.6712905 | Z61: 191.0427627 | AA61: 174.8484188 | AB61: 158.0677741 | AC61: 140.679602 | AD61: 122.6619076 | AE61: 103.9918997 | AF61: 84.64596187 | AG61: 64.59962269 | AH61: 43.8275248 | AI61: 22.3033928
E62: Less principal repayment | G62: £m nominal | K62: =IF(K3 = "Year "&$I54, -K61, -K57) -> -9.499135079 | L62: -9.84304226 | M62: -10.19940027 | N62: -10.56865989 | O62: -10.9512882 | P62: -11.34776921 | Q62: -11.75860444 | R62: -12.18431356 | S62: -12.62543509 | T62: -13.08252699 | U62: -13.55616748 | V62: -14.04695567 | W62: -14.55551239 | X62: -15.08248092 | Y62: -15.62852784 | Z62: -16.19434387 | AA62: -16.78064474 | AB62: -17.38817208 | AC62: -18.01769436 | AD62: -18.67000791 | AE62: -19.34593784 | AF62: -20.04633918 | AG62: -20.77209789 | AH62: -21.524132 | AI62: =IF(AI3 = "Year "&$I54, -AI61, -AI57) -> -22.3033928
E63: Closing net debt | G63: £m nominal | K63: =SUM(K61:K62) -> 366.4734469 | L63: =SUM(L61:L62) -> 356.6304046 | M63: 346.4310044 | N63: 335.8623445 | O63: 324.9110563 | P63: 313.5632871 | Q63: 301.8046826 | R63: 289.6203691 | S63: 276.994934 | T63: 263.912407 | U63: 250.3562395 | V63: 236.3092838 | W63: 221.7537714 | X63: =SUM(X61:X62) -> 206.6712905 | Y63: =SUM(Y61:Y62) -> 191.0427627 | Z63: 174.8484188 | AA63: 158.0677741 | AB63: 140.679602 | AC63: 122.6619076 | AD63: 103.9918997 | AE63: 84.64596187 | AF63: 64.59962269 | AG63: 43.8275248 | AH63: 22.3033928 | AI63: 0
B65: End of sheet

Sheet Tax Floor
A1: Tax Floor | H1: Licence
E2: Parameter | G2: Units | H2: Terminology | I2: Constant | K2: Annual values
E3: Project year | K3: Year 1 | L3: Year 2 | M3: Year 3 | N3: Year 4 | O3: Year 5 | P3: Year 6 | Q3: Year 7 | R3: Year 8 | S3: Year 9 | T3: Year 10 | U3: Year 11 | V3: Year 12 | W3: Year 13 | X3: Year 14 | Y3: Year 15 | Z3: Year 16 | AA3: Year 17 | AB3: Year 18 | AC3: Year 19 | AD3: Year 20 | AE3: Year 21 | AF3: Year 22 | AG3: Year 23 | AH3: Year 24 | AI3: Year 25
B5: Unprofiled tax allowance (floor)
C7: Profits attributable to corporation tax
E9: Annuitised allowances except tax (floor) | G9: £m nominal prices | K9: ='Allowances Floor'!K34* 'Tax Deductions'!K$11 -> 66.04129845 | L9: ='Allowances Floor'!L34* 'Tax Deductions'!L$11 -> 67.83531032 | M9: ='Allowances Floor'!M34* 'Tax Deductions'!M$11 -> 69.67805652 | N9: ='Allowances Floor'!N34* 'Tax Deductions'!N$11 -> 71.57086093 | O9: ='Allowances Floor'!O34* 'Tax Deductions'!O$11 -> 73.51508336 | P9: ='Allowances Floor'!P34* 'Tax Deductions'!P$11 -> 75.5121206 | Q9: ='Allowances Floor'!Q34* 'Tax Deductions'!Q$11 -> 77.56340736 | R9: ='Allowances Floor'!R34* 'Tax Deductions'!R$11 -> 79.67041732 | S9: ='Allowances Floor'!S34* 'Tax Deductions'!S$11 -> 81.83466421 | T9: ='Allowances Floor'!T34* 'Tax Deductions'!T$11 -> 84.05770286 | U9: ='Allowances Floor'!U34* 'Tax Deductions'!U$11 -> 86.34113036 | V9: ='Allowances Floor'!V34* 'Tax Deductions'!V$11 -> 88.68658717 | W9: ='Allowances Floor'!W34* 'Tax Deductions'!W$11 -> 91.09575831 | X9: ='Allowances Floor'!X34* 'Tax Deductions'!X$11 -> 93.57037458 | Y9: ='Allowances Floor'!Y34* 'Tax Deductions'!Y$11 -> 96.11221381 | Z9: ='Allowances Floor'!Z34* 'Tax Deductions'!Z$11 -> 98.72310209 | AA9: ='Allowances Floor'!AA34* 'Tax Deductions'!AA$11 -> 101.4049152 | AB9: ='Allowances Floor'!AB34* 'Tax Deductions'!AB$11 -> 104.1595797 | AC9: ='Allowances Floor'!AC34* 'Tax Deductions'!AC$11 -> 106.9890747 | AD9: ='Allowances Floor'!AD34* 'Tax Deductions'!AD$11 -> 109.8954329 | AE9: ='Allowances Floor'!AE34* 'Tax Deductions'!AE$11 -> 112.8807423 | AF9: ='Allowances Floor'!AF34* 'Tax Deductions'!AF$11 -> 115.9471477 | AG9: ='Allowances Floor'!AG34* 'Tax Deductions'!AG$11 -> 119.0968519 | AH9: ='Allowances Floor'!AH34* 'Tax Deductions'!AH$11 -> 122.3321179 | AI9: ='Allowances Floor'!AI34* 'Tax Deductions'!AI$11 -> 125.6552699
E10: Less tax deductions | G10: £m nominal prices | K10: =-'Tax Deductions'!K19 -> -89.52103616 | L10: =-'Tax Deductions'!L19 -> -83.17401588 | M10: =-'Tax Deductions'!M19 -> -83.25364395 | N10: =-'Tax Deductions'!N19 -> -81.68386363 | O10: =-'Tax Deductions'!O19 -> -75.608283 | P10: =-'Tax Deductions'!P19 -> -72.06938119 | Q10: =-'Tax Deductions'!Q19 -> -70.39525836 | R10: =-'Tax Deductions'!R19 -> -70.40533899 | S10: =-'Tax Deductions'!S19 -> -68.79887704 | T10: =-'Tax Deductions'!T19 -> -67.67592997 | U10: =-'Tax Deductions'!U19 -> -66.83179669 | V10: =-'Tax Deductions'!V19 -> -65.99360802 | W10: =-'Tax Deductions'!W19 -> -65.62354437 | X10: =-'Tax Deductions'!X19 -> -64.54992435 | Y10: =-'Tax Deductions'!Y19 -> -63.06384919 | Z10: =-'Tax Deductions'!Z19 -> -63.76978418 | AA10: =-'Tax Deductions'!AA19 -> -68.93184194 | AB10: =-'Tax Deductions'!AB19 -> -68.60342207 | AC10: =-'Tax Deductions'!AC19 -> -67.6431851 | AD10: =-'Tax Deductions'!AD19 -> -67.28665079 | AE10: =-'Tax Deductions'!AE19 -> -67.27271269 | AF10: =-'Tax Deductions'!AF19 -> -67.10194002 | AG10: =-'Tax Deductions'!AG19 -> -67.47945662 | AH10: =-'Tax Deductions'!AH19 -> -67.0524661 | AI10: =-'Tax Deductions'!AI19 -> -178.8531989
E11: Profits attributable to corporation tax | G11: £m nominal prices | K11: =SUM(K9:K10) -> -23.47973771 | L11: =SUM(L9:L10) -> -15.33870556 | M11: -13.57558743 | N11: -10.11300271 | O11: -2.093199639 | P11: 3.44273941 | Q11: 7.168149002 | R11: 9.265078327 | S11: 13.03578717 | T11: 16.38177289 | U11: 19.50933367 | V11: 22.69297914 | W11: 25.47221394 | X11: 29.02045023 | Y11: 33.04836462 | Z11: 34.95331791 | AA11: 32.47307322 | AB11: 35.55615761 | AC11: 39.34588957 | AD11: 42.60878209 | AE11: 45.60802962 | AF11: 48.84520765 | AG11: 51.61739533 | AH11: 55.27965183 | AI11: -53.19792902
C13: Tax losses
E15: Taxable losses brought forward | G15: £m nominal prices | K15: =J18 -> 0 | L15: =K18 -> -23.47973771 | M15: -38.81844328 | N15: -52.39403071 | O15: -62.50703341 | P15: -64.60023305 | Q15: -61.15749364 | R15: -53.98934464 | S15: -44.72426631 | T15: -31.68847914 | U15: -15.30670625 | V15: 0 | W15: 0 | X15: 0 | Y15: 0 | Z15: 0 | AA15: 0 | AB15: 0 | AC15: 0 | AD15: 0 | AE15: 0 | AF15: 0 | AG15: 0 | AH15: 0 | AI15: 0
E16: In-year taxable loss | G16: £m nominal prices | K16: =MIN(K11, 0) -> -23.47973771 | L16: -15.33870556 | M16: -13.57558743 | N16: -10.11300271 | O16: -2.093199639 | P16: 0 | Q16: 0 | R16: 0 | S16: 0 | T16: 0 | U16: 0 | V16: 0 | W16: 0 | X16: 0 | Y16: 0 | Z16: 0 | AA16: 0 | AB16: 0 | AC16: 0 | AD16: 0 | AE16: 0 | AF16: 0 | AG16: 0 | AH16: 0 | AI16: -53.19792902
E17: Profits used to offset losses | G17: £m nominal prices | K17: =IF(K11 >= 0, MIN(K11, -K15), 0) -> 0 | L17: 0 | M17: 0 | N17: 0 | O17: 0 | P17: 3.44273941 | Q17: 7.168149002 | R17: 9.265078327 | S17: 13.03578717 | T17: 16.38177289 | U17: 15.30670625 | V17: 0 | W17: 0 | X17: 0 | Y17: 0 | Z17: 0 | AA17: 0 | AB17: 0 | AC17: 0 | AD17: 0 | AE17: 0 | AF17: 0 | AG17: 0 | AH17: 0 | AI17: 0
E18: Taxable losses carried forward | G18: £m nominal prices | K18: =SUM(K15:K17) -> -23.47973771 | L18: =SUM(L15:L17) -> -38.81844328 | M18: -52.39403071 | N18: -62.50703341 | O18: -64.60023305 | P18: -61.15749364 | Q18: -53.98934464 | R18: -44.72426631 | S18: -31.68847914 | T18: -15.30670625 | U18: 0 | V18: 0 | W18: 0 | X18: 0 | Y18: 0 | Z18: 0 | AA18: 0 | AB18: 0 | AC18: 0 | AD18: 0 | AE18: 0 | AF18: 0 | AG18: 0 | AH18: 0 | AI18: -53.19792902
C20: Tax allowance
E22: Profits attributable to corporation tax (after taxable losses) | G22: £m nominal prices | K22: =MAX(K11 - K17,0) -> 0 | L22: 0 | M22: 0 | N22: 0 | O22: 0 | P22: 0 | Q22: 0 | R22: 0 | S22: 0 | T22: 0 | U22: 4.202627422 | V22: 22.69297914 | W22: 25.47221394 | X22: 29.02045023 | Y22: 33.04836462 | Z22: 34.95331791 | AA22: 32.47307322 | AB22: 35.55615761 | AC22: 39.34588957 | AD22: 42.60878209 | AE22: 45.60802962 | AF22: 48.84520765 | AG22: 51.61739533 | AH22: 55.27965183 | AI22: 0
E23: Corporation tax rate | G23: =Inputs!G113 -> % | K23: =Inputs!K113 -> 0.2 | L23: =Inputs!L113 -> 0.2 | M23: =Inputs!M113 -> 0.2 | N23: =Inputs!N113 -> 0.2 | O23: =Inputs!O113 -> 0.2 | P23: =Inputs!P113 -> 0.2 | Q23: =Inputs!Q113 -> 0.2 | R23: =Inputs!R113 -> 0.2 | S23: =Inputs!S113 -> 0.2 | T23: =Inputs!T113 -> 0.2 | U23: =Inputs!U113 -> 0.2 | V23: =Inputs!V113 -> 0.2 | W23: =Inputs!W113 -> 0.2 | X23: =Inputs!X113 -> 0.2 | Y23: =Inputs!Y113 -> 0.2 | Z23: =Inputs!Z113 -> 0.2 | AA23: =Inputs!AA113 -> 0.2 | AB23: =Inputs!AB113 -> 0.2 | AC23: =Inputs!AC113 -> 0.2 | AD23: =Inputs!AD113 -> 0.2 | AE23: =Inputs!AE113 -> 0.2 | AF23: =Inputs!AF113 -> 0.2 | AG23: =Inputs!AG113 -> 0.2 | AH23: =Inputs!AH113 -> 0.2 | AI23: =Inputs!AI113 -> 0.2
E24: Corporation tax charge after losses | G24: £m nominal prices | K24: =K22 * K23 -> 0 | L24: =L22 * L23 -> 0 | M24: 0 | N24: 0 | O24: 0 | P24: 0 | Q24: 0 | R24: 0 | S24: 0 | T24: 0 | U24: 0.8405254844 | V24: 4.538595829 | W24: 5.094442787 | X24: 5.804090046 | Y24: 6.609672923 | Z24: 6.990663582 | AA24: 6.494614645 | AB24: 7.111231523 | AC24: 7.869177914 | AD24: 8.521756418 | AE24: 9.121605924 | AF24: 9.769041531 | AG24: 10.32347907 | AH24: 11.05593037 | AI24: 0
E26: Grossing-up factor for tax on tax charge after losses | G26: scalar | K26: =1 / (1 - K23) -> 1.25 | L26: 1.25 | M26: 1.25 | N26: 1.25 | O26: 1.25 | P26: 1.25 | Q26: 1.25 | R26: 1.25 | S26: 1.25 | T26: 1.25 | U26: 1.25 | V26: 1.25 | W26: 1.25 | X26: 1.25 | Y26: 1.25 | Z26: 1.25 | AA26: 1.25 | AB26: 1.25 | AC26: 1.25 | AD26: 1.25 | AE26: 1.25 | AF26: 1.25 | AG26: 1.25 | AH26: 1.25 | AI26: 1.25
E28: Unprofiled tax allowance (floor) | G28: £m nominal prices | K28: =K24 * K26 -> 0 | L28: 0 | M28: 0 | N28: 0 | O28: 0 | P28: 0 | Q28: 0 | R28: 0 | S28: 0 | T28: 0 | U28: 1.050656856 | V28: 5.673244786 | W28: 6.368053484 | X28: 7.255112557 | Y28: 8.262091154 | Z28: 8.738329478 | AA28: 8.118268306 | AB28: 8.889039403 | AC28: 9.836472392 | AD28: 10.65219552 | AE28: 11.40200741 | AF28: 12.21130191 | AG28: 12.90434883 | AH28: 13.81991296 | AI28: 0
B30: Profiled tax allowance (floor)
E32: Unprofiled tax allowance (floor) | G32: =Inputs!$I$11 -> £m 15/16 prices | K32: ='Tax Floor'!K28 / 'Tax Deductions'!K$11 -> 0 | L32: ='Tax Floor'!L28 / 'Tax Deductions'!L$11 -> 0 | M32: ='Tax Floor'!M28 / 'Tax Deductions'!M$11 -> 0 | N32: ='Tax Floor'!N28 / 'Tax Deductions'!N$11 -> 0 | O32: ='Tax Floor'!O28 / 'Tax Deductions'!O$11 -> 0 | P32: ='Tax Floor'!P28 / 'Tax Deductions'!P$11 -> 0 | Q32: ='Tax Floor'!Q28 / 'Tax Deductions'!Q$11 -> 0 | R32: ='Tax Floor'!R28 / 'Tax Deductions'!R$11 -> 0 | S32: ='Tax Floor'!S28 / 'Tax Deductions'!S$11 -> 0 | T32: ='Tax Floor'!T28 / 'Tax Deductions'!T$11 -> 0 | U32: ='Tax Floor'!U28 / 'Tax Deductions'!U$11 -> 0.6887566462 | V32: ='Tax Floor'!V28 / 'Tax Deductions'!V$11 -> 3.620730613 | W32: ='Tax Floor'!W28 / 'Tax Deductions'!W$11 -> 3.956682307 | X32: ='Tax Floor'!X28 / 'Tax Deductions'!X$11 -> 4.388624473 | Y32: ='Tax Floor'!Y28 / 'Tax Deductions'!Y$11 -> 4.865573478 | Z32: ='Tax Floor'!Z28 / 'Tax Deductions'!Z$11 -> 5.009936905 | AA32: ='Tax Floor'!AA28 / 'Tax Deductions'!AA$11 -> 4.531343951 | AB32: ='Tax Floor'!AB28 / 'Tax Deductions'!AB$11 -> 4.830346068 | AC32: ='Tax Floor'!AC28 / 'Tax Deductions'!AC$11 -> 5.203823764 | AD32: ='Tax Floor'!AD28 / 'Tax Deductions'!AD$11 -> 5.486332435 | AE32: ='Tax Floor'!AE28 / 'Tax Deductions'!AE$11 -> 5.71720936 | AF32: ='Tax Floor'!AF28 / 'Tax Deductions'!AF$11 -> 5.961074281 | AG32: ='Tax Floor'!AG28 / 'Tax Deductions'!AG$11 -> 6.13279498 | AH32: ='Tax Floor'!AH28 / 'Tax Deductions'!AH$11 -> 6.394218123 | AI32: ='Tax Floor'!AI28 / 'Tax Deductions'!AI$11 -> 0
E33: Discount factor to start of operational period (floor) | G33: ='Allowances Floor'!G24 -> scalar | K33: ='Allowances Floor'!K24 -> 0.9912767645 | L33: ='Allowances Floor'!L24 -> 0.9826296238 | M33: ='Allowances Floor'!M24 -> 0.9740579141 | N33: ='Allowances Floor'!N24 -> 0.9655609775 | O33: ='Allowances Floor'!O24 -> 0.9571381617 | P33: ='Allowances Floor'!P24 -> 0.9487888201 | Q33: ='Allowances Floor'!Q24 -> 0.9405123118 | R33: ='Allowances Floor'!R24 -> 0.9323080013 | S33: ='Allowances Floor'!S24 -> 0.9241752591 | T33: ='Allowances Floor'!T24 -> 0.9161134606 | U33: ='Allowances Floor'!U24 -> 0.9081219871 | V33: ='Allowances Floor'!V24 -> 0.9002002251 | W33: ='Allowances Floor'!W24 -> 0.8923475666 | X33: ='Allowances Floor'!X24 -> 0.8845634086 | Y33: ='Allowances Floor'!Y24 -> 0.8768471536 | Z33: ='Allowances Floor'!Z24 -> 0.8691982094 | AA33: ='Allowances Floor'!AA24 -> 0.8616159887 | AB33: ='Allowances Floor'!AB24 -> 0.8540999095 | AC33: ='Allowances Floor'!AC24 -> 0.8466493948 | AD33: ='Allowances Floor'!AD24 -> 0.8392638727 | AE33: ='Allowances Floor'!AE24 -> 0.8319427763 | AF33: ='Allowances Floor'!AF24 -> 0.8246855435 | AG33: ='Allowances Floor'!AG24 -> 0.8174916173 | AH33: ='Allowances Floor'!AH24 -> 0.8103604453 | AI33: ='Allowances Floor'!AI24 -> 0.8032914803
E35: Discounted unprofiled tax allowance (floor) | G35: =Inputs!$I$11 -> £m 15/16 prices | K35: =K32*K33 -> 0 | L35: =L32*L33 -> 0 | M35: 0 | N35: 0 | O35: 0 | P35: 0 | Q35: 0 | R35: 0 | S35: 0 | T35: 0 | U35: 0.6254750542 | V35: 3.259382513 | W35: 3.530735829 | X35: 3.882016622 | Y35: 4.266364255 | Z35: 4.354628187 | AA35: 3.904278399 | AB35: 4.125598139 | AC35: 4.40581424 | AD35: 4.604480606 | AE35: 4.756391028 | AF35: 4.916011783 | AG35: 5.013508487 | AH35: 5.181621446 | AI35: 0
E36: NPV of tax allowance (floor) | G36: =Inputs!$I$11 -> £m 15/16 prices | I36: =SUM(K35:AI35) -> 56.82630659
E38: Annuity factor (floor) | G38: ='Allowances Floor'!G31 -> scalar | I38: ='Allowances Floor'!I31 -> 0.0447362423
E40: Annuity of tax allowance (floor) | G40: =Inputs!$I$11 -> £m 15/16 prices | I40: =I36 * I38 -> 2.542195421
B42: End of sheet

Sheet Tax Cap
A1: Tax Cap | H1: Licence
E2: Parameter | G2: Units | H2: Terminology | I2: Constant | K2: Annual values
E3: Project year | K3: Year 1 | L3: Year 2 | M3: Year 3 | N3: Year 4 | O3: Year 5 | P3: Year 6 | Q3: Year 7 | R3: Year 8 | S3: Year 9 | T3: Year 10 | U3: Year 11 | V3: Year 12 | W3: Year 13 | X3: Year 14 | Y3: Year 15 | Z3: Year 16 | AA3: Year 17 | AB3: Year 18 | AC3: Year 19 | AD3: Year 20 | AE3: Year 21 | AF3: Year 22 | AG3: Year 23 | AH3: Year 24 | AI3: Year 25
B5: Unprofiled tax allowance (cap)
C7: Profits attributable to corporation tax
E9: Annuitised allowances except tax (cap) | G9: £m nominal prices | K9: ='Allowances Cap'!K34* 'Tax Deductions'!K$11 -> 99.24526921 | L9: ='Allowances Cap'!L34* 'Tax Deductions'!L$11 -> 101.941267 | M9: ='Allowances Cap'!M34* 'Tax Deductions'!M$11 -> 104.7105015 | N9: ='Allowances Cap'!N34* 'Tax Deductions'!N$11 -> 107.5549622 | O9: ='Allowances Cap'!O34* 'Tax Deductions'!O$11 -> 110.4766928 | P9: ='Allowances Cap'!P34* 'Tax Deductions'!P$11 -> 113.4777921 | Q9: ='Allowances Cap'!Q34* 'Tax Deductions'!Q$11 -> 116.5604164 | R9: ='Allowances Cap'!R34* 'Tax Deductions'!R$11 -> 119.7267801 | S9: ='Allowances Cap'!S34* 'Tax Deductions'!S$11 -> 122.9791581 | T9: ='Allowances Cap'!T34* 'Tax Deductions'!T$11 -> 126.3198869 | U9: ='Allowances Cap'!U34* 'Tax Deductions'!U$11 -> 129.7513666 | V9: ='Allowances Cap'!V34* 'Tax Deductions'!V$11 -> 133.2760625 | W9: ='Allowances Cap'!W34* 'Tax Deductions'!W$11 -> 136.8965067 | X9: ='Allowances Cap'!X34* 'Tax Deductions'!X$11 -> 140.6153003 | Y9: ='Allowances Cap'!Y34* 'Tax Deductions'!Y$11 -> 144.435115 | Z9: ='Allowances Cap'!Z34* 'Tax Deductions'!Z$11 -> 148.3586949 | AA9: ='Allowances Cap'!AA34* 'Tax Deductions'!AA$11 -> 152.3888588 | AB9: ='Allowances Cap'!AB34* 'Tax Deductions'!AB$11 -> 156.5285022 | AC9: ='Allowances Cap'!AC34* 'Tax Deductions'!AC$11 -> 160.7805989 | AD9: ='Allowances Cap'!AD34* 'Tax Deductions'!AD$11 -> 165.1482039 | AE9: ='Allowances Cap'!AE34* 'Tax Deductions'!AE$11 -> 169.6344549 | AF9: ='Allowances Cap'!AF34* 'Tax Deductions'!AF$11 -> 174.2425748 | AG9: ='Allowances Cap'!AG34* 'Tax Deductions'!AG$11 -> 178.9758744 | AH9: ='Allowances Cap'!AH34* 'Tax Deductions'!AH$11 -> 183.837754 | AI9: ='Allowances Cap'!AI34* 'Tax Deductions'!AI$11 -> 188.8317066
E10: Less tax deductions | G10: £m nominal prices | K10: =-'Tax Deductions'!K19 -> -89.52103616 | L10: =-'Tax Deductions'!L19 -> -83.17401588 | M10: =-'Tax Deductions'!M19 -> -83.25364395 | N10: =-'Tax Deductions'!N19 -> -81.68386363 | O10: =-'Tax Deductions'!O19 -> -75.608283 | P10: =-'Tax Deductions'!P19 -> -72.06938119 | Q10: =-'Tax Deductions'!Q19 -> -70.39525836 | R10: =-'Tax Deductions'!R19 -> -70.40533899 | S10: =-'Tax Deductions'!S19 -> -68.79887704 | T10: =-'Tax Deductions'!T19 -> -67.67592997 | U10: =-'Tax Deductions'!U19 -> -66.83179669 | V10: =-'Tax Deductions'!V19 -> -65.99360802 | W10: =-'Tax Deductions'!W19 -> -65.62354437 | X10: =-'Tax Deductions'!X19 -> -64.54992435 | Y10: =-'Tax Deductions'!Y19 -> -63.06384919 | Z10: =-'Tax Deductions'!Z19 -> -63.76978418 | AA10: =-'Tax Deductions'!AA19 -> -68.93184194 | AB10: =-'Tax Deductions'!AB19 -> -68.60342207 | AC10: =-'Tax Deductions'!AC19 -> -67.6431851 | AD10: =-'Tax Deductions'!AD19 -> -67.28665079 | AE10: =-'Tax Deductions'!AE19 -> -67.27271269 | AF10: =-'Tax Deductions'!AF19 -> -67.10194002 | AG10: =-'Tax Deductions'!AG19 -> -67.47945662 | AH10: =-'Tax Deductions'!AH19 -> -67.0524661 | AI10: =-'Tax Deductions'!AI19 -> -178.8531989
E11: Profits attributable to corporation tax | G11: £m nominal prices | K11: =SUM(K9:K10) -> 9.724233057 | L11: =SUM(L9:L10) -> 18.76725107 | M11: 21.45685752 | N11: 25.87109861 | O11: 34.86840979 | P11: 41.40841096 | Q11: 46.16515801 | R11: 49.32144109 | S11: 54.18028103 | T11: 58.64395692 | U11: 62.91956993 | V11: 67.28245447 | W11: 71.27296236 | X11: 76.06537599 | Y11: 81.37126578 | Z11: 84.58891069 | AA11: 83.45701688 | AB11: 87.9250801 | AC11: 93.13741383 | AD11: 97.86155311 | AE11: 102.3617422 | AF11: 107.1406348 | AG11: 111.4964178 | AH11: 116.7852879 | AI11: 9.97850765
C13: Tax losses
E15: Taxable losses brought forward | G15: £m nominal prices | K15: =J18 -> 0 | L15: =K18 -> 0 | M15: 0 | N15: 0 | O15: 0 | P15: 0 | Q15: 0 | R15: 0 | S15: 0 | T15: 0 | U15: 0 | V15: 0 | W15: 0 | X15: 0 | Y15: 0 | Z15: 0 | AA15: 0 | AB15: 0 | AC15: 0 | AD15: 0 | AE15: 0 | AF15: 0 | AG15: 0 | AH15: 0 | AI15: 0
E16: In-year taxable loss | G16: £m nominal prices | K16: =MIN(K11, 0) -> 0 | L16: 0 | M16: 0 | N16: 0 | O16: 0 | P16: 0 | Q16: 0 | R16: 0 | S16: 0 | T16: 0 | U16: 0 | V16: 0 | W16: 0 | X16: 0 | Y16: 0 | Z16: 0 | AA16: 0 | AB16: 0 | AC16: 0 | AD16: 0 | AE16: 0 | AF16: 0 | AG16: 0 | AH16: 0 | AI16: 0
E17: Profits used to offset losses | G17: £m nominal prices | K17: =IF(K11 >= 0, MIN(K11, -K15), 0) -> 0 | L17: 0 | M17: 0 | N17: 0 | O17: 0 | P17: 0 | Q17: 0 | R17: 0 | S17: 0 | T17: 0 | U17: 0 | V17: 0 | W17: 0 | X17: 0 | Y17: 0 | Z17: 0 | AA17: 0 | AB17: 0 | AC17: 0 | AD17: 0 | AE17: 0 | AF17: 0 | AG17: 0 | AH17: 0 | AI17: 0
E18: Taxable losses carried forward | G18: £m nominal prices | K18: =SUM(K15:K17) -> 0 | L18: =SUM(L15:L17) -> 0 | M18: 0 | N18: 0 | O18: 0 | P18: 0 | Q18: 0 | R18: 0 | S18: 0 | T18: 0 | U18: 0 | V18: 0 | W18: 0 | X18: 0 | Y18: 0 | Z18: 0 | AA18: 0 | AB18: 0 | AC18: 0 | AD18: 0 | AE18: 0 | AF18: 0 | AG18: 0 | AH18: 0 | AI18: 0
C20: Tax allowance
E22: Profits attributable to corporation tax (after taxable losses) | G22: £m nominal prices | K22: =MAX(K11 - K17,0) -> 9.724233057 | L22: 18.76725107 | M22: 21.45685752 | N22: 25.87109861 | O22: 34.86840979 | P22: 41.40841096 | Q22: 46.16515801 | R22: 49.32144109 | S22: 54.18028103 | T22: 58.64395692 | U22: 62.91956993 | V22: 67.28245447 | W22: 71.27296236 | X22: =MAX(X11 - X17,0) -> 76.06537599 | Y22: =MAX(Y11 - Y17,0) -> 81.37126578 | Z22: 84.58891069 | AA22: 83.45701688 | AB22: 87.9250801 | AC22: 93.13741383 | AD22: 97.86155311 | AE22: 102.3617422 | AF22: 107.1406348 | AG22: 111.4964178 | AH22: 116.7852879 | AI22: 9.97850765
E23: Corporation tax rate | G23: =Inputs!G113 -> % | K23: =Inputs!K113 -> 0.2 | L23: =Inputs!L113 -> 0.2 | M23: =Inputs!M113 -> 0.2 | N23: =Inputs!N113 -> 0.2 | O23: =Inputs!O113 -> 0.2 | P23: =Inputs!P113 -> 0.2 | Q23: =Inputs!Q113 -> 0.2 | R23: =Inputs!R113 -> 0.2 | S23: =Inputs!S113 -> 0.2 | T23: =Inputs!T113 -> 0.2 | U23: =Inputs!U113 -> 0.2 | V23: =Inputs!V113 -> 0.2 | W23: =Inputs!W113 -> 0.2 | X23: =Inputs!X113 -> 0.2 | Y23: =Inputs!Y113 -> 0.2 | Z23: =Inputs!Z113 -> 0.2 | AA23: =Inputs!AA113 -> 0.2 | AB23: =Inputs!AB113 -> 0.2 | AC23: =Inputs!AC113 -> 0.2 | AD23: =Inputs!AD113 -> 0.2 | AE23: =Inputs!AE113 -> 0.2 | AF23: =Inputs!AF113 -> 0.2 | AG23: =Inputs!AG113 -> 0.2 | AH23: =Inputs!AH113 -> 0.2 | AI23: =Inputs!AI113 -> 0.2
E24: Corporation tax charge after losses | G24: £m nominal prices | K24: =K22 * K23 -> 1.944846611 | L24: 3.753450214 | M24: 4.291371503 | N24: 5.174219722 | O24: 6.973681957 | P24: 8.281682191 | Q24: 9.233031603 | R24: 9.864288218 | S24: 10.83605621 | T24: 11.72879138 | U24: 12.58391399 | V24: 13.45649089 | W24: 14.25459247 | X24: =X22 * X23 -> 15.2130752 | Y24: =Y22 * Y23 -> 16.27425316 | Z24: 16.91778214 | AA24: 16.69140338 | AB24: 17.58501602 | AC24: 18.62748277 | AD24: 19.57231062 | AE24: 20.47234843 | AF24: 21.42812696 | AG24: 22.29928355 | AH24: 23.35705758 | AI24: 1.99570153
E26: Grossing-up factor for tax on tax charge after losses | G26: scalar | K26: =1 / (1 - K23) -> 1.25 | L26: 1.25 | M26: 1.25 | N26: 1.25 | O26: 1.25 | P26: 1.25 | Q26: 1.25 | R26: 1.25 | S26: 1.25 | T26: 1.25 | U26: 1.25 | V26: 1.25 | W26: 1.25 | X26: =1 / (1 - X23) -> 1.25 | Y26: =1 / (1 - Y23) -> 1.25 | Z26: 1.25 | AA26: 1.25 | AB26: 1.25 | AC26: 1.25 | AD26: 1.25 | AE26: 1.25 | AF26: 1.25 | AG26: 1.25 | AH26: 1.25 | AI26: 1.25
E28: Unprofiled tax allowance (cap) | G28: £m nominal prices | K28: =K24 * K26 -> 2.431058264 | L28: 4.691812768 | M28: 5.364214379 | N28: 6.467774652 | O28: 8.717102446 | P28: 10.35210274 | Q28: 11.5412895 | R28: 12.33036027 | S28: 13.54507026 | T28: 14.66098923 | U28: 15.72989248 | V28: 16.82061362 | W28: 17.81824059 | X28: =X24 * X26 -> 19.016344 | Y28: =Y24 * Y26 -> 20.34281645 | Z28: =Z24 * Z26 -> 21.14722767 | AA28: 20.86425422 | AB28: 21.98127002 | AC28: 23.28435346 | AD28: 24.46538828 | AE28: 25.59043554 | AF28: 26.7851587 | AG28: 27.87410444 | AH28: 29.19632198 | AI28: 2.494626912
B30: Profiled tax allowance (cap)
E32: Unprofiled tax allowance (cap) | G32: =Inputs!$I$11 -> £m 15/16 prices | K32: ='Tax Cap'!K28 / 'Tax Deductions'!K11 -> 2.083542666 | L32: ='Tax Cap'!L28 / 'Tax Deductions'!L11 -> 3.91478117 | M32: ='Tax Cap'!M28 / 'Tax Deductions'!M11 -> 4.357453199 | N32: ='Tax Cap'!N28 / 'Tax Deductions'!N11 -> 5.114948585 | O32: ='Tax Cap'!O28 / 'Tax Deductions'!O11 -> 6.711480458 | P32: ='Tax Cap'!P28 / 'Tax Deductions'!P11 -> 7.759514353 | Q32: ='Tax Cap'!Q28 / 'Tax Deductions'!Q11 -> 8.422094105 | R32: ='Tax Cap'!R28 / 'Tax Deductions'!R11 -> 8.759943562 | S32: ='Tax Cap'!S28 / 'Tax Deductions'!S11 -> 9.368425151 | T32: ='Tax Cap'!T28 / 'Tax Deductions'!T11 -> 9.872073757 | U32: ='Tax Cap'!U28 / 'Tax Deductions'!U11 -> 10.31170923 | V32: ='Tax Cap'!V28 / 'Tax Deductions'!V11 -> 10.73511067 | W32: ='Tax Cap'!W28 / 'Tax Deductions'!W11 -> 11.07106237 | X32: ='Tax Cap'!X28 / 'Tax Deductions'!X11 -> 11.50300453 | Y32: ='Tax Cap'!Y28 / 'Tax Deductions'!Y11 -> 11.97995354 | Z32: ='Tax Cap'!Z28 / 'Tax Deductions'!Z11 -> 12.12431697 | AA32: ='Tax Cap'!AA28 / 'Tax Deductions'!AA11 -> 11.64572401 | AB32: ='Tax Cap'!AB28 / 'Tax Deductions'!AB11 -> 11.94472613 | AC32: ='Tax Cap'!AC28 / 'Tax Deductions'!AC11 -> 12.31820383 | AD32: ='Tax Cap'!AD28 / 'Tax Deductions'!AD11 -> 12.6007125 | AE32: ='Tax Cap'!AE28 / 'Tax Deductions'!AE11 -> 12.83158942 | AF32: ='Tax Cap'!AF28 / 'Tax Deductions'!AF11 -> 13.07545434 | AG32: ='Tax Cap'!AG28 / 'Tax Deductions'!AG11 -> 13.24717504 | AH32: ='Tax Cap'!AH28 / 'Tax Deductions'!AH11 -> 13.50859818 | AI32: ='Tax Cap'!AI28 / 'Tax Deductions'!AI11 -> 1.123692624
E33: Discount factor to start of operational period (cap) | G33: ='Allowances Cap'!G24 -> scalar | K33: ='Allowances Cap'!K24 -> 0.9260974254 | L33: ='Allowances Cap'!L24 -> 0.8576564414 | M33: ='Allowances Cap'!M24 -> 0.7942734223 | N33: ='Allowances Cap'!N24 -> 0.7355745715 | O33: ='Allowances Cap'!O24 -> 0.6812137169 | P33: ='Allowances Cap'!P24 -> 0.6308702694 | Q33: ='Allowances Cap'!Q24 -> 0.5842473323 | R33: ='Allowances Cap'!R24 -> 0.5410699503 | S33: ='Allowances Cap'!S24 -> 0.5010834879 | T33: ='Allowances Cap'!T24 -> 0.4640521281 | U33: ='Allowances Cap'!U24 -> 0.4297574811 | V33: ='Allowances Cap'!V24 -> 0.3979972968 | W33: ='Allowances Cap'!W24 -> 0.3685842719 | X33: ='Allowances Cap'!X24 -> 0.3413449453 | Y33: ='Allowances Cap'!Y24 -> 0.316118675 | Z33: ='Allowances Cap'!Z24 -> 0.2927566911 | AA33: ='Allowances Cap'!AA24 -> 0.2711212179 | AB33: ='Allowances Cap'!AB24 -> 0.2510846619 | AC33: ='Allowances Cap'!AC24 -> 0.2325288589 | AD33: ='Allowances Cap'!AD24 -> 0.2153443776 | AE33: ='Allowances Cap'!AE24 -> 0.1994298737 | AF33: ='Allowances Cap'!AF24 -> 0.1846914926 | AG33: ='Allowances Cap'!AG24 -> 0.1710423158 | AH33: ='Allowances Cap'!AH24 -> 0.1584018483 | AI33: ='Allowances Cap'!AI24 -> 0.1466955439
E35: Discounted unprofiled tax allowance (cap) | G35: =Inputs!$I$11 -> £m 15/16 prices | K35: =K32 * K33 -> 1.929563499 | L35: =L32 * L33 -> 3.357537288 | M35: 3.461009265 | N35: 3.762426114 | O35: 4.571952549 | P35: 4.895246911 | Q35: 4.920586013 | R35: 4.739742227 | S35: 4.694363151 | T35: 4.581156835 | U35: 4.431534183 | V35: 4.27254503 | W35: 4.080619463 | X35: =X32 * X33 -> 3.926492453 | Y35: =Y32 * Y33 -> 3.78708704 | Z35: 3.549474917 | AA35: 3.157402878 | AB35: 2.999137521 | AC35: 2.86433788 | AD35: 2.71349259 | AE35: 2.559002257 | AF35: 2.414925179 | AG35: 2.265827497 | AH35: 2.13978692 | AI35: 0.1648407006
E36: NPV of tax allowance (cap) | G36: =Inputs!$I$11 -> £m 15/16 prices | I36: =SUM(K35:AI35) -> 86.24009036
E38: Annuity factor (cap) | G38: ='Allowances Cap'!G31 -> scalar | I38: ='Allowances Cap'!I31 -> 0.09351878972
E40: Annuity of tax allowance (cap) | G40: =Inputs!$I$11 -> £m 15/16 prices | I40: =I36 * I38 -> 8.065068876
B42: End of sheet

Sheet Cap Floor Levels
A1: Cap Floor Levels | H1: Licence
E2: Parameter | G2: Units | H2: Terminology | I2: Constant
B4: Cap and Floor levels and adjustments
C6: Cap and Floor levels at FPA (Preliminary) / PCR (Final) and PCA adjustments at PCR
C7: Relevant stage: FPA for Preliminary levels; PCR for final levels
E8: Cap at relevant stage excluding tax (calculated through the model) | G8: =Inputs!$I$11 -> £m 15/16 prices | I8: ='Allowances Cap'!$I33 -> 85.05832865
E9: Floor at relevant stage excluding tax (calculated through the model) | G9: =Inputs!$I$11 -> £m 15/16 prices | I9: ='Allowances Floor'!$I33 -> 56.6008084
E11: Cap at relevant stage - tax element (calculated through the model) | G11: =Inputs!$I$11 -> £m 15/16 prices | I11: =IF(Inputs!$I$123="No",'Tax Cap'!I40,0) -> 8.065068876
E12: Floor at relevant stage - tax element (calculated through the model) | G12: =Inputs!$I$11 -> £m 15/16 prices | I12: =IF(Inputs!$I$123="No",'Tax Floor'!I40,0) -> 2.542195421
E14: Cap at relevant stage - tax element (previously calculated through the model and fixed) | G14: =Inputs!$I$11 -> £m 15/16 prices
E15: Floor at relevant stage - tax element (previously calculated through the model and fixed) | G15: =Inputs!$I$11 -> £m 15/16 prices
E17: Cap at relevant stage including tax (calculated through the model) | G17: =Inputs!$I$11 -> £m 15/16 prices | I17: =I8+IF(Inputs!$I$123="Yes",I14,I11) -> 93.12339752
E18: Floor at relevant stage including tax (calculated through the model) | G18: =Inputs!$I$11 -> £m 15/16 prices | I18: =I9+IF(Inputs!$I$123="Yes",I15,I12) -> 59.14300382
E20: Preliminary Cap including tax (hardcoded at FPA) | G20: =Inputs!$I$11 -> £m 15/16 prices | H20: PCL | I20: 89.848311
E21: Preliminary Floor including tax (hardcoded at FPA) | G21: =Inputs!$I$11 -> £m 15/16 prices | H21: PFL | I21: 50.896819
E23: Cap PCA adjustment (at PCR) | G23: =Inputs!$I$11 -> £m 15/16 prices | H23: PCAC | I23: =I17-I20 -> 3.275086524
E24: Floor PCA adjustment (at PCR) | G24: =Inputs!$I$11 -> £m 15/16 prices | H24: PCAF | I24: =I18-I21 -> 8.246184822
B26: End of sheet
